Payment Date,Transaction Number,Net Amount,Supplier (Beneficiary) Name,Local Supplier Internal Reference,Directorate / Service Where Expenditure Incurred,Service Category Label,Service Category URI,SeRCOP Expenditure Category,SeRCOP Expenditure Code,Purpose of Spend,SeRCOP Detailed Expenditure Code,Capital/Revenue,Procurement Classification
28-Jun-2017,7003522,47.50,HALES OWN BRADFORD LTD,395167,"Health, Education, Care and Safeguarding",Children's & Education Services,103,Supplies and Services,504,Equipment,5023,Revenue,03.CROCKERY
28-Jun-2017,7003523,63.31,BERWICK GARDEN CENTRE,395171,"Environment, Housing & Leisure",Environmental & Regulatory Services,105,Supplies and Services,504,Equipment,5023,Revenue,HORT TREES
28-Jun-2017,7003524,52.06,DAVID S SALES,395170,"Environment, Housing & Leisure",Cultural & Related Services,104,Supplies and Services,504,Miscellaneous Expenses,5034,Revenue,06.ART & CRAFT
28-Jun-2017,7003525,27.50,CEDARTREE INSURANCE.COM,395169,Law & Governance,Central Services,102,Supplies and Services,504,Expenses,5030,Revenue,FINANCE INSURANCE
28-Jun-2017,7003526,41.08,CONSETT FESTIVAL,395168,"Health, Education, Care and Safeguarding",Children's & Education Services,103,Supplies and Services,504,Miscellaneous Expenses,5034,Revenue,00.NON INFLUENCIBLE
28-Jun-2017,7003527,255.00,LEEDS COMBINED COURT CENTRE,395166,"Environment, Housing & Leisure",Planning Services ,110,Supplies and Services,504,Expenses,5030,Revenue,00.PUBLIC SECTOR
28-Jun-2017,7003528,83.33,INTERCONTINENTAL HOTELS,395165,Commercial & Business Redesign,Central Services,102,Supplies and Services,504,"Printing, Stationery and General Office Expenses",5026,Revenue,18.CONFERENCING
28-Jun-2017,7003529,69.45,MENU SHOP EUROPE LTD,395164,"Environment, Housing & Leisure",Adult Social Care,101,Supplies and Services,504,Equipment,5023,Revenue,03.CROCKERY
28-Jun-2017,7003530,52.00,WALSALL COUNCIL,395155,"Health, Education, Care and Safeguarding",Children's & Education Services,103,Supplies and Services,504,Miscellaneous Expenses,5034,Revenue,00.PUBLIC SECTOR
28-Jun-2017,7003531,158.98,FASTLINE MEDIA LLC/BB,395154,"Health, Education, Care and Safeguarding",Children's & Education Services,103,Supplies and Services,504,Communications & Computing,5028,Revenue,15.SOFTWARE
28-Jun-2017,7003532,125.00,UEA.AC,395153,Commissioning & Investment,Children's & Education Services,103,Employees,501,Indirect Employee Expenses,5002,Revenue,EDUC SUPP
28-Jun-2017,7003533,147.06,AMZ PARRS,395148,"Environment, Housing & Leisure",Cultural & Related Services,104,Supplies and Services,504,Equipment,5023,Revenue,15.SOFTWARE
28-Jun-2017,7003534,235.00,MASCOT COSTUMES,395147,"Environment, Housing & Leisure",Capital,Capital,Supplies and Services,504,"Printing, Stationery and General Office Expenses",5026,Revenue,CLOTH ADULT
28-Jun-2017,7003535,684.85,TFH SPECIAL NEEDS,109044,"Environment, Housing & Leisure",Cultural & Related Services,104,Supplies and Services,504,Miscellaneous Expenses,5034,Revenue,PLAY ACTIVITY
28-Jun-2017,7003536,278.28,PARKDEAN HOLIDAY PARK,395145,"Health, Education, Care and Safeguarding",Children's & Education Services,103,Supplies and Services,504,Miscellaneous Expenses,5034,Revenue,HR ACCOMM
28-Jun-2017,7003536,341.72,PARKDEAN HOLIDAY PARK,395145,"Health, Education, Care and Safeguarding",Children's & Education Services,103,Supplies and Services,504,Miscellaneous Expenses,5034,Revenue,HR ACCOMM
28-Jun-2017,7003536,333.26,PARKDEAN HOLIDAY PARK,395145,"Health, Education, Care and Safeguarding",Children's & Education Services,103,Supplies and Services,504,Miscellaneous Expenses,5034,Revenue,HR ACCOMM
28-Jun-2017,7003536,164.09,PARKDEAN HOLIDAY PARK,395145,"Health, Education, Care and Safeguarding",Children's & Education Services,103,Transfer Payments,506,School Children and Students,5046,Revenue,HR ACCOMM
28-Jun-2017,7003536,282.51,PARKDEAN HOLIDAY PARK,395145,"Health, Education, Care and Safeguarding",Children's & Education Services,103,Supplies and Services,504,Miscellaneous Expenses,5034,Revenue,HR ACCOMM
28-Jun-2017,7003537,285.77,HAYS TRAVEL LTD,395143,"Health, Education, Care and Safeguarding",Children's & Education Services,103,Supplies and Services,504,Miscellaneous Expenses,5034,Revenue,18.TRAVEL
28-Jun-2017,7003537,285.77,HAYS TRAVEL LTD,395143,"Health, Education, Care and Safeguarding",Children's & Education Services,103,Supplies and Services,504,Miscellaneous Expenses,5034,Revenue,18.TRAVEL
28-Jun-2017,7003538,57.12,COOKS MILL,395141,"Health, Education, Care and Safeguarding",Children's & Education Services,103,Supplies and Services,504,Equipment,5023,Revenue,03.CROCKERY
28-Jun-2017,7003539,9.22,CARDARAMA,395139,"Health, Education, Care and Safeguarding",Children's & Education Services,103,Supplies and Services,504,Miscellaneous Expenses,5034,Revenue,STAT SUNDRIES
28-Jun-2017,7003540,1.75,MEDIREST RVI,395137,"Health, Education, Care and Safeguarding",Children's & Education Services,103,Supplies and Services,504,Equipment,5023,Revenue,03.GROCERIES & PROVISIONS
28-Jun-2017,7003540,5.07,MEDIREST RVI,395137,"Health, Education, Care and Safeguarding",Children's & Education Services,103,Supplies and Services,504,Equipment,5023,Revenue,03.GROCERIES & PROVISIONS
28-Jun-2017,7003540,2.92,MEDIREST RVI,395137,"Health, Education, Care and Safeguarding",Children's & Education Services,103,Supplies and Services,504,Equipment,5023,Revenue,03.GROCERIES & PROVISIONS
28-Jun-2017,7003540,4.49,MEDIREST RVI,395137,"Health, Education, Care and Safeguarding",Children's & Education Services,103,Supplies and Services,504,Equipment,5023,Revenue,03.GROCERIES & PROVISIONS
28-Jun-2017,7003540,0.01,MEDIREST RVI,395137,"Health, Education, Care and Safeguarding",Children's & Education Services,103,Supplies and Services,504,Equipment,5023,Revenue,03.GROCERIES & PROVISIONS
28-Jun-2017,7003540,2.25,MEDIREST RVI,395137,"Health, Education, Care and Safeguarding",Children's & Education Services,103,Supplies and Services,504,Equipment,5023,Revenue,03.GROCERIES & PROVISIONS
28-Jun-2017,7003541,50.00,BAYTEE  INTERIORS,395136,"Health, Education, Care and Safeguarding",Children's & Education Services,103,Employees,501,Indirect Employee Expenses,5002,Revenue,10.BLINDS CARPETS CURTAIN
28-Jun-2017,7003542,62.29,DAVPAC,395135,"Environment, Housing & Leisure",Cultural & Related Services,104,Supplies and Services,504,Equipment,5023,Revenue,CLEANING EQUIP
28-Jun-2017,7003543,463.28,STANDS OUT LTD,395134,"Environment, Housing & Leisure",Cultural & Related Services,104,Supplies and Services,504,Equipment,5023,Revenue,16.EVENTS & PROMOTIONS
28-Jun-2017,7003544,17.47,FIELD & TREK,395132,"Environment, Housing & Leisure",Cultural & Related Services,104,Third Party Payments,505,Private Contractors,5042,Revenue,SPORTS EQUIP
28-Jun-2017,7003545,28.61,4 CHILDREN 2 ENJOY,395131,"Environment, Housing & Leisure",Cultural & Related Services,104,Third Party Payments,505,Private Contractors,5042,Revenue,EDUC SCH
28-Jun-2017,7003546,238.22,PARCEL 2GO,395130,"Environment, Housing & Leisure",Cultural & Related Services,104,Supplies and Services,504,Communications & Computing,5028,Revenue,18.POSTAGE
28-Jun-2017,7003547,19.55,CUSTOMRUBBER ST,395129,Housing Revenue Account,Housing Services,108,Supplies and Services,504,Miscellaneous Expenses,5034,Revenue,STAT SUNDRIES
28-Jun-2017,7003548,23.33,JTW FLORISTS LTD,395050,Law & Governance,Central Services,102,Supplies and Services,504,Expenses,5030,Revenue,HORT SEEDS
28-Jun-2017,7003548,25.00,JTW FLORISTS LTD,395050,Law & Governance,Central Services,102,Supplies and Services,504,Expenses,5030,Revenue,HORT SEEDS
28-Jun-2017,7003549,8.99,UNLIMITED WEBHOSTING,394828,"Health, Education, Care and Safeguarding",Children's & Education Services,103,Supplies and Services,504,Communications & Computing,5028,Revenue,ICT WEB
28-Jun-2017,7003550,4.94,UK HOSTING,394827,Corporate Strategy,Central Services,102,Supplies and Services,504,"Printing, Stationery and General Office Expenses",5026,Revenue,ICT WEB
28-Jun-2017,7003551,65.12,LITTLE CRAFTY BUGS,394744,"Environment, Housing & Leisure",Cultural & Related Services,104,Supplies and Services,504,Equipment,5023,Revenue,06.ART & CRAFT
28-Jun-2017,7003552,218.01,TAYLOR FOODS,394743,Commissioning & Investment,Children's & Education Services,103,Supplies and Services,504,Equipment,5023,Revenue,03.GROCERIES & PROVISIONS
28-Jun-2017,7003552,295.76,TAYLOR FOODS,394743,Commissioning & Investment,Children's & Education Services,103,Supplies and Services,504,Equipment,5023,Revenue,03.GROCERIES & PROVISIONS
28-Jun-2017,7003552,170.07,TAYLOR FOODS,394743,Commissioning & Investment,Children's & Education Services,103,Supplies and Services,504,Equipment,5023,Revenue,03.GROCERIES & PROVISIONS
28-Jun-2017,7003552,39.29,TAYLOR FOODS,394743,Commissioning & Investment,Children's & Education Services,103,Supplies and Services,504,Equipment,5023,Revenue,03.GROCERIES & PROVISIONS
28-Jun-2017,7003552,276.46,TAYLOR FOODS,394743,"Environment, Housing & Leisure",Adult Social Care,101,Supplies and Services,504,Equipment,5023,Revenue,03.GROCERIES & PROVISIONS
28-Jun-2017,7003552,164.41,TAYLOR FOODS,394743,Commissioning & Investment,Children's & Education Services,103,Supplies and Services,504,Equipment,5023,Revenue,03.GROCERIES & PROVISIONS
28-Jun-2017,7003552,374.97,TAYLOR FOODS,394743,Commissioning & Investment,Children's & Education Services,103,Supplies and Services,504,Equipment,5023,Revenue,03.GROCERIES & PROVISIONS
28-Jun-2017,7003552,111.15,TAYLOR FOODS,394743,Commissioning & Investment,Children's & Education Services,103,Supplies and Services,504,Equipment,5023,Revenue,03.GROCERIES & PROVISIONS
28-Jun-2017,7003553,60.66,TRAVEL.CLOUD,394406,"Health, Education, Care and Safeguarding",Children's & Education Services,103,Supplies and Services,504,Expenses,5030,Revenue,18.TRAVEL
28-Jun-2017,7003553,286.53,TRAVEL.CLOUD,394406,Commissioning & Investment,Children's & Education Services,103,Supplies and Services,504,Expenses,5030,Revenue,18.TRAVEL
28-Jun-2017,7003553,138.21,TRAVEL.CLOUD,394406,"Health, Education, Care and Safeguarding",Children's & Education Services,103,Supplies and Services,504,Expenses,5030,Revenue,18.TRAVEL
28-Jun-2017,7003553,39.14,TRAVEL.CLOUD,394406,Corporate Strategy,Central Services,102,Supplies and Services,504,Expenses,5030,Revenue,18.TRAVEL
28-Jun-2017,7003553,196.16,TRAVEL.CLOUD,394406,"Health, Education, Care and Safeguarding",Children's & Education Services,103,Supplies and Services,504,Expenses,5030,Revenue,18.TRAVEL
28-Jun-2017,7003553,298.48,TRAVEL.CLOUD,394406,"Health, Education, Care and Safeguarding",Children's & Education Services,103,Supplies and Services,504,Expenses,5030,Revenue,18.TRAVEL
28-Jun-2017,7003553,37.47,TRAVEL.CLOUD,394406,"Health, Education, Care and Safeguarding",Children's & Education Services,103,Supplies and Services,504,Expenses,5030,Revenue,18.TRAVEL
28-Jun-2017,7003553,26.29,TRAVEL.CLOUD,394406,"Health, Education, Care and Safeguarding",Children's & Education Services,103,Supplies and Services,504,Expenses,5030,Revenue,18.TRAVEL
28-Jun-2017,7003554,93.83,MOJO HELPDESK,394317,"Health, Education, Care and Safeguarding",Children's & Education Services,103,Supplies and Services,504,Communications & Computing,5028,Revenue,15.SOFTWARE
28-Jun-2017,7003555,545.00,LOCAL GOVERNMENT ASSOCIATION,310169,Chief Executive Office,Central Services,102,Supplies and Services,504,Miscellaneous Expenses,5034,Revenue,00.PUBLIC SECTOR
28-Jun-2017,7003556,29.58,MEAT & TWO VEG,393775,"Health, Education, Care and Safeguarding",Children's & Education Services,103,Supplies and Services,504,Equipment,5023,Revenue,03.GROCERIES & PROVISIONS
28-Jun-2017,7003557,79.41,BITEABLE PTY LTD,393771,Corporate Strategy,Central Services,102,Supplies and Services,504,"Printing, Stationery and General Office Expenses",5026,Revenue,15.SOFTWARE
28-Jun-2017,7003558,17.00,MONEYSUPERMARKET.COM,393552,Law & Governance,Central Services,102,Supplies and Services,504,Expenses,5030,Revenue,FINANCE INSURANCE
28-Jun-2017,7003559,16.42,FACEBOOK,393228,"Health, Education, Care and Safeguarding",Children's & Education Services,103,Supplies and Services,504,Miscellaneous Expenses,5034,Revenue,16.ADVERTISING
28-Jun-2017,7003559,11.04,FACEBOOK,393228,"Health, Education, Care and Safeguarding",Children's & Education Services,103,Supplies and Services,504,Miscellaneous Expenses,5034,Revenue,16.ADVERTISING
28-Jun-2017,7003559,16.76,FACEBOOK,393228,"Environment, Housing & Leisure",Cultural & Related Services,104,Third Party Payments,505,Private Contractors,5042,Revenue,16.ADVERTISING
28-Jun-2017,7003559,33.48,FACEBOOK,393228,"Environment, Housing & Leisure",Cultural & Related Services,104,Third Party Payments,505,Private Contractors,5042,Revenue,16.ADVERTISING
28-Jun-2017,7003559,143.37,FACEBOOK,393228,"Environment, Housing & Leisure",Cultural & Related Services,104,Third Party Payments,505,Private Contractors,5042,Revenue,16.ADVERTISING
28-Jun-2017,7003560,98.16,DINSMORES.CO.UK,392957,"Environment, Housing & Leisure",Cultural & Related Services,104,Third Party Payments,505,Private Contractors,5042,Revenue,SPORTS EQUIP
28-Jun-2017,7003561,-14.16,TK MAXX,392657,"Health, Education, Care and Safeguarding",Children's & Education Services,103,Supplies and Services,504,Equipment,5023,Revenue,10.HOUSEHOLD
28-Jun-2017,7003561,47.52,TK MAXX,392657,"Health, Education, Care and Safeguarding",Children's & Education Services,103,Supplies and Services,504,Equipment,5023,Revenue,10.HOUSEHOLD
28-Jun-2017,7003562,55.93,JOHNSTONES DECORATING,392548,"Environment, Housing & Leisure",Environmental & Regulatory Services,105,Supplies and Services,504,Equipment,5023,Revenue,REPAIR PAINT
28-Jun-2017,7003563,84.35,KENDAL YARD,392417,"Health, Education, Care and Safeguarding",Children's & Education Services,103,Premises-Related Expenditure,502,"Repairs, alterations and maintenance of buildings",5005,Revenue,BUILD GEN
28-Jun-2017,7003563,95.86,KENDAL YARD,392417,"Health, Education, Care and Safeguarding",Children's & Education Services,103,Premises-Related Expenditure,502,"Repairs, alterations and maintenance of buildings",5005,Revenue,BUILD GEN
28-Jun-2017,7003564,551.55,DELTA SPORTSWEAR LTD,392413,"Health, Education, Care and Safeguarding",Children's & Education Services,103,Supplies and Services,504,Equipment,5023,Revenue,SPORTS EQUIP
28-Jun-2017,7003565,10.00,KASH RETAIL,392132,Housing Revenue Account,Adult Social Care,101,Supplies and Services,504,Equipment,5023,Revenue,03.GROCERIES & PROVISIONS
28-Jun-2017,7003566,182.50,AO RETAIL LIMITED,392123,"Health, Education, Care and Safeguarding",Children's & Education Services,103,Supplies and Services,504,Equipment,5023,Revenue,03.CROCKERY
28-Jun-2017,7003567,620.41,ON A ROLL SANDWICH COMPANY,391893,Commissioning & Investment,Children's & Education Services,103,Supplies and Services,504,Equipment,5023,Revenue,03.GROCERIES & PROVISIONS
28-Jun-2017,7003567,50.12,ON A ROLL SANDWICH COMPANY,391893,Commissioning & Investment,Children's & Education Services,103,Supplies and Services,504,Equipment,5023,Revenue,03.GROCERIES & PROVISIONS
28-Jun-2017,7003567,550.78,ON A ROLL SANDWICH COMPANY,391893,Commissioning & Investment,Children's & Education Services,103,Supplies and Services,504,Equipment,5023,Revenue,03.GROCERIES & PROVISIONS
28-Jun-2017,7003567,389.64,ON A ROLL SANDWICH COMPANY,391893,Commissioning & Investment,Children's & Education Services,103,Supplies and Services,504,Equipment,5023,Revenue,03.GROCERIES & PROVISIONS
28-Jun-2017,7003567,326.59,ON A ROLL SANDWICH COMPANY,391893,Commissioning & Investment,Children's & Education Services,103,Supplies and Services,504,Equipment,5023,Revenue,03.GROCERIES & PROVISIONS
28-Jun-2017,7003567,348.28,ON A ROLL SANDWICH COMPANY,391893,Commissioning & Investment,Children's & Education Services,103,Supplies and Services,504,Equipment,5023,Revenue,03.GROCERIES & PROVISIONS
28-Jun-2017,7003567,392.24,ON A ROLL SANDWICH COMPANY,391893,Commissioning & Investment,Children's & Education Services,103,Supplies and Services,504,Equipment,5023,Revenue,03.GROCERIES & PROVISIONS
28-Jun-2017,7003567,96.92,ON A ROLL SANDWICH COMPANY,391893,Commissioning & Investment,Children's & Education Services,103,Supplies and Services,504,Equipment,5023,Revenue,03.GROCERIES & PROVISIONS
28-Jun-2017,7003567,669.02,ON A ROLL SANDWICH COMPANY,391893,Commissioning & Investment,Children's & Education Services,103,Supplies and Services,504,Equipment,5023,Revenue,03.GROCERIES & PROVISIONS
28-Jun-2017,7003567,393.69,ON A ROLL SANDWICH COMPANY,391893,Commissioning & Investment,Children's & Education Services,103,Supplies and Services,504,Equipment,5023,Revenue,03.GROCERIES & PROVISIONS
28-Jun-2017,7003567,211.20,ON A ROLL SANDWICH COMPANY,391893,Commissioning & Investment,Children's & Education Services,103,Supplies and Services,504,Equipment,5023,Revenue,03.GROCERIES & PROVISIONS
28-Jun-2017,7003567,389.91,ON A ROLL SANDWICH COMPANY,391893,Commissioning & Investment,Children's & Education Services,103,Supplies and Services,504,Equipment,5023,Revenue,03.GROCERIES & PROVISIONS
28-Jun-2017,7003567,398.28,ON A ROLL SANDWICH COMPANY,391893,Commissioning & Investment,Children's & Education Services,103,Supplies and Services,504,Equipment,5023,Revenue,03.GROCERIES & PROVISIONS
28-Jun-2017,7003567,394.00,ON A ROLL SANDWICH COMPANY,391893,Commissioning & Investment,Children's & Education Services,103,Supplies and Services,504,Equipment,5023,Revenue,03.GROCERIES & PROVISIONS
28-Jun-2017,7003567,70.69,ON A ROLL SANDWICH COMPANY,391893,Commissioning & Investment,Children's & Education Services,103,Supplies and Services,504,Equipment,5023,Revenue,03.GROCERIES & PROVISIONS
28-Jun-2017,7003567,789.41,ON A ROLL SANDWICH COMPANY,391893,Commissioning & Investment,Children's & Education Services,103,Supplies and Services,504,Equipment,5023,Revenue,03.GROCERIES & PROVISIONS
28-Jun-2017,7003567,211.80,ON A ROLL SANDWICH COMPANY,391893,Commissioning & Investment,Children's & Education Services,103,Supplies and Services,504,Equipment,5023,Revenue,03.GROCERIES & PROVISIONS
28-Jun-2017,7003567,272.95,ON A ROLL SANDWICH COMPANY,391893,Commissioning & Investment,Children's & Education Services,103,Supplies and Services,504,Equipment,5023,Revenue,03.GROCERIES & PROVISIONS
28-Jun-2017,7003567,871.22,ON A ROLL SANDWICH COMPANY,391893,Commissioning & Investment,Children's & Education Services,103,Supplies and Services,504,Equipment,5023,Revenue,03.GROCERIES & PROVISIONS
28-Jun-2017,7003567,255.98,ON A ROLL SANDWICH COMPANY,391893,Commissioning & Investment,Children's & Education Services,103,Supplies and Services,504,Equipment,5023,Revenue,03.GROCERIES & PROVISIONS
28-Jun-2017,7003567,472.31,ON A ROLL SANDWICH COMPANY,391893,Commissioning & Investment,Children's & Education Services,103,Supplies and Services,504,Equipment,5023,Revenue,03.GROCERIES & PROVISIONS
28-Jun-2017,7003567,60.94,ON A ROLL SANDWICH COMPANY,391893,Commissioning & Investment,Children's & Education Services,103,Supplies and Services,504,Equipment,5023,Revenue,03.GROCERIES & PROVISIONS
28-Jun-2017,7003567,76.70,ON A ROLL SANDWICH COMPANY,391893,Commissioning & Investment,Children's & Education Services,103,Supplies and Services,504,Equipment,5023,Revenue,03.GROCERIES & PROVISIONS
28-Jun-2017,7003567,503.45,ON A ROLL SANDWICH COMPANY,391893,Commissioning & Investment,Children's & Education Services,103,Supplies and Services,504,Equipment,5023,Revenue,03.GROCERIES & PROVISIONS
28-Jun-2017,7003567,211.20,ON A ROLL SANDWICH COMPANY,391893,Commissioning & Investment,Children's & Education Services,103,Supplies and Services,504,Equipment,5023,Revenue,03.GROCERIES & PROVISIONS
28-Jun-2017,7003567,105.60,ON A ROLL SANDWICH COMPANY,391893,Commissioning & Investment,Children's & Education Services,103,Supplies and Services,504,Equipment,5023,Revenue,03.GROCERIES & PROVISIONS
28-Jun-2017,7003567,273.28,ON A ROLL SANDWICH COMPANY,391893,Commissioning & Investment,Children's & Education Services,103,Supplies and Services,504,Equipment,5023,Revenue,03.GROCERIES & PROVISIONS
28-Jun-2017,7003567,105.60,ON A ROLL SANDWICH COMPANY,391893,Commissioning & Investment,Children's & Education Services,103,Supplies and Services,504,Equipment,5023,Revenue,03.GROCERIES & PROVISIONS
28-Jun-2017,7003567,279.13,ON A ROLL SANDWICH COMPANY,391893,Commissioning & Investment,Children's & Education Services,103,Supplies and Services,504,Equipment,5023,Revenue,03.GROCERIES & PROVISIONS
28-Jun-2017,7003567,628.89,ON A ROLL SANDWICH COMPANY,391893,Commissioning & Investment,Children's & Education Services,103,Supplies and Services,504,Equipment,5023,Revenue,03.GROCERIES & PROVISIONS
28-Jun-2017,7003567,277.42,ON A ROLL SANDWICH COMPANY,391893,Commissioning & Investment,Children's & Education Services,103,Supplies and Services,504,Equipment,5023,Revenue,03.GROCERIES & PROVISIONS
28-Jun-2017,7003567,86.82,ON A ROLL SANDWICH COMPANY,391893,Commissioning & Investment,Children's & Education Services,103,Supplies and Services,504,Equipment,5023,Revenue,03.GROCERIES & PROVISIONS
28-Jun-2017,7003567,81.96,ON A ROLL SANDWICH COMPANY,391893,Commissioning & Investment,Children's & Education Services,103,Supplies and Services,504,Equipment,5023,Revenue,03.GROCERIES & PROVISIONS
28-Jun-2017,7003567,613.97,ON A ROLL SANDWICH COMPANY,391893,Commissioning & Investment,Children's & Education Services,103,Supplies and Services,504,Equipment,5023,Revenue,03.GROCERIES & PROVISIONS
28-Jun-2017,7003567,310.22,ON A ROLL SANDWICH COMPANY,391893,Commissioning & Investment,Children's & Education Services,103,Supplies and Services,504,Equipment,5023,Revenue,03.GROCERIES & PROVISIONS
28-Jun-2017,7003567,67.44,ON A ROLL SANDWICH COMPANY,391893,Commissioning & Investment,Children's & Education Services,103,Supplies and Services,504,Equipment,5023,Revenue,03.GROCERIES & PROVISIONS
28-Jun-2017,7003567,269.68,ON A ROLL SANDWICH COMPANY,391893,Commissioning & Investment,Children's & Education Services,103,Supplies and Services,504,Equipment,5023,Revenue,03.GROCERIES & PROVISIONS
28-Jun-2017,7003567,646.34,ON A ROLL SANDWICH COMPANY,391893,Commissioning & Investment,Children's & Education Services,103,Supplies and Services,504,Equipment,5023,Revenue,03.GROCERIES & PROVISIONS
28-Jun-2017,7003567,105.60,ON A ROLL SANDWICH COMPANY,391893,Commissioning & Investment,Children's & Education Services,103,Supplies and Services,504,Equipment,5023,Revenue,03.GROCERIES & PROVISIONS
28-Jun-2017,7003567,328.97,ON A ROLL SANDWICH COMPANY,391893,Commissioning & Investment,Children's & Education Services,103,Supplies and Services,504,Equipment,5023,Revenue,03.GROCERIES & PROVISIONS
28-Jun-2017,7003567,67.15,ON A ROLL SANDWICH COMPANY,391893,Commissioning & Investment,Children's & Education Services,103,Supplies and Services,504,Equipment,5023,Revenue,03.GROCERIES & PROVISIONS
28-Jun-2017,7003567,105.60,ON A ROLL SANDWICH COMPANY,391893,Commissioning & Investment,Children's & Education Services,103,Supplies and Services,504,Equipment,5023,Revenue,03.GROCERIES & PROVISIONS
28-Jun-2017,7003567,488.77,ON A ROLL SANDWICH COMPANY,391893,Commissioning & Investment,Children's & Education Services,103,Supplies and Services,504,Equipment,5023,Revenue,03.GROCERIES & PROVISIONS
28-Jun-2017,7003567,81.86,ON A ROLL SANDWICH COMPANY,391893,Commissioning & Investment,Children's & Education Services,103,Supplies and Services,504,Equipment,5023,Revenue,03.GROCERIES & PROVISIONS
28-Jun-2017,7003567,91.68,ON A ROLL SANDWICH COMPANY,391893,Commissioning & Investment,Children's & Education Services,103,Supplies and Services,504,Equipment,5023,Revenue,03.GROCERIES & PROVISIONS
28-Jun-2017,7003568,5.42,PRODUCT SUPPORT AG,391921,"Health, Education, Care and Safeguarding",Children's & Education Services,103,Supplies and Services,504,Equipment,5023,Revenue,14.MAINT OF COMPUTER EQU
28-Jun-2017,7003569,55.71,BOURNE LEISURE LTD,346426,"Health, Education, Care and Safeguarding",Children's & Education Services,103,Supplies and Services,504,Miscellaneous Expenses,5034,Revenue,HR ACCOMM
28-Jun-2017,7003569,55.71,BOURNE LEISURE LTD,346426,"Health, Education, Care and Safeguarding",Children's & Education Services,103,Supplies and Services,504,Miscellaneous Expenses,5034,Revenue,HR ACCOMM
28-Jun-2017,7003570,8.45,MARTIN MCCOLLS LTD 1291,391619,"Health, Education, Care and Safeguarding",Children's & Education Services,103,Third Party Payments,505,Other Establishments,5041,Revenue,18.BOOKS & PUBLICATIONS
28-Jun-2017,7003571,147.06,BOOKERECOMM,391464,"Environment, Housing & Leisure",Cultural & Related Services,104,Supplies and Services,504,Catering,5024,Revenue,00.NON INFLUENCIBLE
28-Jun-2017,7003571,75.42,BOOKERECOMM,391464,"Environment, Housing & Leisure",Cultural & Related Services,104,Supplies and Services,504,Catering,5024,Revenue,00.NON INFLUENCIBLE
28-Jun-2017,7003572,121.10,OAKENCLOUGH BUILDING L,391160,"Environment, Housing & Leisure",Cultural & Related Services,104,Supplies and Services,504,Equipment,5023,Revenue,13.EQUIPMENT
28-Jun-2017,7003573,522.49,GIFTSTONES LTD T/A BRITISH FOSSILS,302516,"Environment, Housing & Leisure",Cultural & Related Services,104,Supplies and Services,504,Equipment,5023,Revenue,06.ART & CRAFT
28-Jun-2017,7003574,147.93,CLEVELAND CABLE CO LTD,003632,"Environment, Housing & Leisure",Cultural & Related Services,104,Third Party Payments,505,Private Contractors,5042,Revenue,01.ELECTRICAL
28-Jun-2017,7003575,2.46,REDBRIDGE PRODUCE & FLOWERS LTD T/A TOTAL PRODUCE,390977,Commissioning & Investment,Children's & Education Services,103,Supplies and Services,504,Equipment,5023,Revenue,03.GROCERIES & PROVISIONS
28-Jun-2017,7003575,0.60,REDBRIDGE PRODUCE & FLOWERS LTD T/A TOTAL PRODUCE,390977,Commissioning & Investment,Children's & Education Services,103,Supplies and Services,504,Equipment,5023,Revenue,03.GROCERIES & PROVISIONS
28-Jun-2017,7003575,31.93,REDBRIDGE PRODUCE & FLOWERS LTD T/A TOTAL PRODUCE,390977,Commissioning & Investment,Children's & Education Services,103,Supplies and Services,504,Equipment,5023,Revenue,03.GROCERIES & PROVISIONS
28-Jun-2017,7003575,34.91,REDBRIDGE PRODUCE & FLOWERS LTD T/A TOTAL PRODUCE,390977,Commissioning & Investment,Children's & Education Services,103,Supplies and Services,504,Equipment,5023,Revenue,03.GROCERIES & PROVISIONS
28-Jun-2017,7003575,1.78,REDBRIDGE PRODUCE & FLOWERS LTD T/A TOTAL PRODUCE,390977,Commissioning & Investment,Children's & Education Services,103,Supplies and Services,504,Equipment,5023,Revenue,03.GROCERIES & PROVISIONS
28-Jun-2017,7003575,4.80,REDBRIDGE PRODUCE & FLOWERS LTD T/A TOTAL PRODUCE,390977,Commissioning & Investment,Children's & Education Services,103,Supplies and Services,504,Equipment,5023,Revenue,03.GROCERIES & PROVISIONS
28-Jun-2017,7003575,88.90,REDBRIDGE PRODUCE & FLOWERS LTD T/A TOTAL PRODUCE,390977,Commissioning & Investment,Children's & Education Services,103,Supplies and Services,504,Equipment,5023,Revenue,03.GROCERIES & PROVISIONS
28-Jun-2017,7003575,107.40,REDBRIDGE PRODUCE & FLOWERS LTD T/A TOTAL PRODUCE,390977,Commissioning & Investment,Children's & Education Services,103,Supplies and Services,504,Equipment,5023,Revenue,03.GROCERIES & PROVISIONS
28-Jun-2017,7003575,71.11,REDBRIDGE PRODUCE & FLOWERS LTD T/A TOTAL PRODUCE,390977,Commissioning & Investment,Children's & Education Services,103,Supplies and Services,504,Equipment,5023,Revenue,03.GROCERIES & PROVISIONS
28-Jun-2017,7003575,37.74,REDBRIDGE PRODUCE & FLOWERS LTD T/A TOTAL PRODUCE,390977,Commissioning & Investment,Children's & Education Services,103,Supplies and Services,504,Equipment,5023,Revenue,03.GROCERIES & PROVISIONS
28-Jun-2017,7003575,16.80,REDBRIDGE PRODUCE & FLOWERS LTD T/A TOTAL PRODUCE,390977,Commissioning & Investment,Children's & Education Services,103,Supplies and Services,504,Equipment,5023,Revenue,03.GROCERIES & PROVISIONS
28-Jun-2017,7003575,2.40,REDBRIDGE PRODUCE & FLOWERS LTD T/A TOTAL PRODUCE,390977,Commissioning & Investment,Children's & Education Services,103,Supplies and Services,504,Equipment,5023,Revenue,03.GROCERIES & PROVISIONS
28-Jun-2017,7003575,27.32,REDBRIDGE PRODUCE & FLOWERS LTD T/A TOTAL PRODUCE,390977,Commissioning & Investment,Children's & Education Services,103,Supplies and Services,504,Equipment,5023,Revenue,03.GROCERIES & PROVISIONS
28-Jun-2017,7003575,66.48,REDBRIDGE PRODUCE & FLOWERS LTD T/A TOTAL PRODUCE,390977,Commissioning & Investment,Children's & Education Services,103,Supplies and Services,504,Equipment,5023,Revenue,03.GROCERIES & PROVISIONS
28-Jun-2017,7003575,5.56,REDBRIDGE PRODUCE & FLOWERS LTD T/A TOTAL PRODUCE,390977,Commissioning & Investment,Children's & Education Services,103,Supplies and Services,504,Equipment,5023,Revenue,03.GROCERIES & PROVISIONS
28-Jun-2017,7003575,55.46,REDBRIDGE PRODUCE & FLOWERS LTD T/A TOTAL PRODUCE,390977,Commissioning & Investment,Children's & Education Services,103,Supplies and Services,504,Equipment,5023,Revenue,03.GROCERIES & PROVISIONS
28-Jun-2017,7003575,44.77,REDBRIDGE PRODUCE & FLOWERS LTD T/A TOTAL PRODUCE,390977,Commissioning & Investment,Children's & Education Services,103,Supplies and Services,504,Equipment,5023,Revenue,03.GROCERIES & PROVISIONS
28-Jun-2017,7003575,15.25,REDBRIDGE PRODUCE & FLOWERS LTD T/A TOTAL PRODUCE,390977,Commissioning & Investment,Children's & Education Services,103,Supplies and Services,504,Equipment,5023,Revenue,03.GROCERIES & PROVISIONS
28-Jun-2017,7003575,15.03,REDBRIDGE PRODUCE & FLOWERS LTD T/A TOTAL PRODUCE,390977,Commissioning & Investment,Children's & Education Services,103,Supplies and Services,504,Equipment,5023,Revenue,03.GROCERIES & PROVISIONS
28-Jun-2017,7003575,1.92,REDBRIDGE PRODUCE & FLOWERS LTD T/A TOTAL PRODUCE,390977,Commissioning & Investment,Children's & Education Services,103,Supplies and Services,504,Equipment,5023,Revenue,03.GROCERIES & PROVISIONS
28-Jun-2017,7003575,18.06,REDBRIDGE PRODUCE & FLOWERS LTD T/A TOTAL PRODUCE,390977,Commissioning & Investment,Children's & Education Services,103,Supplies and Services,504,Equipment,5023,Revenue,03.GROCERIES & PROVISIONS
28-Jun-2017,7003575,12.51,REDBRIDGE PRODUCE & FLOWERS LTD T/A TOTAL PRODUCE,390977,Commissioning & Investment,Children's & Education Services,103,Supplies and Services,504,Equipment,5023,Revenue,03.GROCERIES & PROVISIONS
28-Jun-2017,7003575,67.05,REDBRIDGE PRODUCE & FLOWERS LTD T/A TOTAL PRODUCE,390977,Commissioning & Investment,Children's & Education Services,103,Supplies and Services,504,Equipment,5023,Revenue,03.GROCERIES & PROVISIONS
28-Jun-2017,7003575,18.00,REDBRIDGE PRODUCE & FLOWERS LTD T/A TOTAL PRODUCE,390977,Commissioning & Investment,Children's & Education Services,103,Supplies and Services,504,Equipment,5023,Revenue,03.GROCERIES & PROVISIONS
28-Jun-2017,7003575,25.66,REDBRIDGE PRODUCE & FLOWERS LTD T/A TOTAL PRODUCE,390977,Commissioning & Investment,Children's & Education Services,103,Supplies and Services,504,Equipment,5023,Revenue,03.GROCERIES & PROVISIONS
28-Jun-2017,7003575,2.76,REDBRIDGE PRODUCE & FLOWERS LTD T/A TOTAL PRODUCE,390977,Commissioning & Investment,Children's & Education Services,103,Supplies and Services,504,Equipment,5023,Revenue,03.GROCERIES & PROVISIONS
28-Jun-2017,7003575,0.97,REDBRIDGE PRODUCE & FLOWERS LTD T/A TOTAL PRODUCE,390977,"Health, Education, Care and Safeguarding",Children's & Education Services,103,Supplies and Services,504,Equipment,5023,Revenue,03.GROCERIES & PROVISIONS
28-Jun-2017,7003575,60.09,REDBRIDGE PRODUCE & FLOWERS LTD T/A TOTAL PRODUCE,390977,Commissioning & Investment,Children's & Education Services,103,Supplies and Services,504,Equipment,5023,Revenue,03.GROCERIES & PROVISIONS
28-Jun-2017,7003575,1.67,REDBRIDGE PRODUCE & FLOWERS LTD T/A TOTAL PRODUCE,390977,Commissioning & Investment,Children's & Education Services,103,Supplies and Services,504,Equipment,5023,Revenue,03.GROCERIES & PROVISIONS
28-Jun-2017,7003575,-11.12,REDBRIDGE PRODUCE & FLOWERS LTD T/A TOTAL PRODUCE,390977,Commissioning & Investment,Children's & Education Services,103,Supplies and Services,504,Equipment,5023,Revenue,03.GROCERIES & PROVISIONS
28-Jun-2017,7003575,1.82,REDBRIDGE PRODUCE & FLOWERS LTD T/A TOTAL PRODUCE,390977,Commissioning & Investment,Children's & Education Services,103,Supplies and Services,504,Equipment,5023,Revenue,03.GROCERIES & PROVISIONS
28-Jun-2017,7003575,7.20,REDBRIDGE PRODUCE & FLOWERS LTD T/A TOTAL PRODUCE,390977,Commissioning & Investment,Children's & Education Services,103,Supplies and Services,504,Equipment,5023,Revenue,03.GROCERIES & PROVISIONS
28-Jun-2017,7003575,52.69,REDBRIDGE PRODUCE & FLOWERS LTD T/A TOTAL PRODUCE,390977,Commissioning & Investment,Children's & Education Services,103,Supplies and Services,504,Equipment,5023,Revenue,03.GROCERIES & PROVISIONS
28-Jun-2017,7003575,1.43,REDBRIDGE PRODUCE & FLOWERS LTD T/A TOTAL PRODUCE,390977,Commissioning & Investment,Children's & Education Services,103,Supplies and Services,504,Equipment,5023,Revenue,03.GROCERIES & PROVISIONS
28-Jun-2017,7003575,53.87,REDBRIDGE PRODUCE & FLOWERS LTD T/A TOTAL PRODUCE,390977,Commissioning & Investment,Children's & Education Services,103,Supplies and Services,504,Equipment,5023,Revenue,03.GROCERIES & PROVISIONS
28-Jun-2017,7003575,1.49,REDBRIDGE PRODUCE & FLOWERS LTD T/A TOTAL PRODUCE,390977,Commissioning & Investment,Children's & Education Services,103,Supplies and Services,504,Equipment,5023,Revenue,03.GROCERIES & PROVISIONS
28-Jun-2017,7003575,1.53,REDBRIDGE PRODUCE & FLOWERS LTD T/A TOTAL PRODUCE,390977,Commissioning & Investment,Children's & Education Services,103,Supplies and Services,504,Equipment,5023,Revenue,03.GROCERIES & PROVISIONS
28-Jun-2017,7003575,1.82,REDBRIDGE PRODUCE & FLOWERS LTD T/A TOTAL PRODUCE,390977,Commissioning & Investment,Children's & Education Services,103,Supplies and Services,504,Equipment,5023,Revenue,03.GROCERIES & PROVISIONS
28-Jun-2017,7003575,16.80,REDBRIDGE PRODUCE & FLOWERS LTD T/A TOTAL PRODUCE,390977,Commissioning & Investment,Children's & Education Services,103,Supplies and Services,504,Equipment,5023,Revenue,03.GROCERIES & PROVISIONS
28-Jun-2017,7003575,3.80,REDBRIDGE PRODUCE & FLOWERS LTD T/A TOTAL PRODUCE,390977,Commissioning & Investment,Children's & Education Services,103,Supplies and Services,504,Equipment,5023,Revenue,03.GROCERIES & PROVISIONS
28-Jun-2017,7003575,37.88,REDBRIDGE PRODUCE & FLOWERS LTD T/A TOTAL PRODUCE,390977,Commissioning & Investment,Children's & Education Services,103,Supplies and Services,504,Equipment,5023,Revenue,03.GROCERIES & PROVISIONS
28-Jun-2017,7003575,2.98,REDBRIDGE PRODUCE & FLOWERS LTD T/A TOTAL PRODUCE,390977,"Environment, Housing & Leisure",Adult Social Care,101,Supplies and Services,504,Equipment,5023,Revenue,03.GROCERIES & PROVISIONS
28-Jun-2017,7003575,9.00,REDBRIDGE PRODUCE & FLOWERS LTD T/A TOTAL PRODUCE,390977,"Environment, Housing & Leisure",Adult Social Care,101,Supplies and Services,504,Equipment,5023,Revenue,03.GROCERIES & PROVISIONS
28-Jun-2017,7003575,68.90,REDBRIDGE PRODUCE & FLOWERS LTD T/A TOTAL PRODUCE,390977,"Environment, Housing & Leisure",Adult Social Care,101,Supplies and Services,504,Equipment,5023,Revenue,03.GROCERIES & PROVISIONS
28-Jun-2017,7003575,69.34,REDBRIDGE PRODUCE & FLOWERS LTD T/A TOTAL PRODUCE,390977,Commissioning & Investment,Children's & Education Services,103,Supplies and Services,504,Equipment,5023,Revenue,03.GROCERIES & PROVISIONS
28-Jun-2017,7003575,16.60,REDBRIDGE PRODUCE & FLOWERS LTD T/A TOTAL PRODUCE,390977,Commissioning & Investment,Children's & Education Services,103,Supplies and Services,504,Equipment,5023,Revenue,03.GROCERIES & PROVISIONS
28-Jun-2017,7003575,48.80,REDBRIDGE PRODUCE & FLOWERS LTD T/A TOTAL PRODUCE,390977,"Environment, Housing & Leisure",Cultural & Related Services,104,Supplies and Services,504,Equipment,5023,Revenue,03.GROCERIES & PROVISIONS
28-Jun-2017,7003575,8.34,REDBRIDGE PRODUCE & FLOWERS LTD T/A TOTAL PRODUCE,390977,Commissioning & Investment,Children's & Education Services,103,Supplies and Services,504,Equipment,5023,Revenue,03.GROCERIES & PROVISIONS
28-Jun-2017,7003575,4.04,REDBRIDGE PRODUCE & FLOWERS LTD T/A TOTAL PRODUCE,390977,Commissioning & Investment,Children's & Education Services,103,Supplies and Services,504,Equipment,5023,Revenue,03.GROCERIES & PROVISIONS
28-Jun-2017,7003575,-0.54,REDBRIDGE PRODUCE & FLOWERS LTD T/A TOTAL PRODUCE,390977,Commissioning & Investment,Children's & Education Services,103,Supplies and Services,504,Equipment,5023,Revenue,03.GROCERIES & PROVISIONS
28-Jun-2017,7003575,1.53,REDBRIDGE PRODUCE & FLOWERS LTD T/A TOTAL PRODUCE,390977,Commissioning & Investment,Children's & Education Services,103,Supplies and Services,504,Equipment,5023,Revenue,03.GROCERIES & PROVISIONS
28-Jun-2017,7003575,102.64,REDBRIDGE PRODUCE & FLOWERS LTD T/A TOTAL PRODUCE,390977,Commissioning & Investment,Children's & Education Services,103,Supplies and Services,504,Equipment,5023,Revenue,03.GROCERIES & PROVISIONS
28-Jun-2017,7003575,7.20,REDBRIDGE PRODUCE & FLOWERS LTD T/A TOTAL PRODUCE,390977,Commissioning & Investment,Children's & Education Services,103,Supplies and Services,504,Equipment,5023,Revenue,03.GROCERIES & PROVISIONS
28-Jun-2017,7003575,6.08,REDBRIDGE PRODUCE & FLOWERS LTD T/A TOTAL PRODUCE,390977,Commissioning & Investment,Children's & Education Services,103,Supplies and Services,504,Equipment,5023,Revenue,03.GROCERIES & PROVISIONS
28-Jun-2017,7003575,113.11,REDBRIDGE PRODUCE & FLOWERS LTD T/A TOTAL PRODUCE,390977,Commissioning & Investment,Children's & Education Services,103,Supplies and Services,504,Equipment,5023,Revenue,03.GROCERIES & PROVISIONS
28-Jun-2017,7003575,14.82,REDBRIDGE PRODUCE & FLOWERS LTD T/A TOTAL PRODUCE,390977,Commissioning & Investment,Children's & Education Services,103,Supplies and Services,504,Equipment,5023,Revenue,03.GROCERIES & PROVISIONS
28-Jun-2017,7003575,78.59,REDBRIDGE PRODUCE & FLOWERS LTD T/A TOTAL PRODUCE,390977,"Health, Education, Care and Safeguarding",Children's & Education Services,103,Supplies and Services,504,Equipment,5023,Revenue,03.GROCERIES & PROVISIONS
28-Jun-2017,7003575,54.57,REDBRIDGE PRODUCE & FLOWERS LTD T/A TOTAL PRODUCE,390977,Commissioning & Investment,Children's & Education Services,103,Supplies and Services,504,Equipment,5023,Revenue,03.GROCERIES & PROVISIONS
28-Jun-2017,7003575,4.80,REDBRIDGE PRODUCE & FLOWERS LTD T/A TOTAL PRODUCE,390977,Commissioning & Investment,Children's & Education Services,103,Supplies and Services,504,Equipment,5023,Revenue,03.GROCERIES & PROVISIONS
28-Jun-2017,7003575,18.30,REDBRIDGE PRODUCE & FLOWERS LTD T/A TOTAL PRODUCE,390977,"Environment, Housing & Leisure",Cultural & Related Services,104,Supplies and Services,504,Equipment,5023,Revenue,03.GROCERIES & PROVISIONS
28-Jun-2017,7003575,1.76,REDBRIDGE PRODUCE & FLOWERS LTD T/A TOTAL PRODUCE,390977,Commissioning & Investment,Children's & Education Services,103,Supplies and Services,504,Equipment,5023,Revenue,03.GROCERIES & PROVISIONS
28-Jun-2017,7003575,1.48,REDBRIDGE PRODUCE & FLOWERS LTD T/A TOTAL PRODUCE,390977,Commissioning & Investment,Children's & Education Services,103,Supplies and Services,504,Equipment,5023,Revenue,03.GROCERIES & PROVISIONS
28-Jun-2017,7003575,3.84,REDBRIDGE PRODUCE & FLOWERS LTD T/A TOTAL PRODUCE,390977,Commissioning & Investment,Children's & Education Services,103,Supplies and Services,504,Equipment,5023,Revenue,03.GROCERIES & PROVISIONS
28-Jun-2017,7003575,1.40,REDBRIDGE PRODUCE & FLOWERS LTD T/A TOTAL PRODUCE,390977,Commissioning & Investment,Children's & Education Services,103,Supplies and Services,504,Equipment,5023,Revenue,03.GROCERIES & PROVISIONS
28-Jun-2017,7003575,46.77,REDBRIDGE PRODUCE & FLOWERS LTD T/A TOTAL PRODUCE,390977,Commissioning & Investment,Children's & Education Services,103,Supplies and Services,504,Equipment,5023,Revenue,03.GROCERIES & PROVISIONS
28-Jun-2017,7003575,0.70,REDBRIDGE PRODUCE & FLOWERS LTD T/A TOTAL PRODUCE,390977,Commissioning & Investment,Children's & Education Services,103,Supplies and Services,504,Equipment,5023,Revenue,03.GROCERIES & PROVISIONS
28-Jun-2017,7003575,72.45,REDBRIDGE PRODUCE & FLOWERS LTD T/A TOTAL PRODUCE,390977,Commissioning & Investment,Children's & Education Services,103,Supplies and Services,504,Equipment,5023,Revenue,03.GROCERIES & PROVISIONS
28-Jun-2017,7003575,4.80,REDBRIDGE PRODUCE & FLOWERS LTD T/A TOTAL PRODUCE,390977,Commissioning & Investment,Children's & Education Services,103,Supplies and Services,504,Equipment,5023,Revenue,03.GROCERIES & PROVISIONS
28-Jun-2017,7003575,35.54,REDBRIDGE PRODUCE & FLOWERS LTD T/A TOTAL PRODUCE,390977,Commissioning & Investment,Children's & Education Services,103,Supplies and Services,504,Equipment,5023,Revenue,03.GROCERIES & PROVISIONS
28-Jun-2017,7003575,8.40,REDBRIDGE PRODUCE & FLOWERS LTD T/A TOTAL PRODUCE,390977,Commissioning & Investment,Children's & Education Services,103,Supplies and Services,504,Equipment,5023,Revenue,03.GROCERIES & PROVISIONS
28-Jun-2017,7003575,259.21,REDBRIDGE PRODUCE & FLOWERS LTD T/A TOTAL PRODUCE,390977,Commissioning & Investment,Children's & Education Services,103,Supplies and Services,504,Equipment,5023,Revenue,03.GROCERIES & PROVISIONS
28-Jun-2017,7003575,16.40,REDBRIDGE PRODUCE & FLOWERS LTD T/A TOTAL PRODUCE,390977,Commissioning & Investment,Children's & Education Services,103,Supplies and Services,504,Equipment,5023,Revenue,03.GROCERIES & PROVISIONS
28-Jun-2017,7003575,36.86,REDBRIDGE PRODUCE & FLOWERS LTD T/A TOTAL PRODUCE,390977,Commissioning & Investment,Children's & Education Services,103,Supplies and Services,504,Equipment,5023,Revenue,03.GROCERIES & PROVISIONS
28-Jun-2017,7003575,12.38,REDBRIDGE PRODUCE & FLOWERS LTD T/A TOTAL PRODUCE,390977,Commissioning & Investment,Children's & Education Services,103,Supplies and Services,504,Equipment,5023,Revenue,03.GROCERIES & PROVISIONS
28-Jun-2017,7003575,4.80,REDBRIDGE PRODUCE & FLOWERS LTD T/A TOTAL PRODUCE,390977,Commissioning & Investment,Children's & Education Services,103,Supplies and Services,504,Equipment,5023,Revenue,03.GROCERIES & PROVISIONS
28-Jun-2017,7003575,38.99,REDBRIDGE PRODUCE & FLOWERS LTD T/A TOTAL PRODUCE,390977,Commissioning & Investment,Children's & Education Services,103,Supplies and Services,504,Equipment,5023,Revenue,03.GROCERIES & PROVISIONS
28-Jun-2017,7003575,93.51,REDBRIDGE PRODUCE & FLOWERS LTD T/A TOTAL PRODUCE,390977,Commissioning & Investment,Children's & Education Services,103,Supplies and Services,504,Equipment,5023,Revenue,03.GROCERIES & PROVISIONS
28-Jun-2017,7003575,18.12,REDBRIDGE PRODUCE & FLOWERS LTD T/A TOTAL PRODUCE,390977,Commissioning & Investment,Children's & Education Services,103,Supplies and Services,504,Equipment,5023,Revenue,03.GROCERIES & PROVISIONS
28-Jun-2017,7003575,71.92,REDBRIDGE PRODUCE & FLOWERS LTD T/A TOTAL PRODUCE,390977,Commissioning & Investment,Children's & Education Services,103,Supplies and Services,504,Equipment,5023,Revenue,03.GROCERIES & PROVISIONS
28-Jun-2017,7003575,3.06,REDBRIDGE PRODUCE & FLOWERS LTD T/A TOTAL PRODUCE,390977,Commissioning & Investment,Children's & Education Services,103,Supplies and Services,504,Equipment,5023,Revenue,03.GROCERIES & PROVISIONS
28-Jun-2017,7003575,0.89,REDBRIDGE PRODUCE & FLOWERS LTD T/A TOTAL PRODUCE,390977,Commissioning & Investment,Children's & Education Services,103,Supplies and Services,504,Equipment,5023,Revenue,03.GROCERIES & PROVISIONS
28-Jun-2017,7003575,2.78,REDBRIDGE PRODUCE & FLOWERS LTD T/A TOTAL PRODUCE,390977,Commissioning & Investment,Children's & Education Services,103,Supplies and Services,504,Equipment,5023,Revenue,03.GROCERIES & PROVISIONS
28-Jun-2017,7003575,16.68,REDBRIDGE PRODUCE & FLOWERS LTD T/A TOTAL PRODUCE,390977,Commissioning & Investment,Children's & Education Services,103,Supplies and Services,504,Equipment,5023,Revenue,03.GROCERIES & PROVISIONS
28-Jun-2017,7003575,9.20,REDBRIDGE PRODUCE & FLOWERS LTD T/A TOTAL PRODUCE,390977,Commissioning & Investment,Children's & Education Services,103,Supplies and Services,504,Equipment,5023,Revenue,03.GROCERIES & PROVISIONS
28-Jun-2017,7003575,75.55,REDBRIDGE PRODUCE & FLOWERS LTD T/A TOTAL PRODUCE,390977,Commissioning & Investment,Children's & Education Services,103,Supplies and Services,504,Equipment,5023,Revenue,03.GROCERIES & PROVISIONS
28-Jun-2017,7003575,9.76,REDBRIDGE PRODUCE & FLOWERS LTD T/A TOTAL PRODUCE,390977,Commissioning & Investment,Children's & Education Services,103,Supplies and Services,504,Equipment,5023,Revenue,03.GROCERIES & PROVISIONS
28-Jun-2017,7003575,1.04,REDBRIDGE PRODUCE & FLOWERS LTD T/A TOTAL PRODUCE,390977,Commissioning & Investment,Children's & Education Services,103,Supplies and Services,504,Equipment,5023,Revenue,03.GROCERIES & PROVISIONS
28-Jun-2017,7003575,278.20,REDBRIDGE PRODUCE & FLOWERS LTD T/A TOTAL PRODUCE,390977,Commissioning & Investment,Children's & Education Services,103,Supplies and Services,504,Equipment,5023,Revenue,03.GROCERIES & PROVISIONS
28-Jun-2017,7003575,55.23,REDBRIDGE PRODUCE & FLOWERS LTD T/A TOTAL PRODUCE,390977,Commissioning & Investment,Children's & Education Services,103,Supplies and Services,504,Equipment,5023,Revenue,03.GROCERIES & PROVISIONS
28-Jun-2017,7003575,1.78,REDBRIDGE PRODUCE & FLOWERS LTD T/A TOTAL PRODUCE,390977,Commissioning & Investment,Children's & Education Services,103,Supplies and Services,504,Equipment,5023,Revenue,03.GROCERIES & PROVISIONS
28-Jun-2017,7003575,2.68,REDBRIDGE PRODUCE & FLOWERS LTD T/A TOTAL PRODUCE,390977,Commissioning & Investment,Children's & Education Services,103,Supplies and Services,504,Equipment,5023,Revenue,03.GROCERIES & PROVISIONS
28-Jun-2017,7003575,13.20,REDBRIDGE PRODUCE & FLOWERS LTD T/A TOTAL PRODUCE,390977,Commissioning & Investment,Children's & Education Services,103,Supplies and Services,504,Equipment,5023,Revenue,03.GROCERIES & PROVISIONS
28-Jun-2017,7003575,4.52,REDBRIDGE PRODUCE & FLOWERS LTD T/A TOTAL PRODUCE,390977,Commissioning & Investment,Children's & Education Services,103,Supplies and Services,504,Equipment,5023,Revenue,03.GROCERIES & PROVISIONS
28-Jun-2017,7003575,1.08,REDBRIDGE PRODUCE & FLOWERS LTD T/A TOTAL PRODUCE,390977,Commissioning & Investment,Children's & Education Services,103,Supplies and Services,504,Equipment,5023,Revenue,03.GROCERIES & PROVISIONS
28-Jun-2017,7003575,0.52,REDBRIDGE PRODUCE & FLOWERS LTD T/A TOTAL PRODUCE,390977,Commissioning & Investment,Children's & Education Services,103,Supplies and Services,504,Equipment,5023,Revenue,03.GROCERIES & PROVISIONS
28-Jun-2017,7003575,1.43,REDBRIDGE PRODUCE & FLOWERS LTD T/A TOTAL PRODUCE,390977,Commissioning & Investment,Children's & Education Services,103,Supplies and Services,504,Equipment,5023,Revenue,03.GROCERIES & PROVISIONS
28-Jun-2017,7003575,239.08,REDBRIDGE PRODUCE & FLOWERS LTD T/A TOTAL PRODUCE,390977,Commissioning & Investment,Children's & Education Services,103,Supplies and Services,504,Equipment,5023,Revenue,03.GROCERIES & PROVISIONS
28-Jun-2017,7003575,235.27,REDBRIDGE PRODUCE & FLOWERS LTD T/A TOTAL PRODUCE,390977,Commissioning & Investment,Children's & Education Services,103,Supplies and Services,504,Equipment,5023,Revenue,03.GROCERIES & PROVISIONS
28-Jun-2017,7003575,1.20,REDBRIDGE PRODUCE & FLOWERS LTD T/A TOTAL PRODUCE,390977,Commissioning & Investment,Children's & Education Services,103,Supplies and Services,504,Equipment,5023,Revenue,03.GROCERIES & PROVISIONS
28-Jun-2017,7003575,7.20,REDBRIDGE PRODUCE & FLOWERS LTD T/A TOTAL PRODUCE,390977,Commissioning & Investment,Children's & Education Services,103,Supplies and Services,504,Equipment,5023,Revenue,03.GROCERIES & PROVISIONS
28-Jun-2017,7003575,9.22,REDBRIDGE PRODUCE & FLOWERS LTD T/A TOTAL PRODUCE,390977,Commissioning & Investment,Children's & Education Services,103,Supplies and Services,504,Equipment,5023,Revenue,03.GROCERIES & PROVISIONS
28-Jun-2017,7003575,17.81,REDBRIDGE PRODUCE & FLOWERS LTD T/A TOTAL PRODUCE,390977,Commissioning & Investment,Children's & Education Services,103,Supplies and Services,504,Equipment,5023,Revenue,03.GROCERIES & PROVISIONS
28-Jun-2017,7003575,40.98,REDBRIDGE PRODUCE & FLOWERS LTD T/A TOTAL PRODUCE,390977,Commissioning & Investment,Children's & Education Services,103,Supplies and Services,504,Equipment,5023,Revenue,03.GROCERIES & PROVISIONS
28-Jun-2017,7003575,18.47,REDBRIDGE PRODUCE & FLOWERS LTD T/A TOTAL PRODUCE,390977,"Environment, Housing & Leisure",Cultural & Related Services,104,Supplies and Services,504,Equipment,5023,Revenue,03.GROCERIES & PROVISIONS
28-Jun-2017,7003575,1.53,REDBRIDGE PRODUCE & FLOWERS LTD T/A TOTAL PRODUCE,390977,Commissioning & Investment,Children's & Education Services,103,Supplies and Services,504,Equipment,5023,Revenue,03.GROCERIES & PROVISIONS
28-Jun-2017,7003575,74.98,REDBRIDGE PRODUCE & FLOWERS LTD T/A TOTAL PRODUCE,390977,Commissioning & Investment,Children's & Education Services,103,Supplies and Services,504,Equipment,5023,Revenue,03.GROCERIES & PROVISIONS
28-Jun-2017,7003575,28.21,REDBRIDGE PRODUCE & FLOWERS LTD T/A TOTAL PRODUCE,390977,Commissioning & Investment,Children's & Education Services,103,Supplies and Services,504,Equipment,5023,Revenue,03.GROCERIES & PROVISIONS
28-Jun-2017,7003575,-2.26,REDBRIDGE PRODUCE & FLOWERS LTD T/A TOTAL PRODUCE,390977,Commissioning & Investment,Children's & Education Services,103,Supplies and Services,504,Equipment,5023,Revenue,03.GROCERIES & PROVISIONS
28-Jun-2017,7003575,16.68,REDBRIDGE PRODUCE & FLOWERS LTD T/A TOTAL PRODUCE,390977,Commissioning & Investment,Children's & Education Services,103,Supplies and Services,504,Equipment,5023,Revenue,03.GROCERIES & PROVISIONS
28-Jun-2017,7003575,2.08,REDBRIDGE PRODUCE & FLOWERS LTD T/A TOTAL PRODUCE,390977,Commissioning & Investment,Children's & Education Services,103,Supplies and Services,504,Equipment,5023,Revenue,03.GROCERIES & PROVISIONS
28-Jun-2017,7003575,1.20,REDBRIDGE PRODUCE & FLOWERS LTD T/A TOTAL PRODUCE,390977,Commissioning & Investment,Children's & Education Services,103,Supplies and Services,504,Equipment,5023,Revenue,03.GROCERIES & PROVISIONS
28-Jun-2017,7003575,-3.60,REDBRIDGE PRODUCE & FLOWERS LTD T/A TOTAL PRODUCE,390977,Commissioning & Investment,Children's & Education Services,103,Supplies and Services,504,Equipment,5023,Revenue,03.GROCERIES & PROVISIONS
28-Jun-2017,7003575,2.76,REDBRIDGE PRODUCE & FLOWERS LTD T/A TOTAL PRODUCE,390977,Commissioning & Investment,Children's & Education Services,103,Supplies and Services,504,Equipment,5023,Revenue,03.GROCERIES & PROVISIONS
28-Jun-2017,7003575,78.58,REDBRIDGE PRODUCE & FLOWERS LTD T/A TOTAL PRODUCE,390977,"Health, Education, Care and Safeguarding",Children's & Education Services,103,Supplies and Services,504,Equipment,5023,Revenue,03.GROCERIES & PROVISIONS
28-Jun-2017,7003575,6.00,REDBRIDGE PRODUCE & FLOWERS LTD T/A TOTAL PRODUCE,390977,Commissioning & Investment,Children's & Education Services,103,Supplies and Services,504,Equipment,5023,Revenue,03.GROCERIES & PROVISIONS
28-Jun-2017,7003575,3.64,REDBRIDGE PRODUCE & FLOWERS LTD T/A TOTAL PRODUCE,390977,Commissioning & Investment,Children's & Education Services,103,Supplies and Services,504,Equipment,5023,Revenue,03.GROCERIES & PROVISIONS
28-Jun-2017,7003575,3.68,REDBRIDGE PRODUCE & FLOWERS LTD T/A TOTAL PRODUCE,390977,Commissioning & Investment,Children's & Education Services,103,Supplies and Services,504,Equipment,5023,Revenue,03.GROCERIES & PROVISIONS
28-Jun-2017,7003575,1.53,REDBRIDGE PRODUCE & FLOWERS LTD T/A TOTAL PRODUCE,390977,Commissioning & Investment,Children's & Education Services,103,Supplies and Services,504,Equipment,5023,Revenue,03.GROCERIES & PROVISIONS
28-Jun-2017,7003575,0.94,REDBRIDGE PRODUCE & FLOWERS LTD T/A TOTAL PRODUCE,390977,Commissioning & Investment,Children's & Education Services,103,Supplies and Services,504,Equipment,5023,Revenue,03.GROCERIES & PROVISIONS
28-Jun-2017,7003575,56.59,REDBRIDGE PRODUCE & FLOWERS LTD T/A TOTAL PRODUCE,390977,Commissioning & Investment,Children's & Education Services,103,Supplies and Services,504,Equipment,5023,Revenue,03.GROCERIES & PROVISIONS
28-Jun-2017,7003575,28.80,REDBRIDGE PRODUCE & FLOWERS LTD T/A TOTAL PRODUCE,390977,Commissioning & Investment,Children's & Education Services,103,Supplies and Services,504,Equipment,5023,Revenue,03.GROCERIES & PROVISIONS
28-Jun-2017,7003575,0.88,REDBRIDGE PRODUCE & FLOWERS LTD T/A TOTAL PRODUCE,390977,Commissioning & Investment,Children's & Education Services,103,Supplies and Services,504,Equipment,5023,Revenue,03.GROCERIES & PROVISIONS
28-Jun-2017,7003575,0.70,REDBRIDGE PRODUCE & FLOWERS LTD T/A TOTAL PRODUCE,390977,Commissioning & Investment,Children's & Education Services,103,Supplies and Services,504,Equipment,5023,Revenue,03.GROCERIES & PROVISIONS
28-Jun-2017,7003575,0.94,REDBRIDGE PRODUCE & FLOWERS LTD T/A TOTAL PRODUCE,390977,Commissioning & Investment,Children's & Education Services,103,Supplies and Services,504,Equipment,5023,Revenue,03.GROCERIES & PROVISIONS
28-Jun-2017,7003575,27.91,REDBRIDGE PRODUCE & FLOWERS LTD T/A TOTAL PRODUCE,390977,Commissioning & Investment,Children's & Education Services,103,Supplies and Services,504,Equipment,5023,Revenue,03.GROCERIES & PROVISIONS
28-Jun-2017,7003575,1.64,REDBRIDGE PRODUCE & FLOWERS LTD T/A TOTAL PRODUCE,390977,Commissioning & Investment,Children's & Education Services,103,Supplies and Services,504,Equipment,5023,Revenue,03.GROCERIES & PROVISIONS
28-Jun-2017,7003575,8.89,REDBRIDGE PRODUCE & FLOWERS LTD T/A TOTAL PRODUCE,390977,Commissioning & Investment,Children's & Education Services,103,Supplies and Services,504,Equipment,5023,Revenue,03.GROCERIES & PROVISIONS
28-Jun-2017,7003575,62.51,REDBRIDGE PRODUCE & FLOWERS LTD T/A TOTAL PRODUCE,390977,Commissioning & Investment,Children's & Education Services,103,Supplies and Services,504,Equipment,5023,Revenue,03.GROCERIES & PROVISIONS
28-Jun-2017,7003575,-11.14,REDBRIDGE PRODUCE & FLOWERS LTD T/A TOTAL PRODUCE,390977,Commissioning & Investment,Children's & Education Services,103,Supplies and Services,504,Equipment,5023,Revenue,03.GROCERIES & PROVISIONS
28-Jun-2017,7003575,1.49,REDBRIDGE PRODUCE & FLOWERS LTD T/A TOTAL PRODUCE,390977,Commissioning & Investment,Children's & Education Services,103,Supplies and Services,504,Equipment,5023,Revenue,03.GROCERIES & PROVISIONS
28-Jun-2017,7003575,52.02,REDBRIDGE PRODUCE & FLOWERS LTD T/A TOTAL PRODUCE,390977,Commissioning & Investment,Children's & Education Services,103,Supplies and Services,504,Equipment,5023,Revenue,03.GROCERIES & PROVISIONS
28-Jun-2017,7003575,1.53,REDBRIDGE PRODUCE & FLOWERS LTD T/A TOTAL PRODUCE,390977,Commissioning & Investment,Children's & Education Services,103,Supplies and Services,504,Equipment,5023,Revenue,03.GROCERIES & PROVISIONS
28-Jun-2017,7003575,2.80,REDBRIDGE PRODUCE & FLOWERS LTD T/A TOTAL PRODUCE,390977,Commissioning & Investment,Children's & Education Services,103,Supplies and Services,504,Equipment,5023,Revenue,03.GROCERIES & PROVISIONS
28-Jun-2017,7003575,9.71,REDBRIDGE PRODUCE & FLOWERS LTD T/A TOTAL PRODUCE,390977,Commissioning & Investment,Children's & Education Services,103,Supplies and Services,504,Equipment,5023,Revenue,03.GROCERIES & PROVISIONS
28-Jun-2017,7003575,24.55,REDBRIDGE PRODUCE & FLOWERS LTD T/A TOTAL PRODUCE,390977,Commissioning & Investment,Children's & Education Services,103,Supplies and Services,504,Equipment,5023,Revenue,03.GROCERIES & PROVISIONS
28-Jun-2017,7003575,73.72,REDBRIDGE PRODUCE & FLOWERS LTD T/A TOTAL PRODUCE,390977,Commissioning & Investment,Children's & Education Services,103,Supplies and Services,504,Equipment,5023,Revenue,03.GROCERIES & PROVISIONS
28-Jun-2017,7003575,25.89,REDBRIDGE PRODUCE & FLOWERS LTD T/A TOTAL PRODUCE,390977,"Environment, Housing & Leisure",Cultural & Related Services,104,Supplies and Services,504,Equipment,5023,Revenue,03.GROCERIES & PROVISIONS
28-Jun-2017,7003575,5.52,REDBRIDGE PRODUCE & FLOWERS LTD T/A TOTAL PRODUCE,390977,Commissioning & Investment,Children's & Education Services,103,Supplies and Services,504,Equipment,5023,Revenue,03.GROCERIES & PROVISIONS
28-Jun-2017,7003575,3.68,REDBRIDGE PRODUCE & FLOWERS LTD T/A TOTAL PRODUCE,390977,Commissioning & Investment,Children's & Education Services,103,Supplies and Services,504,Equipment,5023,Revenue,03.GROCERIES & PROVISIONS
28-Jun-2017,7003575,2.68,REDBRIDGE PRODUCE & FLOWERS LTD T/A TOTAL PRODUCE,390977,Commissioning & Investment,Children's & Education Services,103,Supplies and Services,504,Equipment,5023,Revenue,03.GROCERIES & PROVISIONS
28-Jun-2017,7003575,51.99,REDBRIDGE PRODUCE & FLOWERS LTD T/A TOTAL PRODUCE,390977,Commissioning & Investment,Children's & Education Services,103,Supplies and Services,504,Equipment,5023,Revenue,03.GROCERIES & PROVISIONS
28-Jun-2017,7003575,73.38,REDBRIDGE PRODUCE & FLOWERS LTD T/A TOTAL PRODUCE,390977,Commissioning & Investment,Children's & Education Services,103,Supplies and Services,504,Equipment,5023,Revenue,03.GROCERIES & PROVISIONS
28-Jun-2017,7003575,1.13,REDBRIDGE PRODUCE & FLOWERS LTD T/A TOTAL PRODUCE,390977,Commissioning & Investment,Children's & Education Services,103,Supplies and Services,504,Equipment,5023,Revenue,03.GROCERIES & PROVISIONS
28-Jun-2017,7003575,14.34,REDBRIDGE PRODUCE & FLOWERS LTD T/A TOTAL PRODUCE,390977,Commissioning & Investment,Children's & Education Services,103,Supplies and Services,504,Equipment,5023,Revenue,03.GROCERIES & PROVISIONS
28-Jun-2017,7003575,3.68,REDBRIDGE PRODUCE & FLOWERS LTD T/A TOTAL PRODUCE,390977,Commissioning & Investment,Children's & Education Services,103,Supplies and Services,504,Equipment,5023,Revenue,03.GROCERIES & PROVISIONS
28-Jun-2017,7003575,5.52,REDBRIDGE PRODUCE & FLOWERS LTD T/A TOTAL PRODUCE,390977,Commissioning & Investment,Children's & Education Services,103,Supplies and Services,504,Equipment,5023,Revenue,03.GROCERIES & PROVISIONS
28-Jun-2017,7003575,68.40,REDBRIDGE PRODUCE & FLOWERS LTD T/A TOTAL PRODUCE,390977,Commissioning & Investment,Children's & Education Services,103,Supplies and Services,504,Equipment,5023,Revenue,03.GROCERIES & PROVISIONS
28-Jun-2017,7003575,4.92,REDBRIDGE PRODUCE & FLOWERS LTD T/A TOTAL PRODUCE,390977,Commissioning & Investment,Children's & Education Services,103,Supplies and Services,504,Equipment,5023,Revenue,03.GROCERIES & PROVISIONS
28-Jun-2017,7003575,1.43,REDBRIDGE PRODUCE & FLOWERS LTD T/A TOTAL PRODUCE,390977,Commissioning & Investment,Children's & Education Services,103,Supplies and Services,504,Equipment,5023,Revenue,03.GROCERIES & PROVISIONS
28-Jun-2017,7003575,86.87,REDBRIDGE PRODUCE & FLOWERS LTD T/A TOTAL PRODUCE,390977,Commissioning & Investment,Children's & Education Services,103,Supplies and Services,504,Equipment,5023,Revenue,03.GROCERIES & PROVISIONS
28-Jun-2017,7003575,3.68,REDBRIDGE PRODUCE & FLOWERS LTD T/A TOTAL PRODUCE,390977,Commissioning & Investment,Children's & Education Services,103,Supplies and Services,504,Equipment,5023,Revenue,03.GROCERIES & PROVISIONS
28-Jun-2017,7003575,1.82,REDBRIDGE PRODUCE & FLOWERS LTD T/A TOTAL PRODUCE,390977,Commissioning & Investment,Children's & Education Services,103,Supplies and Services,504,Equipment,5023,Revenue,03.GROCERIES & PROVISIONS
28-Jun-2017,7003575,7.20,REDBRIDGE PRODUCE & FLOWERS LTD T/A TOTAL PRODUCE,390977,Commissioning & Investment,Children's & Education Services,103,Supplies and Services,504,Equipment,5023,Revenue,03.GROCERIES & PROVISIONS
28-Jun-2017,7003575,105.03,REDBRIDGE PRODUCE & FLOWERS LTD T/A TOTAL PRODUCE,390977,Commissioning & Investment,Children's & Education Services,103,Supplies and Services,504,Equipment,5023,Revenue,03.GROCERIES & PROVISIONS
28-Jun-2017,7003575,1.71,REDBRIDGE PRODUCE & FLOWERS LTD T/A TOTAL PRODUCE,390977,Commissioning & Investment,Children's & Education Services,103,Supplies and Services,504,Equipment,5023,Revenue,03.GROCERIES & PROVISIONS
28-Jun-2017,7003575,7.20,REDBRIDGE PRODUCE & FLOWERS LTD T/A TOTAL PRODUCE,390977,Commissioning & Investment,Children's & Education Services,103,Supplies and Services,504,Equipment,5023,Revenue,03.GROCERIES & PROVISIONS
28-Jun-2017,7003575,31.31,REDBRIDGE PRODUCE & FLOWERS LTD T/A TOTAL PRODUCE,390977,Commissioning & Investment,Children's & Education Services,103,Supplies and Services,504,Equipment,5023,Revenue,03.GROCERIES & PROVISIONS
28-Jun-2017,7003575,1.92,REDBRIDGE PRODUCE & FLOWERS LTD T/A TOTAL PRODUCE,390977,Commissioning & Investment,Children's & Education Services,103,Supplies and Services,504,Equipment,5023,Revenue,03.GROCERIES & PROVISIONS
28-Jun-2017,7003575,8.34,REDBRIDGE PRODUCE & FLOWERS LTD T/A TOTAL PRODUCE,390977,Commissioning & Investment,Children's & Education Services,103,Supplies and Services,504,Equipment,5023,Revenue,03.GROCERIES & PROVISIONS
28-Jun-2017,7003575,4.80,REDBRIDGE PRODUCE & FLOWERS LTD T/A TOTAL PRODUCE,390977,Commissioning & Investment,Children's & Education Services,103,Supplies and Services,504,Equipment,5023,Revenue,03.GROCERIES & PROVISIONS
28-Jun-2017,7003575,56.77,REDBRIDGE PRODUCE & FLOWERS LTD T/A TOTAL PRODUCE,390977,"Environment, Housing & Leisure",Adult Social Care,101,Supplies and Services,504,Equipment,5023,Revenue,03.GROCERIES & PROVISIONS
28-Jun-2017,7003575,32.79,REDBRIDGE PRODUCE & FLOWERS LTD T/A TOTAL PRODUCE,390977,Commissioning & Investment,Children's & Education Services,103,Supplies and Services,504,Equipment,5023,Revenue,03.GROCERIES & PROVISIONS
28-Jun-2017,7003575,2.76,REDBRIDGE PRODUCE & FLOWERS LTD T/A TOTAL PRODUCE,390977,Commissioning & Investment,Children's & Education Services,103,Supplies and Services,504,Equipment,5023,Revenue,03.GROCERIES & PROVISIONS
28-Jun-2017,7003575,0.72,REDBRIDGE PRODUCE & FLOWERS LTD T/A TOTAL PRODUCE,390977,Commissioning & Investment,Children's & Education Services,103,Supplies and Services,504,Equipment,5023,Revenue,03.GROCERIES & PROVISIONS
28-Jun-2017,7003575,8.34,REDBRIDGE PRODUCE & FLOWERS LTD T/A TOTAL PRODUCE,390977,Commissioning & Investment,Children's & Education Services,103,Supplies and Services,504,Equipment,5023,Revenue,03.GROCERIES & PROVISIONS
28-Jun-2017,7003575,56.38,REDBRIDGE PRODUCE & FLOWERS LTD T/A TOTAL PRODUCE,390977,Commissioning & Investment,Children's & Education Services,103,Supplies and Services,504,Equipment,5023,Revenue,03.GROCERIES & PROVISIONS
28-Jun-2017,7003575,6.00,REDBRIDGE PRODUCE & FLOWERS LTD T/A TOTAL PRODUCE,390977,Commissioning & Investment,Children's & Education Services,103,Supplies and Services,504,Equipment,5023,Revenue,03.GROCERIES & PROVISIONS
28-Jun-2017,7003575,3.56,REDBRIDGE PRODUCE & FLOWERS LTD T/A TOTAL PRODUCE,390977,Commissioning & Investment,Children's & Education Services,103,Supplies and Services,504,Equipment,5023,Revenue,03.GROCERIES & PROVISIONS
28-Jun-2017,7003575,12.10,REDBRIDGE PRODUCE & FLOWERS LTD T/A TOTAL PRODUCE,390977,Commissioning & Investment,Children's & Education Services,103,Supplies and Services,504,Equipment,5023,Revenue,03.GROCERIES & PROVISIONS
28-Jun-2017,7003575,84.16,REDBRIDGE PRODUCE & FLOWERS LTD T/A TOTAL PRODUCE,390977,Commissioning & Investment,Children's & Education Services,103,Supplies and Services,504,Equipment,5023,Revenue,03.GROCERIES & PROVISIONS
28-Jun-2017,7003575,6.66,REDBRIDGE PRODUCE & FLOWERS LTD T/A TOTAL PRODUCE,390977,Commissioning & Investment,Children's & Education Services,103,Supplies and Services,504,Equipment,5023,Revenue,03.GROCERIES & PROVISIONS
28-Jun-2017,7003575,0.40,REDBRIDGE PRODUCE & FLOWERS LTD T/A TOTAL PRODUCE,390977,Commissioning & Investment,Children's & Education Services,103,Supplies and Services,504,Equipment,5023,Revenue,03.GROCERIES & PROVISIONS
28-Jun-2017,7003575,0.99,REDBRIDGE PRODUCE & FLOWERS LTD T/A TOTAL PRODUCE,390977,Commissioning & Investment,Children's & Education Services,103,Supplies and Services,504,Equipment,5023,Revenue,03.GROCERIES & PROVISIONS
28-Jun-2017,7003575,2.83,REDBRIDGE PRODUCE & FLOWERS LTD T/A TOTAL PRODUCE,390977,Commissioning & Investment,Children's & Education Services,103,Supplies and Services,504,Equipment,5023,Revenue,03.GROCERIES & PROVISIONS
28-Jun-2017,7003575,1.34,REDBRIDGE PRODUCE & FLOWERS LTD T/A TOTAL PRODUCE,390977,Commissioning & Investment,Children's & Education Services,103,Supplies and Services,504,Equipment,5023,Revenue,03.GROCERIES & PROVISIONS
28-Jun-2017,7003575,44.99,REDBRIDGE PRODUCE & FLOWERS LTD T/A TOTAL PRODUCE,390977,Commissioning & Investment,Children's & Education Services,103,Supplies and Services,504,Equipment,5023,Revenue,03.GROCERIES & PROVISIONS
28-Jun-2017,7003575,-5.94,REDBRIDGE PRODUCE & FLOWERS LTD T/A TOTAL PRODUCE,390977,Commissioning & Investment,Children's & Education Services,103,Supplies and Services,504,Equipment,5023,Revenue,03.GROCERIES & PROVISIONS
28-Jun-2017,7003575,1.78,REDBRIDGE PRODUCE & FLOWERS LTD T/A TOTAL PRODUCE,390977,Commissioning & Investment,Children's & Education Services,103,Supplies and Services,504,Equipment,5023,Revenue,03.GROCERIES & PROVISIONS
28-Jun-2017,7003575,21.35,REDBRIDGE PRODUCE & FLOWERS LTD T/A TOTAL PRODUCE,390977,Commissioning & Investment,Children's & Education Services,103,Supplies and Services,504,Equipment,5023,Revenue,03.GROCERIES & PROVISIONS
28-Jun-2017,7003575,36.88,REDBRIDGE PRODUCE & FLOWERS LTD T/A TOTAL PRODUCE,390977,Commissioning & Investment,Children's & Education Services,103,Supplies and Services,504,Equipment,5023,Revenue,03.GROCERIES & PROVISIONS
28-Jun-2017,7003575,5.97,REDBRIDGE PRODUCE & FLOWERS LTD T/A TOTAL PRODUCE,390977,"Environment, Housing & Leisure",Cultural & Related Services,104,Supplies and Services,504,Equipment,5023,Revenue,03.GROCERIES & PROVISIONS
28-Jun-2017,7003575,84.22,REDBRIDGE PRODUCE & FLOWERS LTD T/A TOTAL PRODUCE,390977,Commissioning & Investment,Children's & Education Services,103,Supplies and Services,504,Equipment,5023,Revenue,03.GROCERIES & PROVISIONS
28-Jun-2017,7003575,1.78,REDBRIDGE PRODUCE & FLOWERS LTD T/A TOTAL PRODUCE,390977,Commissioning & Investment,Children's & Education Services,103,Supplies and Services,504,Equipment,5023,Revenue,03.GROCERIES & PROVISIONS
28-Jun-2017,7003575,9.71,REDBRIDGE PRODUCE & FLOWERS LTD T/A TOTAL PRODUCE,390977,Commissioning & Investment,Children's & Education Services,103,Supplies and Services,504,Equipment,5023,Revenue,03.GROCERIES & PROVISIONS
28-Jun-2017,7003575,21.96,REDBRIDGE PRODUCE & FLOWERS LTD T/A TOTAL PRODUCE,390977,Commissioning & Investment,Children's & Education Services,103,Supplies and Services,504,Equipment,5023,Revenue,03.GROCERIES & PROVISIONS
28-Jun-2017,7003575,7.96,REDBRIDGE PRODUCE & FLOWERS LTD T/A TOTAL PRODUCE,390977,Commissioning & Investment,Children's & Education Services,103,Supplies and Services,504,Equipment,5023,Revenue,03.GROCERIES & PROVISIONS
28-Jun-2017,7003575,52.43,REDBRIDGE PRODUCE & FLOWERS LTD T/A TOTAL PRODUCE,390977,Commissioning & Investment,Children's & Education Services,103,Supplies and Services,504,Equipment,5023,Revenue,03.GROCERIES & PROVISIONS
28-Jun-2017,7003575,8.40,REDBRIDGE PRODUCE & FLOWERS LTD T/A TOTAL PRODUCE,390977,Commissioning & Investment,Children's & Education Services,103,Supplies and Services,504,Equipment,5023,Revenue,03.GROCERIES & PROVISIONS
28-Jun-2017,7003575,73.99,REDBRIDGE PRODUCE & FLOWERS LTD T/A TOTAL PRODUCE,390977,Commissioning & Investment,Children's & Education Services,103,Supplies and Services,504,Equipment,5023,Revenue,03.GROCERIES & PROVISIONS
28-Jun-2017,7003575,53.24,REDBRIDGE PRODUCE & FLOWERS LTD T/A TOTAL PRODUCE,390977,Commissioning & Investment,Children's & Education Services,103,Supplies and Services,504,Equipment,5023,Revenue,03.GROCERIES & PROVISIONS
28-Jun-2017,7003575,2.40,REDBRIDGE PRODUCE & FLOWERS LTD T/A TOTAL PRODUCE,390977,Commissioning & Investment,Children's & Education Services,103,Supplies and Services,504,Equipment,5023,Revenue,03.GROCERIES & PROVISIONS
28-Jun-2017,7003575,0.85,REDBRIDGE PRODUCE & FLOWERS LTD T/A TOTAL PRODUCE,390977,Commissioning & Investment,Children's & Education Services,103,Supplies and Services,504,Equipment,5023,Revenue,03.GROCERIES & PROVISIONS
28-Jun-2017,7003575,104.38,REDBRIDGE PRODUCE & FLOWERS LTD T/A TOTAL PRODUCE,390977,Commissioning & Investment,Children's & Education Services,103,Supplies and Services,504,Equipment,5023,Revenue,03.GROCERIES & PROVISIONS
28-Jun-2017,7003575,54.23,REDBRIDGE PRODUCE & FLOWERS LTD T/A TOTAL PRODUCE,390977,Commissioning & Investment,Children's & Education Services,103,Supplies and Services,504,Equipment,5023,Revenue,03.GROCERIES & PROVISIONS
28-Jun-2017,7003575,41.76,REDBRIDGE PRODUCE & FLOWERS LTD T/A TOTAL PRODUCE,390977,Commissioning & Investment,Children's & Education Services,103,Supplies and Services,504,Equipment,5023,Revenue,03.GROCERIES & PROVISIONS
28-Jun-2017,7003575,85.04,REDBRIDGE PRODUCE & FLOWERS LTD T/A TOTAL PRODUCE,390977,Commissioning & Investment,Children's & Education Services,103,Supplies and Services,504,Equipment,5023,Revenue,03.GROCERIES & PROVISIONS
28-Jun-2017,7003575,10.80,REDBRIDGE PRODUCE & FLOWERS LTD T/A TOTAL PRODUCE,390977,Commissioning & Investment,Children's & Education Services,103,Supplies and Services,504,Equipment,5023,Revenue,03.GROCERIES & PROVISIONS
28-Jun-2017,7003575,-0.89,REDBRIDGE PRODUCE & FLOWERS LTD T/A TOTAL PRODUCE,390977,Commissioning & Investment,Children's & Education Services,103,Supplies and Services,504,Equipment,5023,Revenue,03.GROCERIES & PROVISIONS
28-Jun-2017,7003575,10.80,REDBRIDGE PRODUCE & FLOWERS LTD T/A TOTAL PRODUCE,390977,Commissioning & Investment,Children's & Education Services,103,Supplies and Services,504,Equipment,5023,Revenue,03.GROCERIES & PROVISIONS
28-Jun-2017,7003575,38.75,REDBRIDGE PRODUCE & FLOWERS LTD T/A TOTAL PRODUCE,390977,Commissioning & Investment,Children's & Education Services,103,Supplies and Services,504,Equipment,5023,Revenue,03.GROCERIES & PROVISIONS
28-Jun-2017,7003575,-16.68,REDBRIDGE PRODUCE & FLOWERS LTD T/A TOTAL PRODUCE,390977,Commissioning & Investment,Children's & Education Services,103,Supplies and Services,504,Equipment,5023,Revenue,03.GROCERIES & PROVISIONS
28-Jun-2017,7003575,4.04,REDBRIDGE PRODUCE & FLOWERS LTD T/A TOTAL PRODUCE,390977,Commissioning & Investment,Children's & Education Services,103,Supplies and Services,504,Equipment,5023,Revenue,03.GROCERIES & PROVISIONS
28-Jun-2017,7003575,132.03,REDBRIDGE PRODUCE & FLOWERS LTD T/A TOTAL PRODUCE,390977,Commissioning & Investment,Children's & Education Services,103,Supplies and Services,504,Equipment,5023,Revenue,03.GROCERIES & PROVISIONS
28-Jun-2017,7003575,54.81,REDBRIDGE PRODUCE & FLOWERS LTD T/A TOTAL PRODUCE,390977,Commissioning & Investment,Children's & Education Services,103,Supplies and Services,504,Equipment,5023,Revenue,03.GROCERIES & PROVISIONS
28-Jun-2017,7003575,5.52,REDBRIDGE PRODUCE & FLOWERS LTD T/A TOTAL PRODUCE,390977,Commissioning & Investment,Children's & Education Services,103,Supplies and Services,504,Equipment,5023,Revenue,03.GROCERIES & PROVISIONS
28-Jun-2017,7003575,8.90,REDBRIDGE PRODUCE & FLOWERS LTD T/A TOTAL PRODUCE,390977,Commissioning & Investment,Children's & Education Services,103,Supplies and Services,504,Equipment,5023,Revenue,03.GROCERIES & PROVISIONS
28-Jun-2017,7003575,11.68,REDBRIDGE PRODUCE & FLOWERS LTD T/A TOTAL PRODUCE,390977,Commissioning & Investment,Children's & Education Services,103,Supplies and Services,504,Equipment,5023,Revenue,03.GROCERIES & PROVISIONS
28-Jun-2017,7003575,2.46,REDBRIDGE PRODUCE & FLOWERS LTD T/A TOTAL PRODUCE,390977,Commissioning & Investment,Children's & Education Services,103,Supplies and Services,504,Equipment,5023,Revenue,03.GROCERIES & PROVISIONS
28-Jun-2017,7003575,184.74,REDBRIDGE PRODUCE & FLOWERS LTD T/A TOTAL PRODUCE,390977,Commissioning & Investment,Children's & Education Services,103,Supplies and Services,504,Equipment,5023,Revenue,03.GROCERIES & PROVISIONS
28-Jun-2017,7003575,28.82,REDBRIDGE PRODUCE & FLOWERS LTD T/A TOTAL PRODUCE,390977,Commissioning & Investment,Children's & Education Services,103,Supplies and Services,504,Equipment,5023,Revenue,03.GROCERIES & PROVISIONS
28-Jun-2017,7003575,2.76,REDBRIDGE PRODUCE & FLOWERS LTD T/A TOTAL PRODUCE,390977,Commissioning & Investment,Children's & Education Services,103,Supplies and Services,504,Equipment,5023,Revenue,03.GROCERIES & PROVISIONS
28-Jun-2017,7003575,1.13,REDBRIDGE PRODUCE & FLOWERS LTD T/A TOTAL PRODUCE,390977,Commissioning & Investment,Children's & Education Services,103,Supplies and Services,504,Equipment,5023,Revenue,03.GROCERIES & PROVISIONS
28-Jun-2017,7003575,51.42,REDBRIDGE PRODUCE & FLOWERS LTD T/A TOTAL PRODUCE,390977,Commissioning & Investment,Children's & Education Services,103,Supplies and Services,504,Equipment,5023,Revenue,03.GROCERIES & PROVISIONS
28-Jun-2017,7003575,3.68,REDBRIDGE PRODUCE & FLOWERS LTD T/A TOTAL PRODUCE,390977,Commissioning & Investment,Children's & Education Services,103,Supplies and Services,504,Equipment,5023,Revenue,03.GROCERIES & PROVISIONS
28-Jun-2017,7003575,5.60,REDBRIDGE PRODUCE & FLOWERS LTD T/A TOTAL PRODUCE,390977,Commissioning & Investment,Children's & Education Services,103,Supplies and Services,504,Equipment,5023,Revenue,03.GROCERIES & PROVISIONS
28-Jun-2017,7003575,51.98,REDBRIDGE PRODUCE & FLOWERS LTD T/A TOTAL PRODUCE,390977,Commissioning & Investment,Children's & Education Services,103,Supplies and Services,504,Equipment,5023,Revenue,03.GROCERIES & PROVISIONS
28-Jun-2017,7003575,3.68,REDBRIDGE PRODUCE & FLOWERS LTD T/A TOTAL PRODUCE,390977,Commissioning & Investment,Children's & Education Services,103,Supplies and Services,504,Equipment,5023,Revenue,03.GROCERIES & PROVISIONS
28-Jun-2017,7003575,35.15,REDBRIDGE PRODUCE & FLOWERS LTD T/A TOTAL PRODUCE,390977,Commissioning & Investment,Children's & Education Services,103,Supplies and Services,504,Equipment,5023,Revenue,03.GROCERIES & PROVISIONS
28-Jun-2017,7003575,20.68,REDBRIDGE PRODUCE & FLOWERS LTD T/A TOTAL PRODUCE,390977,Commissioning & Investment,Children's & Education Services,103,Supplies and Services,504,Equipment,5023,Revenue,03.GROCERIES & PROVISIONS
28-Jun-2017,7003575,19.83,REDBRIDGE PRODUCE & FLOWERS LTD T/A TOTAL PRODUCE,390977,"Environment, Housing & Leisure",Cultural & Related Services,104,Supplies and Services,504,Equipment,5023,Revenue,03.GROCERIES & PROVISIONS
28-Jun-2017,7003575,1.82,REDBRIDGE PRODUCE & FLOWERS LTD T/A TOTAL PRODUCE,390977,Commissioning & Investment,Children's & Education Services,103,Supplies and Services,504,Equipment,5023,Revenue,03.GROCERIES & PROVISIONS
28-Jun-2017,7003575,6.69,REDBRIDGE PRODUCE & FLOWERS LTD T/A TOTAL PRODUCE,390977,"Health, Education, Care and Safeguarding",Children's & Education Services,103,Supplies and Services,504,Equipment,5023,Revenue,03.GROCERIES & PROVISIONS
28-Jun-2017,7003575,14.10,REDBRIDGE PRODUCE & FLOWERS LTD T/A TOTAL PRODUCE,390977,Commissioning & Investment,Children's & Education Services,103,Supplies and Services,504,Equipment,5023,Revenue,03.GROCERIES & PROVISIONS
28-Jun-2017,7003575,19.20,REDBRIDGE PRODUCE & FLOWERS LTD T/A TOTAL PRODUCE,390977,Commissioning & Investment,Children's & Education Services,103,Supplies and Services,504,Equipment,5023,Revenue,03.GROCERIES & PROVISIONS
28-Jun-2017,7003575,2.80,REDBRIDGE PRODUCE & FLOWERS LTD T/A TOTAL PRODUCE,390977,Commissioning & Investment,Children's & Education Services,103,Supplies and Services,504,Equipment,5023,Revenue,03.GROCERIES & PROVISIONS
28-Jun-2017,7003575,2.67,REDBRIDGE PRODUCE & FLOWERS LTD T/A TOTAL PRODUCE,390977,Commissioning & Investment,Children's & Education Services,103,Supplies and Services,504,Equipment,5023,Revenue,03.GROCERIES & PROVISIONS
28-Jun-2017,7003575,14.95,REDBRIDGE PRODUCE & FLOWERS LTD T/A TOTAL PRODUCE,390977,Commissioning & Investment,Children's & Education Services,103,Supplies and Services,504,Equipment,5023,Revenue,03.GROCERIES & PROVISIONS
28-Jun-2017,7003575,78.72,REDBRIDGE PRODUCE & FLOWERS LTD T/A TOTAL PRODUCE,390977,Commissioning & Investment,Children's & Education Services,103,Supplies and Services,504,Equipment,5023,Revenue,03.GROCERIES & PROVISIONS
28-Jun-2017,7003575,60.55,REDBRIDGE PRODUCE & FLOWERS LTD T/A TOTAL PRODUCE,390977,Commissioning & Investment,Children's & Education Services,103,Supplies and Services,504,Equipment,5023,Revenue,03.GROCERIES & PROVISIONS
28-Jun-2017,7003575,5.34,REDBRIDGE PRODUCE & FLOWERS LTD T/A TOTAL PRODUCE,390977,Commissioning & Investment,Children's & Education Services,103,Supplies and Services,504,Equipment,5023,Revenue,03.GROCERIES & PROVISIONS
28-Jun-2017,7003575,22.24,REDBRIDGE PRODUCE & FLOWERS LTD T/A TOTAL PRODUCE,390977,Commissioning & Investment,Children's & Education Services,103,Supplies and Services,504,Equipment,5023,Revenue,03.GROCERIES & PROVISIONS
28-Jun-2017,7003575,65.60,REDBRIDGE PRODUCE & FLOWERS LTD T/A TOTAL PRODUCE,390977,Commissioning & Investment,Children's & Education Services,103,Supplies and Services,504,Equipment,5023,Revenue,03.GROCERIES & PROVISIONS
28-Jun-2017,7003575,1.92,REDBRIDGE PRODUCE & FLOWERS LTD T/A TOTAL PRODUCE,390977,Commissioning & Investment,Children's & Education Services,103,Supplies and Services,504,Equipment,5023,Revenue,03.GROCERIES & PROVISIONS
28-Jun-2017,7003575,36.34,REDBRIDGE PRODUCE & FLOWERS LTD T/A TOTAL PRODUCE,390977,Commissioning & Investment,Children's & Education Services,103,Supplies and Services,504,Equipment,5023,Revenue,03.GROCERIES & PROVISIONS
28-Jun-2017,7003575,2.46,REDBRIDGE PRODUCE & FLOWERS LTD T/A TOTAL PRODUCE,390977,Commissioning & Investment,Children's & Education Services,103,Supplies and Services,504,Equipment,5023,Revenue,03.GROCERIES & PROVISIONS
28-Jun-2017,7003575,52.37,REDBRIDGE PRODUCE & FLOWERS LTD T/A TOTAL PRODUCE,390977,Commissioning & Investment,Children's & Education Services,103,Supplies and Services,504,Equipment,5023,Revenue,03.GROCERIES & PROVISIONS
28-Jun-2017,7003575,8.08,REDBRIDGE PRODUCE & FLOWERS LTD T/A TOTAL PRODUCE,390977,Commissioning & Investment,Children's & Education Services,103,Supplies and Services,504,Equipment,5023,Revenue,03.GROCERIES & PROVISIONS
28-Jun-2017,7003575,214.50,REDBRIDGE PRODUCE & FLOWERS LTD T/A TOTAL PRODUCE,390977,Commissioning & Investment,Children's & Education Services,103,Supplies and Services,504,Equipment,5023,Revenue,03.GROCERIES & PROVISIONS
28-Jun-2017,7003575,1.88,REDBRIDGE PRODUCE & FLOWERS LTD T/A TOTAL PRODUCE,390977,Commissioning & Investment,Children's & Education Services,103,Supplies and Services,504,Equipment,5023,Revenue,03.GROCERIES & PROVISIONS
28-Jun-2017,7003575,70.10,REDBRIDGE PRODUCE & FLOWERS LTD T/A TOTAL PRODUCE,390977,Commissioning & Investment,Children's & Education Services,103,Supplies and Services,504,Equipment,5023,Revenue,03.GROCERIES & PROVISIONS
28-Jun-2017,7003575,112.73,REDBRIDGE PRODUCE & FLOWERS LTD T/A TOTAL PRODUCE,390977,Commissioning & Investment,Children's & Education Services,103,Supplies and Services,504,Equipment,5023,Revenue,03.GROCERIES & PROVISIONS
28-Jun-2017,7003575,45.91,REDBRIDGE PRODUCE & FLOWERS LTD T/A TOTAL PRODUCE,390977,Commissioning & Investment,Children's & Education Services,103,Supplies and Services,504,Equipment,5023,Revenue,03.GROCERIES & PROVISIONS
28-Jun-2017,7003575,50.83,REDBRIDGE PRODUCE & FLOWERS LTD T/A TOTAL PRODUCE,390977,Commissioning & Investment,Children's & Education Services,103,Supplies and Services,504,Equipment,5023,Revenue,03.GROCERIES & PROVISIONS
28-Jun-2017,7003575,9.60,REDBRIDGE PRODUCE & FLOWERS LTD T/A TOTAL PRODUCE,390977,Commissioning & Investment,Children's & Education Services,103,Supplies and Services,504,Equipment,5023,Revenue,03.GROCERIES & PROVISIONS
28-Jun-2017,7003575,69.54,REDBRIDGE PRODUCE & FLOWERS LTD T/A TOTAL PRODUCE,390977,Commissioning & Investment,Children's & Education Services,103,Supplies and Services,504,Equipment,5023,Revenue,03.GROCERIES & PROVISIONS
28-Jun-2017,7003575,7.20,REDBRIDGE PRODUCE & FLOWERS LTD T/A TOTAL PRODUCE,390977,Commissioning & Investment,Children's & Education Services,103,Supplies and Services,504,Equipment,5023,Revenue,03.GROCERIES & PROVISIONS
28-Jun-2017,7003575,44.36,REDBRIDGE PRODUCE & FLOWERS LTD T/A TOTAL PRODUCE,390977,Commissioning & Investment,Children's & Education Services,103,Supplies and Services,504,Equipment,5023,Revenue,03.GROCERIES & PROVISIONS
28-Jun-2017,7003575,0.70,REDBRIDGE PRODUCE & FLOWERS LTD T/A TOTAL PRODUCE,390977,Commissioning & Investment,Children's & Education Services,103,Supplies and Services,504,Equipment,5023,Revenue,03.GROCERIES & PROVISIONS
28-Jun-2017,7003575,1.78,REDBRIDGE PRODUCE & FLOWERS LTD T/A TOTAL PRODUCE,390977,Commissioning & Investment,Children's & Education Services,103,Supplies and Services,504,Equipment,5023,Revenue,03.GROCERIES & PROVISIONS
28-Jun-2017,7003575,76.16,REDBRIDGE PRODUCE & FLOWERS LTD T/A TOTAL PRODUCE,390977,Commissioning & Investment,Children's & Education Services,103,Supplies and Services,504,Equipment,5023,Revenue,03.GROCERIES & PROVISIONS
28-Jun-2017,7003575,201.94,REDBRIDGE PRODUCE & FLOWERS LTD T/A TOTAL PRODUCE,390977,Commissioning & Investment,Children's & Education Services,103,Supplies and Services,504,Equipment,5023,Revenue,03.GROCERIES & PROVISIONS
28-Jun-2017,7003575,45.88,REDBRIDGE PRODUCE & FLOWERS LTD T/A TOTAL PRODUCE,390977,Commissioning & Investment,Children's & Education Services,103,Supplies and Services,504,Equipment,5023,Revenue,03.GROCERIES & PROVISIONS
28-Jun-2017,7003575,35.58,REDBRIDGE PRODUCE & FLOWERS LTD T/A TOTAL PRODUCE,390977,"Health, Education, Care and Safeguarding",Children's & Education Services,103,Supplies and Services,504,Equipment,5023,Revenue,03.GROCERIES & PROVISIONS
28-Jun-2017,7003575,55.69,REDBRIDGE PRODUCE & FLOWERS LTD T/A TOTAL PRODUCE,390977,Commissioning & Investment,Children's & Education Services,103,Supplies and Services,504,Equipment,5023,Revenue,03.GROCERIES & PROVISIONS
28-Jun-2017,7003575,1.70,REDBRIDGE PRODUCE & FLOWERS LTD T/A TOTAL PRODUCE,390977,Commissioning & Investment,Children's & Education Services,103,Supplies and Services,504,Equipment,5023,Revenue,03.GROCERIES & PROVISIONS
28-Jun-2017,7003575,2.40,REDBRIDGE PRODUCE & FLOWERS LTD T/A TOTAL PRODUCE,390977,Commissioning & Investment,Children's & Education Services,103,Supplies and Services,504,Equipment,5023,Revenue,03.GROCERIES & PROVISIONS
28-Jun-2017,7003575,24.00,REDBRIDGE PRODUCE & FLOWERS LTD T/A TOTAL PRODUCE,390977,Commissioning & Investment,Children's & Education Services,103,Supplies and Services,504,Equipment,5023,Revenue,03.GROCERIES & PROVISIONS
28-Jun-2017,7003575,3.84,REDBRIDGE PRODUCE & FLOWERS LTD T/A TOTAL PRODUCE,390977,Commissioning & Investment,Children's & Education Services,103,Supplies and Services,504,Equipment,5023,Revenue,03.GROCERIES & PROVISIONS
28-Jun-2017,7003575,5.32,REDBRIDGE PRODUCE & FLOWERS LTD T/A TOTAL PRODUCE,390977,Commissioning & Investment,Children's & Education Services,103,Supplies and Services,504,Equipment,5023,Revenue,03.GROCERIES & PROVISIONS
28-Jun-2017,7003575,-1.13,REDBRIDGE PRODUCE & FLOWERS LTD T/A TOTAL PRODUCE,390977,Commissioning & Investment,Children's & Education Services,103,Supplies and Services,504,Equipment,5023,Revenue,03.GROCERIES & PROVISIONS
28-Jun-2017,7003575,8.40,REDBRIDGE PRODUCE & FLOWERS LTD T/A TOTAL PRODUCE,390977,Commissioning & Investment,Children's & Education Services,103,Supplies and Services,504,Equipment,5023,Revenue,03.GROCERIES & PROVISIONS
28-Jun-2017,7003575,8.40,REDBRIDGE PRODUCE & FLOWERS LTD T/A TOTAL PRODUCE,390977,Commissioning & Investment,Children's & Education Services,103,Supplies and Services,504,Equipment,5023,Revenue,03.GROCERIES & PROVISIONS
28-Jun-2017,7003575,3.60,REDBRIDGE PRODUCE & FLOWERS LTD T/A TOTAL PRODUCE,390977,Commissioning & Investment,Children's & Education Services,103,Supplies and Services,504,Equipment,5023,Revenue,03.GROCERIES & PROVISIONS
28-Jun-2017,7003575,8.40,REDBRIDGE PRODUCE & FLOWERS LTD T/A TOTAL PRODUCE,390977,Commissioning & Investment,Children's & Education Services,103,Supplies and Services,504,Equipment,5023,Revenue,03.GROCERIES & PROVISIONS
28-Jun-2017,7003575,7.20,REDBRIDGE PRODUCE & FLOWERS LTD T/A TOTAL PRODUCE,390977,Commissioning & Investment,Children's & Education Services,103,Supplies and Services,504,Equipment,5023,Revenue,03.GROCERIES & PROVISIONS
28-Jun-2017,7003575,6.00,REDBRIDGE PRODUCE & FLOWERS LTD T/A TOTAL PRODUCE,390977,Commissioning & Investment,Children's & Education Services,103,Supplies and Services,504,Equipment,5023,Revenue,03.GROCERIES & PROVISIONS
28-Jun-2017,7003575,239.06,REDBRIDGE PRODUCE & FLOWERS LTD T/A TOTAL PRODUCE,390977,Commissioning & Investment,Children's & Education Services,103,Supplies and Services,504,Equipment,5023,Revenue,03.GROCERIES & PROVISIONS
28-Jun-2017,7003575,7.36,REDBRIDGE PRODUCE & FLOWERS LTD T/A TOTAL PRODUCE,390977,Commissioning & Investment,Children's & Education Services,103,Supplies and Services,504,Equipment,5023,Revenue,03.GROCERIES & PROVISIONS
28-Jun-2017,7003575,5.95,REDBRIDGE PRODUCE & FLOWERS LTD T/A TOTAL PRODUCE,390977,"Health, Education, Care and Safeguarding",Children's & Education Services,103,Supplies and Services,504,Equipment,5023,Revenue,03.GROCERIES & PROVISIONS
28-Jun-2017,7003575,0.94,REDBRIDGE PRODUCE & FLOWERS LTD T/A TOTAL PRODUCE,390977,Commissioning & Investment,Children's & Education Services,103,Supplies and Services,504,Equipment,5023,Revenue,03.GROCERIES & PROVISIONS
28-Jun-2017,7003575,2.90,REDBRIDGE PRODUCE & FLOWERS LTD T/A TOTAL PRODUCE,390977,Commissioning & Investment,Children's & Education Services,103,Supplies and Services,504,Equipment,5023,Revenue,03.GROCERIES & PROVISIONS
28-Jun-2017,7003575,12.63,REDBRIDGE PRODUCE & FLOWERS LTD T/A TOTAL PRODUCE,390977,Commissioning & Investment,Children's & Education Services,103,Supplies and Services,504,Equipment,5023,Revenue,03.GROCERIES & PROVISIONS
28-Jun-2017,7003575,6.00,REDBRIDGE PRODUCE & FLOWERS LTD T/A TOTAL PRODUCE,390977,Commissioning & Investment,Children's & Education Services,103,Supplies and Services,504,Equipment,5023,Revenue,03.GROCERIES & PROVISIONS
28-Jun-2017,7003575,16.56,REDBRIDGE PRODUCE & FLOWERS LTD T/A TOTAL PRODUCE,390977,Commissioning & Investment,Children's & Education Services,103,Supplies and Services,504,Equipment,5023,Revenue,03.GROCERIES & PROVISIONS
28-Jun-2017,7003575,1.40,REDBRIDGE PRODUCE & FLOWERS LTD T/A TOTAL PRODUCE,390977,"Environment, Housing & Leisure",Adult Social Care,101,Supplies and Services,504,Equipment,5023,Revenue,03.GROCERIES & PROVISIONS
28-Jun-2017,7003575,2.73,REDBRIDGE PRODUCE & FLOWERS LTD T/A TOTAL PRODUCE,390977,Commissioning & Investment,Children's & Education Services,103,Supplies and Services,504,Equipment,5023,Revenue,03.GROCERIES & PROVISIONS
28-Jun-2017,7003575,6.00,REDBRIDGE PRODUCE & FLOWERS LTD T/A TOTAL PRODUCE,390977,Commissioning & Investment,Children's & Education Services,103,Supplies and Services,504,Equipment,5023,Revenue,03.GROCERIES & PROVISIONS
28-Jun-2017,7003575,14.40,REDBRIDGE PRODUCE & FLOWERS LTD T/A TOTAL PRODUCE,390977,Commissioning & Investment,Children's & Education Services,103,Supplies and Services,504,Equipment,5023,Revenue,03.GROCERIES & PROVISIONS
28-Jun-2017,7003575,49.11,REDBRIDGE PRODUCE & FLOWERS LTD T/A TOTAL PRODUCE,390977,Commissioning & Investment,Children's & Education Services,103,Supplies and Services,504,Equipment,5023,Revenue,03.GROCERIES & PROVISIONS
28-Jun-2017,7003575,4.55,REDBRIDGE PRODUCE & FLOWERS LTD T/A TOTAL PRODUCE,390977,Commissioning & Investment,Children's & Education Services,103,Supplies and Services,504,Equipment,5023,Revenue,03.GROCERIES & PROVISIONS
28-Jun-2017,7003575,1.78,REDBRIDGE PRODUCE & FLOWERS LTD T/A TOTAL PRODUCE,390977,Commissioning & Investment,Children's & Education Services,103,Supplies and Services,504,Equipment,5023,Revenue,03.GROCERIES & PROVISIONS
28-Jun-2017,7003575,2.83,REDBRIDGE PRODUCE & FLOWERS LTD T/A TOTAL PRODUCE,390977,Commissioning & Investment,Children's & Education Services,103,Supplies and Services,504,Equipment,5023,Revenue,03.GROCERIES & PROVISIONS
28-Jun-2017,7003575,1.78,REDBRIDGE PRODUCE & FLOWERS LTD T/A TOTAL PRODUCE,390977,Commissioning & Investment,Children's & Education Services,103,Supplies and Services,504,Equipment,5023,Revenue,03.GROCERIES & PROVISIONS
28-Jun-2017,7003575,-1.13,REDBRIDGE PRODUCE & FLOWERS LTD T/A TOTAL PRODUCE,390977,Commissioning & Investment,Children's & Education Services,103,Supplies and Services,504,Equipment,5023,Revenue,03.GROCERIES & PROVISIONS
28-Jun-2017,7003575,48.00,REDBRIDGE PRODUCE & FLOWERS LTD T/A TOTAL PRODUCE,390977,Commissioning & Investment,Children's & Education Services,103,Supplies and Services,504,Equipment,5023,Revenue,03.GROCERIES & PROVISIONS
28-Jun-2017,7003575,4.60,REDBRIDGE PRODUCE & FLOWERS LTD T/A TOTAL PRODUCE,390977,Commissioning & Investment,Children's & Education Services,103,Supplies and Services,504,Equipment,5023,Revenue,03.GROCERIES & PROVISIONS
28-Jun-2017,7003575,7.20,REDBRIDGE PRODUCE & FLOWERS LTD T/A TOTAL PRODUCE,390977,Commissioning & Investment,Children's & Education Services,103,Supplies and Services,504,Equipment,5023,Revenue,03.GROCERIES & PROVISIONS
28-Jun-2017,7003575,9.71,REDBRIDGE PRODUCE & FLOWERS LTD T/A TOTAL PRODUCE,390977,Commissioning & Investment,Children's & Education Services,103,Supplies and Services,504,Equipment,5023,Revenue,03.GROCERIES & PROVISIONS
28-Jun-2017,7003575,8.40,REDBRIDGE PRODUCE & FLOWERS LTD T/A TOTAL PRODUCE,390977,Commissioning & Investment,Children's & Education Services,103,Supplies and Services,504,Equipment,5023,Revenue,03.GROCERIES & PROVISIONS
28-Jun-2017,7003575,47.60,REDBRIDGE PRODUCE & FLOWERS LTD T/A TOTAL PRODUCE,390977,Commissioning & Investment,Children's & Education Services,103,Supplies and Services,504,Equipment,5023,Revenue,03.GROCERIES & PROVISIONS
28-Jun-2017,7003575,72.09,REDBRIDGE PRODUCE & FLOWERS LTD T/A TOTAL PRODUCE,390977,Commissioning & Investment,Children's & Education Services,103,Supplies and Services,504,Equipment,5023,Revenue,03.GROCERIES & PROVISIONS
28-Jun-2017,7003575,78.78,REDBRIDGE PRODUCE & FLOWERS LTD T/A TOTAL PRODUCE,390977,Commissioning & Investment,Children's & Education Services,103,Supplies and Services,504,Equipment,5023,Revenue,03.GROCERIES & PROVISIONS
28-Jun-2017,7003575,13.01,REDBRIDGE PRODUCE & FLOWERS LTD T/A TOTAL PRODUCE,390977,Commissioning & Investment,Children's & Education Services,103,Supplies and Services,504,Equipment,5023,Revenue,03.GROCERIES & PROVISIONS
28-Jun-2017,7003575,63.22,REDBRIDGE PRODUCE & FLOWERS LTD T/A TOTAL PRODUCE,390977,Commissioning & Investment,Children's & Education Services,103,Supplies and Services,504,Equipment,5023,Revenue,03.GROCERIES & PROVISIONS
28-Jun-2017,7003575,47.23,REDBRIDGE PRODUCE & FLOWERS LTD T/A TOTAL PRODUCE,390977,Commissioning & Investment,Children's & Education Services,103,Supplies and Services,504,Equipment,5023,Revenue,03.GROCERIES & PROVISIONS
28-Jun-2017,7003575,3.84,REDBRIDGE PRODUCE & FLOWERS LTD T/A TOTAL PRODUCE,390977,Commissioning & Investment,Children's & Education Services,103,Supplies and Services,504,Equipment,5023,Revenue,03.GROCERIES & PROVISIONS
28-Jun-2017,7003575,1.36,REDBRIDGE PRODUCE & FLOWERS LTD T/A TOTAL PRODUCE,390977,Commissioning & Investment,Children's & Education Services,103,Supplies and Services,504,Equipment,5023,Revenue,03.GROCERIES & PROVISIONS
28-Jun-2017,7003575,1.08,REDBRIDGE PRODUCE & FLOWERS LTD T/A TOTAL PRODUCE,390977,Commissioning & Investment,Children's & Education Services,103,Supplies and Services,504,Equipment,5023,Revenue,03.GROCERIES & PROVISIONS
28-Jun-2017,7003575,1.34,REDBRIDGE PRODUCE & FLOWERS LTD T/A TOTAL PRODUCE,390977,Commissioning & Investment,Children's & Education Services,103,Supplies and Services,504,Equipment,5023,Revenue,03.GROCERIES & PROVISIONS
28-Jun-2017,7003575,54.70,REDBRIDGE PRODUCE & FLOWERS LTD T/A TOTAL PRODUCE,390977,Commissioning & Investment,Children's & Education Services,103,Supplies and Services,504,Equipment,5023,Revenue,03.GROCERIES & PROVISIONS
28-Jun-2017,7003575,3.50,REDBRIDGE PRODUCE & FLOWERS LTD T/A TOTAL PRODUCE,390977,Commissioning & Investment,Children's & Education Services,103,Supplies and Services,504,Equipment,5023,Revenue,03.GROCERIES & PROVISIONS
28-Jun-2017,7003575,17.55,REDBRIDGE PRODUCE & FLOWERS LTD T/A TOTAL PRODUCE,390977,Commissioning & Investment,Children's & Education Services,103,Supplies and Services,504,Equipment,5023,Revenue,03.GROCERIES & PROVISIONS
28-Jun-2017,7003575,2.76,REDBRIDGE PRODUCE & FLOWERS LTD T/A TOTAL PRODUCE,390977,Commissioning & Investment,Children's & Education Services,103,Supplies and Services,504,Equipment,5023,Revenue,03.GROCERIES & PROVISIONS
28-Jun-2017,7003575,4.80,REDBRIDGE PRODUCE & FLOWERS LTD T/A TOTAL PRODUCE,390977,Commissioning & Investment,Children's & Education Services,103,Supplies and Services,504,Equipment,5023,Revenue,03.GROCERIES & PROVISIONS
28-Jun-2017,7003575,55.97,REDBRIDGE PRODUCE & FLOWERS LTD T/A TOTAL PRODUCE,390977,Commissioning & Investment,Children's & Education Services,103,Supplies and Services,504,Equipment,5023,Revenue,03.GROCERIES & PROVISIONS
28-Jun-2017,7003575,4.29,REDBRIDGE PRODUCE & FLOWERS LTD T/A TOTAL PRODUCE,390977,Commissioning & Investment,Children's & Education Services,103,Supplies and Services,504,Equipment,5023,Revenue,03.GROCERIES & PROVISIONS
28-Jun-2017,7003575,3.80,REDBRIDGE PRODUCE & FLOWERS LTD T/A TOTAL PRODUCE,390977,Commissioning & Investment,Children's & Education Services,103,Supplies and Services,504,Equipment,5023,Revenue,03.GROCERIES & PROVISIONS
28-Jun-2017,7003575,46.27,REDBRIDGE PRODUCE & FLOWERS LTD T/A TOTAL PRODUCE,390977,Commissioning & Investment,Children's & Education Services,103,Supplies and Services,504,Equipment,5023,Revenue,03.GROCERIES & PROVISIONS
28-Jun-2017,7003575,-3.39,REDBRIDGE PRODUCE & FLOWERS LTD T/A TOTAL PRODUCE,390977,Commissioning & Investment,Children's & Education Services,103,Supplies and Services,504,Equipment,5023,Revenue,03.GROCERIES & PROVISIONS
28-Jun-2017,7003575,1.64,REDBRIDGE PRODUCE & FLOWERS LTD T/A TOTAL PRODUCE,390977,Commissioning & Investment,Children's & Education Services,103,Supplies and Services,504,Equipment,5023,Revenue,03.GROCERIES & PROVISIONS
28-Jun-2017,7003575,1.36,REDBRIDGE PRODUCE & FLOWERS LTD T/A TOTAL PRODUCE,390977,Commissioning & Investment,Children's & Education Services,103,Supplies and Services,504,Equipment,5023,Revenue,03.GROCERIES & PROVISIONS
28-Jun-2017,7003575,69.17,REDBRIDGE PRODUCE & FLOWERS LTD T/A TOTAL PRODUCE,390977,Commissioning & Investment,Children's & Education Services,103,Supplies and Services,504,Equipment,5023,Revenue,03.GROCERIES & PROVISIONS
28-Jun-2017,7003575,102.37,REDBRIDGE PRODUCE & FLOWERS LTD T/A TOTAL PRODUCE,390977,Commissioning & Investment,Children's & Education Services,103,Supplies and Services,504,Equipment,5023,Revenue,03.GROCERIES & PROVISIONS
28-Jun-2017,7003575,36.00,REDBRIDGE PRODUCE & FLOWERS LTD T/A TOTAL PRODUCE,390977,Commissioning & Investment,Children's & Education Services,103,Supplies and Services,504,Equipment,5023,Revenue,03.GROCERIES & PROVISIONS
28-Jun-2017,7003575,1.53,REDBRIDGE PRODUCE & FLOWERS LTD T/A TOTAL PRODUCE,390977,Commissioning & Investment,Children's & Education Services,103,Supplies and Services,504,Equipment,5023,Revenue,03.GROCERIES & PROVISIONS
28-Jun-2017,7003575,1.13,REDBRIDGE PRODUCE & FLOWERS LTD T/A TOTAL PRODUCE,390977,Commissioning & Investment,Children's & Education Services,103,Supplies and Services,504,Equipment,5023,Revenue,03.GROCERIES & PROVISIONS
28-Jun-2017,7003575,4.88,REDBRIDGE PRODUCE & FLOWERS LTD T/A TOTAL PRODUCE,390977,Commissioning & Investment,Children's & Education Services,103,Supplies and Services,504,Equipment,5023,Revenue,03.GROCERIES & PROVISIONS
28-Jun-2017,7003575,2.40,REDBRIDGE PRODUCE & FLOWERS LTD T/A TOTAL PRODUCE,390977,Commissioning & Investment,Children's & Education Services,103,Supplies and Services,504,Equipment,5023,Revenue,03.GROCERIES & PROVISIONS
28-Jun-2017,7003575,0.91,REDBRIDGE PRODUCE & FLOWERS LTD T/A TOTAL PRODUCE,390977,Commissioning & Investment,Children's & Education Services,103,Supplies and Services,504,Equipment,5023,Revenue,03.GROCERIES & PROVISIONS
28-Jun-2017,7003575,244.19,REDBRIDGE PRODUCE & FLOWERS LTD T/A TOTAL PRODUCE,390977,Commissioning & Investment,Children's & Education Services,103,Supplies and Services,504,Equipment,5023,Revenue,03.GROCERIES & PROVISIONS
28-Jun-2017,7003575,2.78,REDBRIDGE PRODUCE & FLOWERS LTD T/A TOTAL PRODUCE,390977,Commissioning & Investment,Children's & Education Services,103,Supplies and Services,504,Equipment,5023,Revenue,03.GROCERIES & PROVISIONS
28-Jun-2017,7003575,4.80,REDBRIDGE PRODUCE & FLOWERS LTD T/A TOTAL PRODUCE,390977,Commissioning & Investment,Children's & Education Services,103,Supplies and Services,504,Equipment,5023,Revenue,03.GROCERIES & PROVISIONS
28-Jun-2017,7003575,0.91,REDBRIDGE PRODUCE & FLOWERS LTD T/A TOTAL PRODUCE,390977,Commissioning & Investment,Children's & Education Services,103,Supplies and Services,504,Equipment,5023,Revenue,03.GROCERIES & PROVISIONS
28-Jun-2017,7003575,1.27,REDBRIDGE PRODUCE & FLOWERS LTD T/A TOTAL PRODUCE,390977,Commissioning & Investment,Children's & Education Services,103,Supplies and Services,504,Equipment,5023,Revenue,03.GROCERIES & PROVISIONS
28-Jun-2017,7003575,3.68,REDBRIDGE PRODUCE & FLOWERS LTD T/A TOTAL PRODUCE,390977,Commissioning & Investment,Children's & Education Services,103,Supplies and Services,504,Equipment,5023,Revenue,03.GROCERIES & PROVISIONS
28-Jun-2017,7003575,40.45,REDBRIDGE PRODUCE & FLOWERS LTD T/A TOTAL PRODUCE,390977,Commissioning & Investment,Children's & Education Services,103,Supplies and Services,504,Equipment,5023,Revenue,03.GROCERIES & PROVISIONS
28-Jun-2017,7003575,7.20,REDBRIDGE PRODUCE & FLOWERS LTD T/A TOTAL PRODUCE,390977,Commissioning & Investment,Children's & Education Services,103,Supplies and Services,504,Equipment,5023,Revenue,03.GROCERIES & PROVISIONS
28-Jun-2017,7003575,15.23,REDBRIDGE PRODUCE & FLOWERS LTD T/A TOTAL PRODUCE,390977,Commissioning & Investment,Children's & Education Services,103,Supplies and Services,504,Equipment,5023,Revenue,03.GROCERIES & PROVISIONS
28-Jun-2017,7003575,1.82,REDBRIDGE PRODUCE & FLOWERS LTD T/A TOTAL PRODUCE,390977,Commissioning & Investment,Children's & Education Services,103,Supplies and Services,504,Equipment,5023,Revenue,03.GROCERIES & PROVISIONS
28-Jun-2017,7003575,10.80,REDBRIDGE PRODUCE & FLOWERS LTD T/A TOTAL PRODUCE,390977,Commissioning & Investment,Children's & Education Services,103,Supplies and Services,504,Equipment,5023,Revenue,03.GROCERIES & PROVISIONS
28-Jun-2017,7003575,100.41,REDBRIDGE PRODUCE & FLOWERS LTD T/A TOTAL PRODUCE,390977,Commissioning & Investment,Children's & Education Services,103,Supplies and Services,504,Equipment,5023,Revenue,03.GROCERIES & PROVISIONS
28-Jun-2017,7003575,102.97,REDBRIDGE PRODUCE & FLOWERS LTD T/A TOTAL PRODUCE,390977,Commissioning & Investment,Children's & Education Services,103,Supplies and Services,504,Equipment,5023,Revenue,03.GROCERIES & PROVISIONS
28-Jun-2017,7003575,50.39,REDBRIDGE PRODUCE & FLOWERS LTD T/A TOTAL PRODUCE,390977,Commissioning & Investment,Children's & Education Services,103,Supplies and Services,504,Equipment,5023,Revenue,03.GROCERIES & PROVISIONS
28-Jun-2017,7003575,2.02,REDBRIDGE PRODUCE & FLOWERS LTD T/A TOTAL PRODUCE,390977,Commissioning & Investment,Children's & Education Services,103,Supplies and Services,504,Equipment,5023,Revenue,03.GROCERIES & PROVISIONS
28-Jun-2017,7003575,-1.84,REDBRIDGE PRODUCE & FLOWERS LTD T/A TOTAL PRODUCE,390977,Commissioning & Investment,Children's & Education Services,103,Supplies and Services,504,Equipment,5023,Revenue,03.GROCERIES & PROVISIONS
28-Jun-2017,7003575,1.75,REDBRIDGE PRODUCE & FLOWERS LTD T/A TOTAL PRODUCE,390977,Commissioning & Investment,Children's & Education Services,103,Supplies and Services,504,Equipment,5023,Revenue,03.GROCERIES & PROVISIONS
28-Jun-2017,7003575,110.27,REDBRIDGE PRODUCE & FLOWERS LTD T/A TOTAL PRODUCE,390977,Commissioning & Investment,Children's & Education Services,103,Supplies and Services,504,Equipment,5023,Revenue,03.GROCERIES & PROVISIONS
28-Jun-2017,7003575,1.36,REDBRIDGE PRODUCE & FLOWERS LTD T/A TOTAL PRODUCE,390977,Commissioning & Investment,Children's & Education Services,103,Supplies and Services,504,Equipment,5023,Revenue,03.GROCERIES & PROVISIONS
28-Jun-2017,7003575,13.20,REDBRIDGE PRODUCE & FLOWERS LTD T/A TOTAL PRODUCE,390977,Commissioning & Investment,Children's & Education Services,103,Supplies and Services,504,Equipment,5023,Revenue,03.GROCERIES & PROVISIONS
28-Jun-2017,7003575,4.80,REDBRIDGE PRODUCE & FLOWERS LTD T/A TOTAL PRODUCE,390977,Commissioning & Investment,Children's & Education Services,103,Supplies and Services,504,Equipment,5023,Revenue,03.GROCERIES & PROVISIONS
28-Jun-2017,7003575,9.71,REDBRIDGE PRODUCE & FLOWERS LTD T/A TOTAL PRODUCE,390977,Commissioning & Investment,Children's & Education Services,103,Supplies and Services,504,Equipment,5023,Revenue,03.GROCERIES & PROVISIONS
28-Jun-2017,7003575,4.80,REDBRIDGE PRODUCE & FLOWERS LTD T/A TOTAL PRODUCE,390977,Commissioning & Investment,Children's & Education Services,103,Supplies and Services,504,Equipment,5023,Revenue,03.GROCERIES & PROVISIONS
28-Jun-2017,7003575,3.56,REDBRIDGE PRODUCE & FLOWERS LTD T/A TOTAL PRODUCE,390977,Commissioning & Investment,Children's & Education Services,103,Supplies and Services,504,Equipment,5023,Revenue,03.GROCERIES & PROVISIONS
28-Jun-2017,7003575,1.13,REDBRIDGE PRODUCE & FLOWERS LTD T/A TOTAL PRODUCE,390977,Commissioning & Investment,Children's & Education Services,103,Supplies and Services,504,Equipment,5023,Revenue,03.GROCERIES & PROVISIONS
28-Jun-2017,7003575,45.79,REDBRIDGE PRODUCE & FLOWERS LTD T/A TOTAL PRODUCE,390977,Commissioning & Investment,Children's & Education Services,103,Supplies and Services,504,Equipment,5023,Revenue,03.GROCERIES & PROVISIONS
28-Jun-2017,7003575,1.36,REDBRIDGE PRODUCE & FLOWERS LTD T/A TOTAL PRODUCE,390977,Commissioning & Investment,Children's & Education Services,103,Supplies and Services,504,Equipment,5023,Revenue,03.GROCERIES & PROVISIONS
28-Jun-2017,7003575,1.78,REDBRIDGE PRODUCE & FLOWERS LTD T/A TOTAL PRODUCE,390977,Commissioning & Investment,Children's & Education Services,103,Supplies and Services,504,Equipment,5023,Revenue,03.GROCERIES & PROVISIONS
28-Jun-2017,7003575,104.88,REDBRIDGE PRODUCE & FLOWERS LTD T/A TOTAL PRODUCE,390977,Commissioning & Investment,Children's & Education Services,103,Supplies and Services,504,Equipment,5023,Revenue,03.GROCERIES & PROVISIONS
28-Jun-2017,7003575,1.92,REDBRIDGE PRODUCE & FLOWERS LTD T/A TOTAL PRODUCE,390977,Commissioning & Investment,Children's & Education Services,103,Supplies and Services,504,Equipment,5023,Revenue,03.GROCERIES & PROVISIONS
28-Jun-2017,7003575,8.40,REDBRIDGE PRODUCE & FLOWERS LTD T/A TOTAL PRODUCE,390977,Commissioning & Investment,Children's & Education Services,103,Supplies and Services,504,Equipment,5023,Revenue,03.GROCERIES & PROVISIONS
28-Jun-2017,7003575,5.52,REDBRIDGE PRODUCE & FLOWERS LTD T/A TOTAL PRODUCE,390977,Commissioning & Investment,Children's & Education Services,103,Supplies and Services,504,Equipment,5023,Revenue,03.GROCERIES & PROVISIONS
28-Jun-2017,7003575,21.19,REDBRIDGE PRODUCE & FLOWERS LTD T/A TOTAL PRODUCE,390977,Commissioning & Investment,Children's & Education Services,103,Supplies and Services,504,Equipment,5023,Revenue,03.GROCERIES & PROVISIONS
28-Jun-2017,7003575,96.32,REDBRIDGE PRODUCE & FLOWERS LTD T/A TOTAL PRODUCE,390977,Commissioning & Investment,Children's & Education Services,103,Supplies and Services,504,Equipment,5023,Revenue,03.GROCERIES & PROVISIONS
28-Jun-2017,7003575,11.14,REDBRIDGE PRODUCE & FLOWERS LTD T/A TOTAL PRODUCE,390977,Commissioning & Investment,Children's & Education Services,103,Supplies and Services,504,Equipment,5023,Revenue,03.GROCERIES & PROVISIONS
28-Jun-2017,7003575,2.08,REDBRIDGE PRODUCE & FLOWERS LTD T/A TOTAL PRODUCE,390977,Commissioning & Investment,Children's & Education Services,103,Supplies and Services,504,Equipment,5023,Revenue,03.GROCERIES & PROVISIONS
28-Jun-2017,7003575,68.16,REDBRIDGE PRODUCE & FLOWERS LTD T/A TOTAL PRODUCE,390977,Commissioning & Investment,Children's & Education Services,103,Supplies and Services,504,Equipment,5023,Revenue,03.GROCERIES & PROVISIONS
28-Jun-2017,7003575,1.92,REDBRIDGE PRODUCE & FLOWERS LTD T/A TOTAL PRODUCE,390977,Commissioning & Investment,Children's & Education Services,103,Supplies and Services,504,Equipment,5023,Revenue,03.GROCERIES & PROVISIONS
28-Jun-2017,7003575,32.87,REDBRIDGE PRODUCE & FLOWERS LTD T/A TOTAL PRODUCE,390977,Commissioning & Investment,Children's & Education Services,103,Supplies and Services,504,Equipment,5023,Revenue,03.GROCERIES & PROVISIONS
28-Jun-2017,7003575,39.31,REDBRIDGE PRODUCE & FLOWERS LTD T/A TOTAL PRODUCE,390977,Commissioning & Investment,Children's & Education Services,103,Supplies and Services,504,Equipment,5023,Revenue,03.GROCERIES & PROVISIONS
28-Jun-2017,7003575,2.85,REDBRIDGE PRODUCE & FLOWERS LTD T/A TOTAL PRODUCE,390977,Commissioning & Investment,Children's & Education Services,103,Supplies and Services,504,Equipment,5023,Revenue,03.GROCERIES & PROVISIONS
28-Jun-2017,7003575,90.32,REDBRIDGE PRODUCE & FLOWERS LTD T/A TOTAL PRODUCE,390977,"Environment, Housing & Leisure",Cultural & Related Services,104,Supplies and Services,504,Equipment,5023,Revenue,03.GROCERIES & PROVISIONS
28-Jun-2017,7003575,3.60,REDBRIDGE PRODUCE & FLOWERS LTD T/A TOTAL PRODUCE,390977,Commissioning & Investment,Children's & Education Services,103,Supplies and Services,504,Equipment,5023,Revenue,03.GROCERIES & PROVISIONS
28-Jun-2017,7003575,59.14,REDBRIDGE PRODUCE & FLOWERS LTD T/A TOTAL PRODUCE,390977,Commissioning & Investment,Children's & Education Services,103,Supplies and Services,504,Equipment,5023,Revenue,03.GROCERIES & PROVISIONS
28-Jun-2017,7003575,1.78,REDBRIDGE PRODUCE & FLOWERS LTD T/A TOTAL PRODUCE,390977,Commissioning & Investment,Children's & Education Services,103,Supplies and Services,504,Equipment,5023,Revenue,03.GROCERIES & PROVISIONS
28-Jun-2017,7003575,1.49,REDBRIDGE PRODUCE & FLOWERS LTD T/A TOTAL PRODUCE,390977,Commissioning & Investment,Children's & Education Services,103,Supplies and Services,504,Equipment,5023,Revenue,03.GROCERIES & PROVISIONS
28-Jun-2017,7003575,40.28,REDBRIDGE PRODUCE & FLOWERS LTD T/A TOTAL PRODUCE,390977,Commissioning & Investment,Children's & Education Services,103,Supplies and Services,504,Equipment,5023,Revenue,03.GROCERIES & PROVISIONS
28-Jun-2017,7003575,2.28,REDBRIDGE PRODUCE & FLOWERS LTD T/A TOTAL PRODUCE,390977,Commissioning & Investment,Children's & Education Services,103,Supplies and Services,504,Equipment,5023,Revenue,03.GROCERIES & PROVISIONS
28-Jun-2017,7003575,0.40,REDBRIDGE PRODUCE & FLOWERS LTD T/A TOTAL PRODUCE,390977,Commissioning & Investment,Children's & Education Services,103,Supplies and Services,504,Equipment,5023,Revenue,03.GROCERIES & PROVISIONS
28-Jun-2017,7003575,6.00,REDBRIDGE PRODUCE & FLOWERS LTD T/A TOTAL PRODUCE,390977,Commissioning & Investment,Children's & Education Services,103,Supplies and Services,504,Equipment,5023,Revenue,03.GROCERIES & PROVISIONS
28-Jun-2017,7003575,70.05,REDBRIDGE PRODUCE & FLOWERS LTD T/A TOTAL PRODUCE,390977,Commissioning & Investment,Children's & Education Services,103,Supplies and Services,504,Equipment,5023,Revenue,03.GROCERIES & PROVISIONS
28-Jun-2017,7003575,0.96,REDBRIDGE PRODUCE & FLOWERS LTD T/A TOTAL PRODUCE,390977,Commissioning & Investment,Children's & Education Services,103,Supplies and Services,504,Equipment,5023,Revenue,03.GROCERIES & PROVISIONS
28-Jun-2017,7003575,1.49,REDBRIDGE PRODUCE & FLOWERS LTD T/A TOTAL PRODUCE,390977,Commissioning & Investment,Children's & Education Services,103,Supplies and Services,504,Equipment,5023,Revenue,03.GROCERIES & PROVISIONS
28-Jun-2017,7003575,-3.88,REDBRIDGE PRODUCE & FLOWERS LTD T/A TOTAL PRODUCE,390977,Commissioning & Investment,Children's & Education Services,103,Supplies and Services,504,Equipment,5023,Revenue,03.GROCERIES & PROVISIONS
28-Jun-2017,7003575,112.48,REDBRIDGE PRODUCE & FLOWERS LTD T/A TOTAL PRODUCE,390977,Commissioning & Investment,Children's & Education Services,103,Supplies and Services,504,Equipment,5023,Revenue,03.GROCERIES & PROVISIONS
28-Jun-2017,7003575,23.52,REDBRIDGE PRODUCE & FLOWERS LTD T/A TOTAL PRODUCE,390977,Commissioning & Investment,Children's & Education Services,103,Supplies and Services,504,Equipment,5023,Revenue,03.GROCERIES & PROVISIONS
28-Jun-2017,7003575,20.94,REDBRIDGE PRODUCE & FLOWERS LTD T/A TOTAL PRODUCE,390977,Commissioning & Investment,Children's & Education Services,103,Supplies and Services,504,Equipment,5023,Revenue,03.GROCERIES & PROVISIONS
28-Jun-2017,7003575,36.97,REDBRIDGE PRODUCE & FLOWERS LTD T/A TOTAL PRODUCE,390977,Commissioning & Investment,Children's & Education Services,103,Supplies and Services,504,Equipment,5023,Revenue,03.GROCERIES & PROVISIONS
28-Jun-2017,7003575,9.60,REDBRIDGE PRODUCE & FLOWERS LTD T/A TOTAL PRODUCE,390977,Commissioning & Investment,Children's & Education Services,103,Supplies and Services,504,Equipment,5023,Revenue,03.GROCERIES & PROVISIONS
28-Jun-2017,7003575,1.92,REDBRIDGE PRODUCE & FLOWERS LTD T/A TOTAL PRODUCE,390977,Commissioning & Investment,Children's & Education Services,103,Supplies and Services,504,Equipment,5023,Revenue,03.GROCERIES & PROVISIONS
28-Jun-2017,7003575,128.68,REDBRIDGE PRODUCE & FLOWERS LTD T/A TOTAL PRODUCE,390977,"Environment, Housing & Leisure",Adult Social Care,101,Supplies and Services,504,Equipment,5023,Revenue,03.GROCERIES & PROVISIONS
28-Jun-2017,7003575,10.31,REDBRIDGE PRODUCE & FLOWERS LTD T/A TOTAL PRODUCE,390977,Commissioning & Investment,Children's & Education Services,103,Supplies and Services,504,Equipment,5023,Revenue,03.GROCERIES & PROVISIONS
28-Jun-2017,7003575,9.71,REDBRIDGE PRODUCE & FLOWERS LTD T/A TOTAL PRODUCE,390977,Commissioning & Investment,Children's & Education Services,103,Supplies and Services,504,Equipment,5023,Revenue,03.GROCERIES & PROVISIONS
28-Jun-2017,7003575,2.83,REDBRIDGE PRODUCE & FLOWERS LTD T/A TOTAL PRODUCE,390977,Commissioning & Investment,Children's & Education Services,103,Supplies and Services,504,Equipment,5023,Revenue,03.GROCERIES & PROVISIONS
28-Jun-2017,7003575,103.58,REDBRIDGE PRODUCE & FLOWERS LTD T/A TOTAL PRODUCE,390977,Commissioning & Investment,Children's & Education Services,103,Supplies and Services,504,Equipment,5023,Revenue,03.GROCERIES & PROVISIONS
28-Jun-2017,7003575,1.78,REDBRIDGE PRODUCE & FLOWERS LTD T/A TOTAL PRODUCE,390977,Commissioning & Investment,Children's & Education Services,103,Supplies and Services,504,Equipment,5023,Revenue,03.GROCERIES & PROVISIONS
28-Jun-2017,7003575,2.80,REDBRIDGE PRODUCE & FLOWERS LTD T/A TOTAL PRODUCE,390977,Commissioning & Investment,Children's & Education Services,103,Supplies and Services,504,Equipment,5023,Revenue,03.GROCERIES & PROVISIONS
28-Jun-2017,7003575,46.03,REDBRIDGE PRODUCE & FLOWERS LTD T/A TOTAL PRODUCE,390977,Commissioning & Investment,Children's & Education Services,103,Supplies and Services,504,Equipment,5023,Revenue,03.GROCERIES & PROVISIONS
28-Jun-2017,7003575,4.80,REDBRIDGE PRODUCE & FLOWERS LTD T/A TOTAL PRODUCE,390977,Commissioning & Investment,Children's & Education Services,103,Supplies and Services,504,Equipment,5023,Revenue,03.GROCERIES & PROVISIONS
28-Jun-2017,7003575,3.60,REDBRIDGE PRODUCE & FLOWERS LTD T/A TOTAL PRODUCE,390977,Commissioning & Investment,Children's & Education Services,103,Supplies and Services,504,Equipment,5023,Revenue,03.GROCERIES & PROVISIONS
28-Jun-2017,7003575,55.37,REDBRIDGE PRODUCE & FLOWERS LTD T/A TOTAL PRODUCE,390977,Commissioning & Investment,Children's & Education Services,103,Supplies and Services,504,Equipment,5023,Revenue,03.GROCERIES & PROVISIONS
28-Jun-2017,7003575,12.00,REDBRIDGE PRODUCE & FLOWERS LTD T/A TOTAL PRODUCE,390977,Commissioning & Investment,Children's & Education Services,103,Supplies and Services,504,Equipment,5023,Revenue,03.GROCERIES & PROVISIONS
28-Jun-2017,7003575,28.91,REDBRIDGE PRODUCE & FLOWERS LTD T/A TOTAL PRODUCE,390977,Commissioning & Investment,Children's & Education Services,103,Supplies and Services,504,Equipment,5023,Revenue,03.GROCERIES & PROVISIONS
28-Jun-2017,7003575,0.60,REDBRIDGE PRODUCE & FLOWERS LTD T/A TOTAL PRODUCE,390977,Commissioning & Investment,Children's & Education Services,103,Supplies and Services,504,Equipment,5023,Revenue,03.GROCERIES & PROVISIONS
28-Jun-2017,7003575,2.99,REDBRIDGE PRODUCE & FLOWERS LTD T/A TOTAL PRODUCE,390977,"Environment, Housing & Leisure",Cultural & Related Services,104,Supplies and Services,504,Equipment,5023,Revenue,03.GROCERIES & PROVISIONS
28-Jun-2017,7003575,2.40,REDBRIDGE PRODUCE & FLOWERS LTD T/A TOTAL PRODUCE,390977,Commissioning & Investment,Children's & Education Services,103,Supplies and Services,504,Equipment,5023,Revenue,03.GROCERIES & PROVISIONS
28-Jun-2017,7003575,-1.13,REDBRIDGE PRODUCE & FLOWERS LTD T/A TOTAL PRODUCE,390977,Commissioning & Investment,Children's & Education Services,103,Supplies and Services,504,Equipment,5023,Revenue,03.GROCERIES & PROVISIONS
28-Jun-2017,7003575,15.25,REDBRIDGE PRODUCE & FLOWERS LTD T/A TOTAL PRODUCE,390977,Commissioning & Investment,Children's & Education Services,103,Supplies and Services,504,Equipment,5023,Revenue,03.GROCERIES & PROVISIONS
28-Jun-2017,7003575,104.28,REDBRIDGE PRODUCE & FLOWERS LTD T/A TOTAL PRODUCE,390977,Commissioning & Investment,Children's & Education Services,103,Supplies and Services,504,Equipment,5023,Revenue,03.GROCERIES & PROVISIONS
28-Jun-2017,7003575,0.63,REDBRIDGE PRODUCE & FLOWERS LTD T/A TOTAL PRODUCE,390977,Commissioning & Investment,Children's & Education Services,103,Supplies and Services,504,Equipment,5023,Revenue,03.GROCERIES & PROVISIONS
28-Jun-2017,7003575,1.78,REDBRIDGE PRODUCE & FLOWERS LTD T/A TOTAL PRODUCE,390977,Commissioning & Investment,Children's & Education Services,103,Supplies and Services,504,Equipment,5023,Revenue,03.GROCERIES & PROVISIONS
28-Jun-2017,7003575,1.36,REDBRIDGE PRODUCE & FLOWERS LTD T/A TOTAL PRODUCE,390977,Commissioning & Investment,Children's & Education Services,103,Supplies and Services,504,Equipment,5023,Revenue,03.GROCERIES & PROVISIONS
28-Jun-2017,7003575,1.43,REDBRIDGE PRODUCE & FLOWERS LTD T/A TOTAL PRODUCE,390977,Commissioning & Investment,Children's & Education Services,103,Supplies and Services,504,Equipment,5023,Revenue,03.GROCERIES & PROVISIONS
28-Jun-2017,7003575,50.62,REDBRIDGE PRODUCE & FLOWERS LTD T/A TOTAL PRODUCE,390977,Commissioning & Investment,Children's & Education Services,103,Supplies and Services,504,Equipment,5023,Revenue,03.GROCERIES & PROVISIONS
28-Jun-2017,7003575,19.46,REDBRIDGE PRODUCE & FLOWERS LTD T/A TOTAL PRODUCE,390977,Commissioning & Investment,Children's & Education Services,103,Supplies and Services,504,Equipment,5023,Revenue,03.GROCERIES & PROVISIONS
28-Jun-2017,7003575,2.46,REDBRIDGE PRODUCE & FLOWERS LTD T/A TOTAL PRODUCE,390977,Commissioning & Investment,Children's & Education Services,103,Supplies and Services,504,Equipment,5023,Revenue,03.GROCERIES & PROVISIONS
28-Jun-2017,7003575,229.86,REDBRIDGE PRODUCE & FLOWERS LTD T/A TOTAL PRODUCE,390977,Commissioning & Investment,Children's & Education Services,103,Supplies and Services,504,Equipment,5023,Revenue,03.GROCERIES & PROVISIONS
28-Jun-2017,7003575,12.51,REDBRIDGE PRODUCE & FLOWERS LTD T/A TOTAL PRODUCE,390977,Commissioning & Investment,Children's & Education Services,103,Supplies and Services,504,Equipment,5023,Revenue,03.GROCERIES & PROVISIONS
28-Jun-2017,7003575,44.52,REDBRIDGE PRODUCE & FLOWERS LTD T/A TOTAL PRODUCE,390977,Commissioning & Investment,Children's & Education Services,103,Supplies and Services,504,Equipment,5023,Revenue,03.GROCERIES & PROVISIONS
28-Jun-2017,7003575,4.17,REDBRIDGE PRODUCE & FLOWERS LTD T/A TOTAL PRODUCE,390977,Commissioning & Investment,Children's & Education Services,103,Supplies and Services,504,Equipment,5023,Revenue,03.GROCERIES & PROVISIONS
28-Jun-2017,7003575,20.49,REDBRIDGE PRODUCE & FLOWERS LTD T/A TOTAL PRODUCE,390977,Commissioning & Investment,Children's & Education Services,103,Supplies and Services,504,Equipment,5023,Revenue,03.GROCERIES & PROVISIONS
28-Jun-2017,7003575,33.86,REDBRIDGE PRODUCE & FLOWERS LTD T/A TOTAL PRODUCE,390977,Commissioning & Investment,Children's & Education Services,103,Supplies and Services,504,Equipment,5023,Revenue,03.GROCERIES & PROVISIONS
28-Jun-2017,7003575,19.42,REDBRIDGE PRODUCE & FLOWERS LTD T/A TOTAL PRODUCE,390977,Commissioning & Investment,Children's & Education Services,103,Supplies and Services,504,Equipment,5023,Revenue,03.GROCERIES & PROVISIONS
28-Jun-2017,7003575,20.40,REDBRIDGE PRODUCE & FLOWERS LTD T/A TOTAL PRODUCE,390977,Commissioning & Investment,Children's & Education Services,103,Supplies and Services,504,Equipment,5023,Revenue,03.GROCERIES & PROVISIONS
28-Jun-2017,7003575,77.97,REDBRIDGE PRODUCE & FLOWERS LTD T/A TOTAL PRODUCE,390977,"Environment, Housing & Leisure",Cultural & Related Services,104,Supplies and Services,504,Equipment,5023,Revenue,03.GROCERIES & PROVISIONS
28-Jun-2017,7003575,7.20,REDBRIDGE PRODUCE & FLOWERS LTD T/A TOTAL PRODUCE,390977,Commissioning & Investment,Children's & Education Services,103,Supplies and Services,504,Equipment,5023,Revenue,03.GROCERIES & PROVISIONS
28-Jun-2017,7003575,1.92,REDBRIDGE PRODUCE & FLOWERS LTD T/A TOTAL PRODUCE,390977,Commissioning & Investment,Children's & Education Services,103,Supplies and Services,504,Equipment,5023,Revenue,03.GROCERIES & PROVISIONS
28-Jun-2017,7003575,7.14,REDBRIDGE PRODUCE & FLOWERS LTD T/A TOTAL PRODUCE,390977,"Health, Education, Care and Safeguarding",Children's & Education Services,103,Supplies and Services,504,Equipment,5023,Revenue,03.GROCERIES & PROVISIONS
28-Jun-2017,7003575,2.40,REDBRIDGE PRODUCE & FLOWERS LTD T/A TOTAL PRODUCE,390977,Commissioning & Investment,Children's & Education Services,103,Supplies and Services,504,Equipment,5023,Revenue,03.GROCERIES & PROVISIONS
28-Jun-2017,7003575,2.40,REDBRIDGE PRODUCE & FLOWERS LTD T/A TOTAL PRODUCE,390977,Commissioning & Investment,Children's & Education Services,103,Supplies and Services,504,Equipment,5023,Revenue,03.GROCERIES & PROVISIONS
28-Jun-2017,7003575,12.24,REDBRIDGE PRODUCE & FLOWERS LTD T/A TOTAL PRODUCE,390977,Commissioning & Investment,Children's & Education Services,103,Supplies and Services,504,Equipment,5023,Revenue,03.GROCERIES & PROVISIONS
28-Jun-2017,7003575,1.78,REDBRIDGE PRODUCE & FLOWERS LTD T/A TOTAL PRODUCE,390977,Commissioning & Investment,Children's & Education Services,103,Supplies and Services,504,Equipment,5023,Revenue,03.GROCERIES & PROVISIONS
28-Jun-2017,7003575,1.84,REDBRIDGE PRODUCE & FLOWERS LTD T/A TOTAL PRODUCE,390977,Commissioning & Investment,Children's & Education Services,103,Supplies and Services,504,Equipment,5023,Revenue,03.GROCERIES & PROVISIONS
28-Jun-2017,7003575,2.80,REDBRIDGE PRODUCE & FLOWERS LTD T/A TOTAL PRODUCE,390977,Commissioning & Investment,Children's & Education Services,103,Supplies and Services,504,Equipment,5023,Revenue,03.GROCERIES & PROVISIONS
28-Jun-2017,7003575,49.95,REDBRIDGE PRODUCE & FLOWERS LTD T/A TOTAL PRODUCE,390977,"Environment, Housing & Leisure",Cultural & Related Services,104,Supplies and Services,504,Equipment,5023,Revenue,03.GROCERIES & PROVISIONS
28-Jun-2017,7003575,7.50,REDBRIDGE PRODUCE & FLOWERS LTD T/A TOTAL PRODUCE,390977,Commissioning & Investment,Children's & Education Services,103,Supplies and Services,504,Equipment,5023,Revenue,03.GROCERIES & PROVISIONS
28-Jun-2017,7003575,4.80,REDBRIDGE PRODUCE & FLOWERS LTD T/A TOTAL PRODUCE,390977,Commissioning & Investment,Children's & Education Services,103,Supplies and Services,504,Equipment,5023,Revenue,03.GROCERIES & PROVISIONS
28-Jun-2017,7003575,1.40,REDBRIDGE PRODUCE & FLOWERS LTD T/A TOTAL PRODUCE,390977,Commissioning & Investment,Children's & Education Services,103,Supplies and Services,504,Equipment,5023,Revenue,03.GROCERIES & PROVISIONS
28-Jun-2017,7003575,7.20,REDBRIDGE PRODUCE & FLOWERS LTD T/A TOTAL PRODUCE,390977,Commissioning & Investment,Children's & Education Services,103,Supplies and Services,504,Equipment,5023,Revenue,03.GROCERIES & PROVISIONS
28-Jun-2017,7003575,6.00,REDBRIDGE PRODUCE & FLOWERS LTD T/A TOTAL PRODUCE,390977,Commissioning & Investment,Children's & Education Services,103,Supplies and Services,504,Equipment,5023,Revenue,03.GROCERIES & PROVISIONS
28-Jun-2017,7003575,24.29,REDBRIDGE PRODUCE & FLOWERS LTD T/A TOTAL PRODUCE,390977,Commissioning & Investment,Children's & Education Services,103,Supplies and Services,504,Equipment,5023,Revenue,03.GROCERIES & PROVISIONS
28-Jun-2017,7003575,0.70,REDBRIDGE PRODUCE & FLOWERS LTD T/A TOTAL PRODUCE,390977,Commissioning & Investment,Children's & Education Services,103,Supplies and Services,504,Equipment,5023,Revenue,03.GROCERIES & PROVISIONS
28-Jun-2017,7003575,1.64,REDBRIDGE PRODUCE & FLOWERS LTD T/A TOTAL PRODUCE,390977,Commissioning & Investment,Children's & Education Services,103,Supplies and Services,504,Equipment,5023,Revenue,03.GROCERIES & PROVISIONS
28-Jun-2017,7003575,6.00,REDBRIDGE PRODUCE & FLOWERS LTD T/A TOTAL PRODUCE,390977,Commissioning & Investment,Children's & Education Services,103,Supplies and Services,504,Equipment,5023,Revenue,03.GROCERIES & PROVISIONS
28-Jun-2017,7003575,12.88,REDBRIDGE PRODUCE & FLOWERS LTD T/A TOTAL PRODUCE,390977,Commissioning & Investment,Children's & Education Services,103,Supplies and Services,504,Equipment,5023,Revenue,03.GROCERIES & PROVISIONS
28-Jun-2017,7003575,44.11,REDBRIDGE PRODUCE & FLOWERS LTD T/A TOTAL PRODUCE,390977,Commissioning & Investment,Children's & Education Services,103,Supplies and Services,504,Equipment,5023,Revenue,03.GROCERIES & PROVISIONS
28-Jun-2017,7003575,74.39,REDBRIDGE PRODUCE & FLOWERS LTD T/A TOTAL PRODUCE,390977,Commissioning & Investment,Children's & Education Services,103,Supplies and Services,504,Equipment,5023,Revenue,03.GROCERIES & PROVISIONS
28-Jun-2017,7003575,62.76,REDBRIDGE PRODUCE & FLOWERS LTD T/A TOTAL PRODUCE,390977,Commissioning & Investment,Children's & Education Services,103,Supplies and Services,504,Equipment,5023,Revenue,03.GROCERIES & PROVISIONS
28-Jun-2017,7003575,48.21,REDBRIDGE PRODUCE & FLOWERS LTD T/A TOTAL PRODUCE,390977,Commissioning & Investment,Children's & Education Services,103,Supplies and Services,504,Equipment,5023,Revenue,03.GROCERIES & PROVISIONS
28-Jun-2017,7003575,1.20,REDBRIDGE PRODUCE & FLOWERS LTD T/A TOTAL PRODUCE,390977,Commissioning & Investment,Children's & Education Services,103,Supplies and Services,504,Equipment,5023,Revenue,03.GROCERIES & PROVISIONS
28-Jun-2017,7003575,21.67,REDBRIDGE PRODUCE & FLOWERS LTD T/A TOTAL PRODUCE,390977,Commissioning & Investment,Children's & Education Services,103,Supplies and Services,504,Equipment,5023,Revenue,03.GROCERIES & PROVISIONS
28-Jun-2017,7003575,-1.00,REDBRIDGE PRODUCE & FLOWERS LTD T/A TOTAL PRODUCE,390977,Commissioning & Investment,Children's & Education Services,103,Supplies and Services,504,Equipment,5023,Revenue,03.GROCERIES & PROVISIONS
28-Jun-2017,7003575,2.28,REDBRIDGE PRODUCE & FLOWERS LTD T/A TOTAL PRODUCE,390977,Commissioning & Investment,Children's & Education Services,103,Supplies and Services,504,Equipment,5023,Revenue,03.GROCERIES & PROVISIONS
28-Jun-2017,7003575,5.36,REDBRIDGE PRODUCE & FLOWERS LTD T/A TOTAL PRODUCE,390977,Commissioning & Investment,Children's & Education Services,103,Supplies and Services,504,Equipment,5023,Revenue,03.GROCERIES & PROVISIONS
28-Jun-2017,7003575,5.60,REDBRIDGE PRODUCE & FLOWERS LTD T/A TOTAL PRODUCE,390977,Commissioning & Investment,Children's & Education Services,103,Supplies and Services,504,Equipment,5023,Revenue,03.GROCERIES & PROVISIONS
28-Jun-2017,7003575,-1.76,REDBRIDGE PRODUCE & FLOWERS LTD T/A TOTAL PRODUCE,390977,Commissioning & Investment,Children's & Education Services,103,Supplies and Services,504,Equipment,5023,Revenue,03.GROCERIES & PROVISIONS
28-Jun-2017,7003575,74.42,REDBRIDGE PRODUCE & FLOWERS LTD T/A TOTAL PRODUCE,390977,Commissioning & Investment,Children's & Education Services,103,Supplies and Services,504,Equipment,5023,Revenue,03.GROCERIES & PROVISIONS
28-Jun-2017,7003575,54.52,REDBRIDGE PRODUCE & FLOWERS LTD T/A TOTAL PRODUCE,390977,Commissioning & Investment,Children's & Education Services,103,Supplies and Services,504,Equipment,5023,Revenue,03.GROCERIES & PROVISIONS
28-Jun-2017,7003575,50.12,REDBRIDGE PRODUCE & FLOWERS LTD T/A TOTAL PRODUCE,390977,Commissioning & Investment,Children's & Education Services,103,Supplies and Services,504,Equipment,5023,Revenue,03.GROCERIES & PROVISIONS
28-Jun-2017,7003575,0.91,REDBRIDGE PRODUCE & FLOWERS LTD T/A TOTAL PRODUCE,390977,Commissioning & Investment,Children's & Education Services,103,Supplies and Services,504,Equipment,5023,Revenue,03.GROCERIES & PROVISIONS
28-Jun-2017,7003575,1.67,REDBRIDGE PRODUCE & FLOWERS LTD T/A TOTAL PRODUCE,390977,Commissioning & Investment,Children's & Education Services,103,Supplies and Services,504,Equipment,5023,Revenue,03.GROCERIES & PROVISIONS
28-Jun-2017,7003575,59.69,REDBRIDGE PRODUCE & FLOWERS LTD T/A TOTAL PRODUCE,390977,Commissioning & Investment,Children's & Education Services,103,Supplies and Services,504,Equipment,5023,Revenue,03.GROCERIES & PROVISIONS
28-Jun-2017,7003575,2.67,REDBRIDGE PRODUCE & FLOWERS LTD T/A TOTAL PRODUCE,390977,Commissioning & Investment,Children's & Education Services,103,Supplies and Services,504,Equipment,5023,Revenue,03.GROCERIES & PROVISIONS
28-Jun-2017,7003575,38.60,REDBRIDGE PRODUCE & FLOWERS LTD T/A TOTAL PRODUCE,390977,Commissioning & Investment,Children's & Education Services,103,Supplies and Services,504,Equipment,5023,Revenue,03.GROCERIES & PROVISIONS
28-Jun-2017,7003575,35.80,REDBRIDGE PRODUCE & FLOWERS LTD T/A TOTAL PRODUCE,390977,Commissioning & Investment,Children's & Education Services,103,Supplies and Services,504,Equipment,5023,Revenue,03.GROCERIES & PROVISIONS
28-Jun-2017,7003575,86.16,REDBRIDGE PRODUCE & FLOWERS LTD T/A TOTAL PRODUCE,390977,Commissioning & Investment,Children's & Education Services,103,Supplies and Services,504,Equipment,5023,Revenue,03.GROCERIES & PROVISIONS
28-Jun-2017,7003575,22.70,REDBRIDGE PRODUCE & FLOWERS LTD T/A TOTAL PRODUCE,390977,Commissioning & Investment,Children's & Education Services,103,Supplies and Services,504,Equipment,5023,Revenue,03.GROCERIES & PROVISIONS
28-Jun-2017,7003575,4.80,REDBRIDGE PRODUCE & FLOWERS LTD T/A TOTAL PRODUCE,390977,Commissioning & Investment,Children's & Education Services,103,Supplies and Services,504,Equipment,5023,Revenue,03.GROCERIES & PROVISIONS
28-Jun-2017,7003575,7.20,REDBRIDGE PRODUCE & FLOWERS LTD T/A TOTAL PRODUCE,390977,Commissioning & Investment,Children's & Education Services,103,Supplies and Services,504,Equipment,5023,Revenue,03.GROCERIES & PROVISIONS
28-Jun-2017,7003575,2.86,REDBRIDGE PRODUCE & FLOWERS LTD T/A TOTAL PRODUCE,390977,Commissioning & Investment,Children's & Education Services,103,Supplies and Services,504,Equipment,5023,Revenue,03.GROCERIES & PROVISIONS
28-Jun-2017,7003575,0.63,REDBRIDGE PRODUCE & FLOWERS LTD T/A TOTAL PRODUCE,390977,Commissioning & Investment,Children's & Education Services,103,Supplies and Services,504,Equipment,5023,Revenue,03.GROCERIES & PROVISIONS
28-Jun-2017,7003575,2.44,REDBRIDGE PRODUCE & FLOWERS LTD T/A TOTAL PRODUCE,390977,Commissioning & Investment,Children's & Education Services,103,Supplies and Services,504,Equipment,5023,Revenue,03.GROCERIES & PROVISIONS
28-Jun-2017,7003575,55.25,REDBRIDGE PRODUCE & FLOWERS LTD T/A TOTAL PRODUCE,390977,Commissioning & Investment,Children's & Education Services,103,Supplies and Services,504,Equipment,5023,Revenue,03.GROCERIES & PROVISIONS
28-Jun-2017,7003575,9.60,REDBRIDGE PRODUCE & FLOWERS LTD T/A TOTAL PRODUCE,390977,Commissioning & Investment,Children's & Education Services,103,Supplies and Services,504,Equipment,5023,Revenue,03.GROCERIES & PROVISIONS
28-Jun-2017,7003575,32.40,REDBRIDGE PRODUCE & FLOWERS LTD T/A TOTAL PRODUCE,390977,Commissioning & Investment,Children's & Education Services,103,Supplies and Services,504,Equipment,5023,Revenue,03.GROCERIES & PROVISIONS
28-Jun-2017,7003575,8.90,REDBRIDGE PRODUCE & FLOWERS LTD T/A TOTAL PRODUCE,390977,Commissioning & Investment,Children's & Education Services,103,Supplies and Services,504,Equipment,5023,Revenue,03.GROCERIES & PROVISIONS
28-Jun-2017,7003575,4.02,REDBRIDGE PRODUCE & FLOWERS LTD T/A TOTAL PRODUCE,390977,Commissioning & Investment,Children's & Education Services,103,Supplies and Services,504,Equipment,5023,Revenue,03.GROCERIES & PROVISIONS
28-Jun-2017,7003575,1.20,REDBRIDGE PRODUCE & FLOWERS LTD T/A TOTAL PRODUCE,390977,Commissioning & Investment,Children's & Education Services,103,Supplies and Services,504,Equipment,5023,Revenue,03.GROCERIES & PROVISIONS
28-Jun-2017,7003575,1.36,REDBRIDGE PRODUCE & FLOWERS LTD T/A TOTAL PRODUCE,390977,Commissioning & Investment,Children's & Education Services,103,Supplies and Services,504,Equipment,5023,Revenue,03.GROCERIES & PROVISIONS
28-Jun-2017,7003575,2.73,REDBRIDGE PRODUCE & FLOWERS LTD T/A TOTAL PRODUCE,390977,Commissioning & Investment,Children's & Education Services,103,Supplies and Services,504,Equipment,5023,Revenue,03.GROCERIES & PROVISIONS
28-Jun-2017,7003575,9.76,REDBRIDGE PRODUCE & FLOWERS LTD T/A TOTAL PRODUCE,390977,Commissioning & Investment,Children's & Education Services,103,Supplies and Services,504,Equipment,5023,Revenue,03.GROCERIES & PROVISIONS
28-Jun-2017,7003575,73.92,REDBRIDGE PRODUCE & FLOWERS LTD T/A TOTAL PRODUCE,390977,Commissioning & Investment,Children's & Education Services,103,Supplies and Services,504,Equipment,5023,Revenue,03.GROCERIES & PROVISIONS
28-Jun-2017,7003575,16.68,REDBRIDGE PRODUCE & FLOWERS LTD T/A TOTAL PRODUCE,390977,Commissioning & Investment,Children's & Education Services,103,Supplies and Services,504,Equipment,5023,Revenue,03.GROCERIES & PROVISIONS
28-Jun-2017,7003575,19.20,REDBRIDGE PRODUCE & FLOWERS LTD T/A TOTAL PRODUCE,390977,Commissioning & Investment,Children's & Education Services,103,Supplies and Services,504,Equipment,5023,Revenue,03.GROCERIES & PROVISIONS
28-Jun-2017,7003575,33.36,REDBRIDGE PRODUCE & FLOWERS LTD T/A TOTAL PRODUCE,390977,Commissioning & Investment,Children's & Education Services,103,Supplies and Services,504,Equipment,5023,Revenue,03.GROCERIES & PROVISIONS
28-Jun-2017,7003575,5.22,REDBRIDGE PRODUCE & FLOWERS LTD T/A TOTAL PRODUCE,390977,"Environment, Housing & Leisure",Cultural & Related Services,104,Supplies and Services,504,Equipment,5023,Revenue,03.GROCERIES & PROVISIONS
28-Jun-2017,7003575,-1.34,REDBRIDGE PRODUCE & FLOWERS LTD T/A TOTAL PRODUCE,390977,Commissioning & Investment,Children's & Education Services,103,Supplies and Services,504,Equipment,5023,Revenue,03.GROCERIES & PROVISIONS
28-Jun-2017,7003575,10.80,REDBRIDGE PRODUCE & FLOWERS LTD T/A TOTAL PRODUCE,390977,Commissioning & Investment,Children's & Education Services,103,Supplies and Services,504,Equipment,5023,Revenue,03.GROCERIES & PROVISIONS
28-Jun-2017,7003575,46.78,REDBRIDGE PRODUCE & FLOWERS LTD T/A TOTAL PRODUCE,390977,Commissioning & Investment,Children's & Education Services,103,Supplies and Services,504,Equipment,5023,Revenue,03.GROCERIES & PROVISIONS
28-Jun-2017,7003575,7.20,REDBRIDGE PRODUCE & FLOWERS LTD T/A TOTAL PRODUCE,390977,Commissioning & Investment,Children's & Education Services,103,Supplies and Services,504,Equipment,5023,Revenue,03.GROCERIES & PROVISIONS
28-Jun-2017,7003575,14.58,REDBRIDGE PRODUCE & FLOWERS LTD T/A TOTAL PRODUCE,390977,Commissioning & Investment,Children's & Education Services,103,Supplies and Services,504,Equipment,5023,Revenue,03.GROCERIES & PROVISIONS
28-Jun-2017,7003575,46.06,REDBRIDGE PRODUCE & FLOWERS LTD T/A TOTAL PRODUCE,390977,Commissioning & Investment,Children's & Education Services,103,Supplies and Services,504,Equipment,5023,Revenue,03.GROCERIES & PROVISIONS
28-Jun-2017,7003575,2.40,REDBRIDGE PRODUCE & FLOWERS LTD T/A TOTAL PRODUCE,390977,Commissioning & Investment,Children's & Education Services,103,Supplies and Services,504,Equipment,5023,Revenue,03.GROCERIES & PROVISIONS
28-Jun-2017,7003575,4.80,REDBRIDGE PRODUCE & FLOWERS LTD T/A TOTAL PRODUCE,390977,Commissioning & Investment,Children's & Education Services,103,Supplies and Services,504,Equipment,5023,Revenue,03.GROCERIES & PROVISIONS
28-Jun-2017,7003575,77.75,REDBRIDGE PRODUCE & FLOWERS LTD T/A TOTAL PRODUCE,390977,Commissioning & Investment,Children's & Education Services,103,Supplies and Services,504,Equipment,5023,Revenue,03.GROCERIES & PROVISIONS
28-Jun-2017,7003575,65.53,REDBRIDGE PRODUCE & FLOWERS LTD T/A TOTAL PRODUCE,390977,Commissioning & Investment,Children's & Education Services,103,Supplies and Services,504,Equipment,5023,Revenue,03.GROCERIES & PROVISIONS
28-Jun-2017,7003575,4.34,REDBRIDGE PRODUCE & FLOWERS LTD T/A TOTAL PRODUCE,390977,Commissioning & Investment,Children's & Education Services,103,Supplies and Services,504,Equipment,5023,Revenue,03.GROCERIES & PROVISIONS
28-Jun-2017,7003575,26.57,REDBRIDGE PRODUCE & FLOWERS LTD T/A TOTAL PRODUCE,390977,Commissioning & Investment,Children's & Education Services,103,Supplies and Services,504,Equipment,5023,Revenue,03.GROCERIES & PROVISIONS
28-Jun-2017,7003575,3.60,REDBRIDGE PRODUCE & FLOWERS LTD T/A TOTAL PRODUCE,390977,Commissioning & Investment,Children's & Education Services,103,Supplies and Services,504,Equipment,5023,Revenue,03.GROCERIES & PROVISIONS
28-Jun-2017,7003575,0.72,REDBRIDGE PRODUCE & FLOWERS LTD T/A TOTAL PRODUCE,390977,Commissioning & Investment,Children's & Education Services,103,Supplies and Services,504,Equipment,5023,Revenue,03.GROCERIES & PROVISIONS
28-Jun-2017,7003575,5.32,REDBRIDGE PRODUCE & FLOWERS LTD T/A TOTAL PRODUCE,390977,Commissioning & Investment,Children's & Education Services,103,Supplies and Services,504,Equipment,5023,Revenue,03.GROCERIES & PROVISIONS
28-Jun-2017,7003575,2.83,REDBRIDGE PRODUCE & FLOWERS LTD T/A TOTAL PRODUCE,390977,Commissioning & Investment,Children's & Education Services,103,Supplies and Services,504,Equipment,5023,Revenue,03.GROCERIES & PROVISIONS
28-Jun-2017,7003575,1.73,REDBRIDGE PRODUCE & FLOWERS LTD T/A TOTAL PRODUCE,390977,Commissioning & Investment,Children's & Education Services,103,Supplies and Services,504,Equipment,5023,Revenue,03.GROCERIES & PROVISIONS
28-Jun-2017,7003575,1.53,REDBRIDGE PRODUCE & FLOWERS LTD T/A TOTAL PRODUCE,390977,Commissioning & Investment,Children's & Education Services,103,Supplies and Services,504,Equipment,5023,Revenue,03.GROCERIES & PROVISIONS
28-Jun-2017,7003575,11.12,REDBRIDGE PRODUCE & FLOWERS LTD T/A TOTAL PRODUCE,390977,Commissioning & Investment,Children's & Education Services,103,Supplies and Services,504,Equipment,5023,Revenue,03.GROCERIES & PROVISIONS
28-Jun-2017,7003575,-1.13,REDBRIDGE PRODUCE & FLOWERS LTD T/A TOTAL PRODUCE,390977,Commissioning & Investment,Children's & Education Services,103,Supplies and Services,504,Equipment,5023,Revenue,03.GROCERIES & PROVISIONS
28-Jun-2017,7003575,2.46,REDBRIDGE PRODUCE & FLOWERS LTD T/A TOTAL PRODUCE,390977,Commissioning & Investment,Children's & Education Services,103,Supplies and Services,504,Equipment,5023,Revenue,03.GROCERIES & PROVISIONS
28-Jun-2017,7003575,4.88,REDBRIDGE PRODUCE & FLOWERS LTD T/A TOTAL PRODUCE,390977,Commissioning & Investment,Children's & Education Services,103,Supplies and Services,504,Equipment,5023,Revenue,03.GROCERIES & PROVISIONS
28-Jun-2017,7003575,2.40,REDBRIDGE PRODUCE & FLOWERS LTD T/A TOTAL PRODUCE,390977,Commissioning & Investment,Children's & Education Services,103,Supplies and Services,504,Equipment,5023,Revenue,03.GROCERIES & PROVISIONS
28-Jun-2017,7003575,2.40,REDBRIDGE PRODUCE & FLOWERS LTD T/A TOTAL PRODUCE,390977,Commissioning & Investment,Children's & Education Services,103,Supplies and Services,504,Equipment,5023,Revenue,03.GROCERIES & PROVISIONS
28-Jun-2017,7003575,12.12,REDBRIDGE PRODUCE & FLOWERS LTD T/A TOTAL PRODUCE,390977,Commissioning & Investment,Children's & Education Services,103,Supplies and Services,504,Equipment,5023,Revenue,03.GROCERIES & PROVISIONS
28-Jun-2017,7003575,1.53,REDBRIDGE PRODUCE & FLOWERS LTD T/A TOTAL PRODUCE,390977,Commissioning & Investment,Children's & Education Services,103,Supplies and Services,504,Equipment,5023,Revenue,03.GROCERIES & PROVISIONS
28-Jun-2017,7003575,2.83,REDBRIDGE PRODUCE & FLOWERS LTD T/A TOTAL PRODUCE,390977,Commissioning & Investment,Children's & Education Services,103,Supplies and Services,504,Equipment,5023,Revenue,03.GROCERIES & PROVISIONS
28-Jun-2017,7003575,0.92,REDBRIDGE PRODUCE & FLOWERS LTD T/A TOTAL PRODUCE,390977,Commissioning & Investment,Children's & Education Services,103,Supplies and Services,504,Equipment,5023,Revenue,03.GROCERIES & PROVISIONS
28-Jun-2017,7003575,23.68,REDBRIDGE PRODUCE & FLOWERS LTD T/A TOTAL PRODUCE,390977,Commissioning & Investment,Children's & Education Services,103,Supplies and Services,504,Equipment,5023,Revenue,03.GROCERIES & PROVISIONS
28-Jun-2017,7003575,0.89,REDBRIDGE PRODUCE & FLOWERS LTD T/A TOTAL PRODUCE,390977,Commissioning & Investment,Children's & Education Services,103,Supplies and Services,504,Equipment,5023,Revenue,03.GROCERIES & PROVISIONS
28-Jun-2017,7003575,37.10,REDBRIDGE PRODUCE & FLOWERS LTD T/A TOTAL PRODUCE,390977,Commissioning & Investment,Children's & Education Services,103,Supplies and Services,504,Equipment,5023,Revenue,03.GROCERIES & PROVISIONS
28-Jun-2017,7003575,4.60,REDBRIDGE PRODUCE & FLOWERS LTD T/A TOTAL PRODUCE,390977,Commissioning & Investment,Children's & Education Services,103,Supplies and Services,504,Equipment,5023,Revenue,03.GROCERIES & PROVISIONS
28-Jun-2017,7003575,2.80,REDBRIDGE PRODUCE & FLOWERS LTD T/A TOTAL PRODUCE,390977,Commissioning & Investment,Children's & Education Services,103,Supplies and Services,504,Equipment,5023,Revenue,03.GROCERIES & PROVISIONS
28-Jun-2017,7003575,19.20,REDBRIDGE PRODUCE & FLOWERS LTD T/A TOTAL PRODUCE,390977,Commissioning & Investment,Children's & Education Services,103,Supplies and Services,504,Equipment,5023,Revenue,03.GROCERIES & PROVISIONS
28-Jun-2017,7003575,2.28,REDBRIDGE PRODUCE & FLOWERS LTD T/A TOTAL PRODUCE,390977,Commissioning & Investment,Children's & Education Services,103,Supplies and Services,504,Equipment,5023,Revenue,03.GROCERIES & PROVISIONS
28-Jun-2017,7003575,-0.58,REDBRIDGE PRODUCE & FLOWERS LTD T/A TOTAL PRODUCE,390977,Commissioning & Investment,Children's & Education Services,103,Supplies and Services,504,Equipment,5023,Revenue,03.GROCERIES & PROVISIONS
28-Jun-2017,7003575,0.54,REDBRIDGE PRODUCE & FLOWERS LTD T/A TOTAL PRODUCE,390977,Commissioning & Investment,Children's & Education Services,103,Supplies and Services,504,Equipment,5023,Revenue,03.GROCERIES & PROVISIONS
28-Jun-2017,7003575,51.69,REDBRIDGE PRODUCE & FLOWERS LTD T/A TOTAL PRODUCE,390977,Commissioning & Investment,Children's & Education Services,103,Supplies and Services,504,Equipment,5023,Revenue,03.GROCERIES & PROVISIONS
28-Jun-2017,7003575,3.64,REDBRIDGE PRODUCE & FLOWERS LTD T/A TOTAL PRODUCE,390977,Commissioning & Investment,Children's & Education Services,103,Supplies and Services,504,Equipment,5023,Revenue,03.GROCERIES & PROVISIONS
28-Jun-2017,7003575,12.00,REDBRIDGE PRODUCE & FLOWERS LTD T/A TOTAL PRODUCE,390977,Commissioning & Investment,Children's & Education Services,103,Supplies and Services,504,Equipment,5023,Revenue,03.GROCERIES & PROVISIONS
28-Jun-2017,7003575,7.20,REDBRIDGE PRODUCE & FLOWERS LTD T/A TOTAL PRODUCE,390977,Commissioning & Investment,Children's & Education Services,103,Supplies and Services,504,Equipment,5023,Revenue,03.GROCERIES & PROVISIONS
28-Jun-2017,7003575,0.91,REDBRIDGE PRODUCE & FLOWERS LTD T/A TOTAL PRODUCE,390977,Commissioning & Investment,Children's & Education Services,103,Supplies and Services,504,Equipment,5023,Revenue,03.GROCERIES & PROVISIONS
28-Jun-2017,7003575,9.60,REDBRIDGE PRODUCE & FLOWERS LTD T/A TOTAL PRODUCE,390977,Commissioning & Investment,Children's & Education Services,103,Supplies and Services,504,Equipment,5023,Revenue,03.GROCERIES & PROVISIONS
28-Jun-2017,7003575,0.51,REDBRIDGE PRODUCE & FLOWERS LTD T/A TOTAL PRODUCE,390977,Commissioning & Investment,Children's & Education Services,103,Supplies and Services,504,Equipment,5023,Revenue,03.GROCERIES & PROVISIONS
28-Jun-2017,7003575,3.60,REDBRIDGE PRODUCE & FLOWERS LTD T/A TOTAL PRODUCE,390977,Commissioning & Investment,Children's & Education Services,103,Supplies and Services,504,Equipment,5023,Revenue,03.GROCERIES & PROVISIONS
28-Jun-2017,7003575,2.31,REDBRIDGE PRODUCE & FLOWERS LTD T/A TOTAL PRODUCE,390977,"Environment, Housing & Leisure",Adult Social Care,101,Supplies and Services,504,Equipment,5023,Revenue,03.GROCERIES & PROVISIONS
28-Jun-2017,7003575,1.34,REDBRIDGE PRODUCE & FLOWERS LTD T/A TOTAL PRODUCE,390977,Commissioning & Investment,Children's & Education Services,103,Supplies and Services,504,Equipment,5023,Revenue,03.GROCERIES & PROVISIONS
28-Jun-2017,7003575,2.86,REDBRIDGE PRODUCE & FLOWERS LTD T/A TOTAL PRODUCE,390977,Commissioning & Investment,Children's & Education Services,103,Supplies and Services,504,Equipment,5023,Revenue,03.GROCERIES & PROVISIONS
28-Jun-2017,7003575,-4.41,REDBRIDGE PRODUCE & FLOWERS LTD T/A TOTAL PRODUCE,390977,Commissioning & Investment,Children's & Education Services,103,Supplies and Services,504,Equipment,5023,Revenue,03.GROCERIES & PROVISIONS
28-Jun-2017,7003575,3.68,REDBRIDGE PRODUCE & FLOWERS LTD T/A TOTAL PRODUCE,390977,Commissioning & Investment,Children's & Education Services,103,Supplies and Services,504,Equipment,5023,Revenue,03.GROCERIES & PROVISIONS
28-Jun-2017,7003575,40.43,REDBRIDGE PRODUCE & FLOWERS LTD T/A TOTAL PRODUCE,390977,Commissioning & Investment,Children's & Education Services,103,Supplies and Services,504,Equipment,5023,Revenue,03.GROCERIES & PROVISIONS
28-Jun-2017,7003575,41.70,REDBRIDGE PRODUCE & FLOWERS LTD T/A TOTAL PRODUCE,390977,Commissioning & Investment,Children's & Education Services,103,Supplies and Services,504,Equipment,5023,Revenue,03.GROCERIES & PROVISIONS
28-Jun-2017,7003575,1.27,REDBRIDGE PRODUCE & FLOWERS LTD T/A TOTAL PRODUCE,390977,Commissioning & Investment,Children's & Education Services,103,Supplies and Services,504,Equipment,5023,Revenue,03.GROCERIES & PROVISIONS
28-Jun-2017,7003575,1.92,REDBRIDGE PRODUCE & FLOWERS LTD T/A TOTAL PRODUCE,390977,Commissioning & Investment,Children's & Education Services,103,Supplies and Services,504,Equipment,5023,Revenue,03.GROCERIES & PROVISIONS
28-Jun-2017,7003575,75.69,REDBRIDGE PRODUCE & FLOWERS LTD T/A TOTAL PRODUCE,390977,Commissioning & Investment,Children's & Education Services,103,Supplies and Services,504,Equipment,5023,Revenue,03.GROCERIES & PROVISIONS
28-Jun-2017,7003575,54.45,REDBRIDGE PRODUCE & FLOWERS LTD T/A TOTAL PRODUCE,390977,Commissioning & Investment,Children's & Education Services,103,Supplies and Services,504,Equipment,5023,Revenue,03.GROCERIES & PROVISIONS
28-Jun-2017,7003575,0.56,REDBRIDGE PRODUCE & FLOWERS LTD T/A TOTAL PRODUCE,390977,"Environment, Housing & Leisure",Adult Social Care,101,Supplies and Services,504,Equipment,5023,Revenue,03.GROCERIES & PROVISIONS
28-Jun-2017,7003575,16.80,REDBRIDGE PRODUCE & FLOWERS LTD T/A TOTAL PRODUCE,390977,"Environment, Housing & Leisure",Adult Social Care,101,Supplies and Services,504,Equipment,5023,Revenue,03.GROCERIES & PROVISIONS
28-Jun-2017,7003575,1.01,REDBRIDGE PRODUCE & FLOWERS LTD T/A TOTAL PRODUCE,390977,Commissioning & Investment,Children's & Education Services,103,Supplies and Services,504,Equipment,5023,Revenue,03.GROCERIES & PROVISIONS
28-Jun-2017,7003575,5.19,REDBRIDGE PRODUCE & FLOWERS LTD T/A TOTAL PRODUCE,390977,Commissioning & Investment,Children's & Education Services,103,Supplies and Services,504,Equipment,5023,Revenue,03.GROCERIES & PROVISIONS
28-Jun-2017,7003575,3.60,REDBRIDGE PRODUCE & FLOWERS LTD T/A TOTAL PRODUCE,390977,Commissioning & Investment,Children's & Education Services,103,Supplies and Services,504,Equipment,5023,Revenue,03.GROCERIES & PROVISIONS
28-Jun-2017,7003575,1.82,REDBRIDGE PRODUCE & FLOWERS LTD T/A TOTAL PRODUCE,390977,Commissioning & Investment,Children's & Education Services,103,Supplies and Services,504,Equipment,5023,Revenue,03.GROCERIES & PROVISIONS
28-Jun-2017,7003575,19.42,REDBRIDGE PRODUCE & FLOWERS LTD T/A TOTAL PRODUCE,390977,Commissioning & Investment,Children's & Education Services,103,Supplies and Services,504,Equipment,5023,Revenue,03.GROCERIES & PROVISIONS
28-Jun-2017,7003575,4.80,REDBRIDGE PRODUCE & FLOWERS LTD T/A TOTAL PRODUCE,390977,Commissioning & Investment,Children's & Education Services,103,Supplies and Services,504,Equipment,5023,Revenue,03.GROCERIES & PROVISIONS
28-Jun-2017,7003575,4.45,REDBRIDGE PRODUCE & FLOWERS LTD T/A TOTAL PRODUCE,390977,Commissioning & Investment,Children's & Education Services,103,Supplies and Services,504,Equipment,5023,Revenue,03.GROCERIES & PROVISIONS
28-Jun-2017,7003575,23.58,REDBRIDGE PRODUCE & FLOWERS LTD T/A TOTAL PRODUCE,390977,Commissioning & Investment,Children's & Education Services,103,Supplies and Services,504,Equipment,5023,Revenue,03.GROCERIES & PROVISIONS
28-Jun-2017,7003575,1.13,REDBRIDGE PRODUCE & FLOWERS LTD T/A TOTAL PRODUCE,390977,Commissioning & Investment,Children's & Education Services,103,Supplies and Services,504,Equipment,5023,Revenue,03.GROCERIES & PROVISIONS
28-Jun-2017,7003575,1.78,REDBRIDGE PRODUCE & FLOWERS LTD T/A TOTAL PRODUCE,390977,Commissioning & Investment,Children's & Education Services,103,Supplies and Services,504,Equipment,5023,Revenue,03.GROCERIES & PROVISIONS
28-Jun-2017,7003575,11.12,REDBRIDGE PRODUCE & FLOWERS LTD T/A TOTAL PRODUCE,390977,Commissioning & Investment,Children's & Education Services,103,Supplies and Services,504,Equipment,5023,Revenue,03.GROCERIES & PROVISIONS
28-Jun-2017,7003575,6.00,REDBRIDGE PRODUCE & FLOWERS LTD T/A TOTAL PRODUCE,390977,Commissioning & Investment,Children's & Education Services,103,Supplies and Services,504,Equipment,5023,Revenue,03.GROCERIES & PROVISIONS
28-Jun-2017,7003575,68.91,REDBRIDGE PRODUCE & FLOWERS LTD T/A TOTAL PRODUCE,390977,Commissioning & Investment,Children's & Education Services,103,Supplies and Services,504,Equipment,5023,Revenue,03.GROCERIES & PROVISIONS
28-Jun-2017,7003575,3.84,REDBRIDGE PRODUCE & FLOWERS LTD T/A TOTAL PRODUCE,390977,Commissioning & Investment,Children's & Education Services,103,Supplies and Services,504,Equipment,5023,Revenue,03.GROCERIES & PROVISIONS
28-Jun-2017,7003575,1.78,REDBRIDGE PRODUCE & FLOWERS LTD T/A TOTAL PRODUCE,390977,Commissioning & Investment,Children's & Education Services,103,Supplies and Services,504,Equipment,5023,Revenue,03.GROCERIES & PROVISIONS
28-Jun-2017,7003575,8.29,REDBRIDGE PRODUCE & FLOWERS LTD T/A TOTAL PRODUCE,390977,"Environment, Housing & Leisure",Cultural & Related Services,104,Supplies and Services,504,Equipment,5023,Revenue,03.GROCERIES & PROVISIONS
28-Jun-2017,7003575,64.87,REDBRIDGE PRODUCE & FLOWERS LTD T/A TOTAL PRODUCE,390977,Commissioning & Investment,Children's & Education Services,103,Supplies and Services,504,Equipment,5023,Revenue,03.GROCERIES & PROVISIONS
28-Jun-2017,7003575,54.52,REDBRIDGE PRODUCE & FLOWERS LTD T/A TOTAL PRODUCE,390977,Commissioning & Investment,Children's & Education Services,103,Supplies and Services,504,Equipment,5023,Revenue,03.GROCERIES & PROVISIONS
28-Jun-2017,7003575,3.56,REDBRIDGE PRODUCE & FLOWERS LTD T/A TOTAL PRODUCE,390977,Commissioning & Investment,Children's & Education Services,103,Supplies and Services,504,Equipment,5023,Revenue,03.GROCERIES & PROVISIONS
28-Jun-2017,7003575,2.46,REDBRIDGE PRODUCE & FLOWERS LTD T/A TOTAL PRODUCE,390977,Commissioning & Investment,Children's & Education Services,103,Supplies and Services,504,Equipment,5023,Revenue,03.GROCERIES & PROVISIONS
28-Jun-2017,7003575,1.82,REDBRIDGE PRODUCE & FLOWERS LTD T/A TOTAL PRODUCE,390977,Commissioning & Investment,Children's & Education Services,103,Supplies and Services,504,Equipment,5023,Revenue,03.GROCERIES & PROVISIONS
28-Jun-2017,7003575,9.60,REDBRIDGE PRODUCE & FLOWERS LTD T/A TOTAL PRODUCE,390977,Commissioning & Investment,Children's & Education Services,103,Supplies and Services,504,Equipment,5023,Revenue,03.GROCERIES & PROVISIONS
28-Jun-2017,7003575,25.75,REDBRIDGE PRODUCE & FLOWERS LTD T/A TOTAL PRODUCE,390977,Commissioning & Investment,Children's & Education Services,103,Supplies and Services,504,Equipment,5023,Revenue,03.GROCERIES & PROVISIONS
28-Jun-2017,7003575,113.57,REDBRIDGE PRODUCE & FLOWERS LTD T/A TOTAL PRODUCE,390977,Commissioning & Investment,Children's & Education Services,103,Supplies and Services,504,Equipment,5023,Revenue,03.GROCERIES & PROVISIONS
28-Jun-2017,7003575,18.87,REDBRIDGE PRODUCE & FLOWERS LTD T/A TOTAL PRODUCE,390977,Commissioning & Investment,Children's & Education Services,103,Supplies and Services,504,Equipment,5023,Revenue,03.GROCERIES & PROVISIONS
28-Jun-2017,7003575,2.28,REDBRIDGE PRODUCE & FLOWERS LTD T/A TOTAL PRODUCE,390977,Commissioning & Investment,Children's & Education Services,103,Supplies and Services,504,Equipment,5023,Revenue,03.GROCERIES & PROVISIONS
28-Jun-2017,7003575,1.08,REDBRIDGE PRODUCE & FLOWERS LTD T/A TOTAL PRODUCE,390977,Commissioning & Investment,Children's & Education Services,103,Supplies and Services,504,Equipment,5023,Revenue,03.GROCERIES & PROVISIONS
28-Jun-2017,7003575,1.50,REDBRIDGE PRODUCE & FLOWERS LTD T/A TOTAL PRODUCE,390977,Commissioning & Investment,Children's & Education Services,103,Supplies and Services,504,Equipment,5023,Revenue,03.GROCERIES & PROVISIONS
28-Jun-2017,7003575,29.25,REDBRIDGE PRODUCE & FLOWERS LTD T/A TOTAL PRODUCE,390977,"Environment, Housing & Leisure",Adult Social Care,101,Supplies and Services,504,Equipment,5023,Revenue,03.GROCERIES & PROVISIONS
28-Jun-2017,7003575,34.78,REDBRIDGE PRODUCE & FLOWERS LTD T/A TOTAL PRODUCE,390977,Commissioning & Investment,Children's & Education Services,103,Supplies and Services,504,Equipment,5023,Revenue,03.GROCERIES & PROVISIONS
28-Jun-2017,7003575,0.94,REDBRIDGE PRODUCE & FLOWERS LTD T/A TOTAL PRODUCE,390977,Commissioning & Investment,Children's & Education Services,103,Supplies and Services,504,Equipment,5023,Revenue,03.GROCERIES & PROVISIONS
28-Jun-2017,7003575,0.91,REDBRIDGE PRODUCE & FLOWERS LTD T/A TOTAL PRODUCE,390977,Commissioning & Investment,Children's & Education Services,103,Supplies and Services,504,Equipment,5023,Revenue,03.GROCERIES & PROVISIONS
28-Jun-2017,7003575,1.27,REDBRIDGE PRODUCE & FLOWERS LTD T/A TOTAL PRODUCE,390977,Commissioning & Investment,Children's & Education Services,103,Supplies and Services,504,Equipment,5023,Revenue,03.GROCERIES & PROVISIONS
28-Jun-2017,7003575,57.71,REDBRIDGE PRODUCE & FLOWERS LTD T/A TOTAL PRODUCE,390977,Commissioning & Investment,Children's & Education Services,103,Supplies and Services,504,Equipment,5023,Revenue,03.GROCERIES & PROVISIONS
28-Jun-2017,7003575,54.43,REDBRIDGE PRODUCE & FLOWERS LTD T/A TOTAL PRODUCE,390977,Commissioning & Investment,Children's & Education Services,103,Supplies and Services,504,Equipment,5023,Revenue,03.GROCERIES & PROVISIONS
28-Jun-2017,7003575,1.82,REDBRIDGE PRODUCE & FLOWERS LTD T/A TOTAL PRODUCE,390977,Commissioning & Investment,Children's & Education Services,103,Supplies and Services,504,Equipment,5023,Revenue,03.GROCERIES & PROVISIONS
28-Jun-2017,7003575,9.32,REDBRIDGE PRODUCE & FLOWERS LTD T/A TOTAL PRODUCE,390977,"Environment, Housing & Leisure",Cultural & Related Services,104,Supplies and Services,504,Equipment,5023,Revenue,03.GROCERIES & PROVISIONS
28-Jun-2017,7003575,-7.50,REDBRIDGE PRODUCE & FLOWERS LTD T/A TOTAL PRODUCE,390977,Commissioning & Investment,Children's & Education Services,103,Supplies and Services,504,Equipment,5023,Revenue,03.GROCERIES & PROVISIONS
28-Jun-2017,7003575,37.00,REDBRIDGE PRODUCE & FLOWERS LTD T/A TOTAL PRODUCE,390977,Commissioning & Investment,Children's & Education Services,103,Supplies and Services,504,Equipment,5023,Revenue,03.GROCERIES & PROVISIONS
28-Jun-2017,7003575,81.38,REDBRIDGE PRODUCE & FLOWERS LTD T/A TOTAL PRODUCE,390977,Commissioning & Investment,Children's & Education Services,103,Supplies and Services,504,Equipment,5023,Revenue,03.GROCERIES & PROVISIONS
28-Jun-2017,7003575,81.66,REDBRIDGE PRODUCE & FLOWERS LTD T/A TOTAL PRODUCE,390977,"Environment, Housing & Leisure",Adult Social Care,101,Supplies and Services,504,Equipment,5023,Revenue,03.GROCERIES & PROVISIONS
28-Jun-2017,7003575,1.82,REDBRIDGE PRODUCE & FLOWERS LTD T/A TOTAL PRODUCE,390977,Commissioning & Investment,Children's & Education Services,103,Supplies and Services,504,Equipment,5023,Revenue,03.GROCERIES & PROVISIONS
28-Jun-2017,7003575,21.82,REDBRIDGE PRODUCE & FLOWERS LTD T/A TOTAL PRODUCE,390977,Commissioning & Investment,Children's & Education Services,103,Supplies and Services,504,Equipment,5023,Revenue,03.GROCERIES & PROVISIONS
28-Jun-2017,7003575,30.59,REDBRIDGE PRODUCE & FLOWERS LTD T/A TOTAL PRODUCE,390977,Commissioning & Investment,Children's & Education Services,103,Supplies and Services,504,Equipment,5023,Revenue,03.GROCERIES & PROVISIONS
28-Jun-2017,7003575,26.72,REDBRIDGE PRODUCE & FLOWERS LTD T/A TOTAL PRODUCE,390977,Commissioning & Investment,Children's & Education Services,103,Supplies and Services,504,Equipment,5023,Revenue,03.GROCERIES & PROVISIONS
28-Jun-2017,7003575,49.72,REDBRIDGE PRODUCE & FLOWERS LTD T/A TOTAL PRODUCE,390977,Commissioning & Investment,Children's & Education Services,103,Supplies and Services,504,Equipment,5023,Revenue,03.GROCERIES & PROVISIONS
28-Jun-2017,7003575,5.56,REDBRIDGE PRODUCE & FLOWERS LTD T/A TOTAL PRODUCE,390977,Commissioning & Investment,Children's & Education Services,103,Supplies and Services,504,Equipment,5023,Revenue,03.GROCERIES & PROVISIONS
28-Jun-2017,7003575,-9.90,REDBRIDGE PRODUCE & FLOWERS LTD T/A TOTAL PRODUCE,390977,Commissioning & Investment,Children's & Education Services,103,Supplies and Services,504,Equipment,5023,Revenue,03.GROCERIES & PROVISIONS
28-Jun-2017,7003575,22.24,REDBRIDGE PRODUCE & FLOWERS LTD T/A TOTAL PRODUCE,390977,Commissioning & Investment,Children's & Education Services,103,Supplies and Services,504,Equipment,5023,Revenue,03.GROCERIES & PROVISIONS
28-Jun-2017,7003575,26.30,REDBRIDGE PRODUCE & FLOWERS LTD T/A TOTAL PRODUCE,390977,Commissioning & Investment,Children's & Education Services,103,Supplies and Services,504,Equipment,5023,Revenue,03.GROCERIES & PROVISIONS
28-Jun-2017,7003575,-1.33,REDBRIDGE PRODUCE & FLOWERS LTD T/A TOTAL PRODUCE,390977,Commissioning & Investment,Children's & Education Services,103,Supplies and Services,504,Equipment,5023,Revenue,03.GROCERIES & PROVISIONS
28-Jun-2017,7003575,12.00,REDBRIDGE PRODUCE & FLOWERS LTD T/A TOTAL PRODUCE,390977,Commissioning & Investment,Children's & Education Services,103,Supplies and Services,504,Equipment,5023,Revenue,03.GROCERIES & PROVISIONS
28-Jun-2017,7003575,71.18,REDBRIDGE PRODUCE & FLOWERS LTD T/A TOTAL PRODUCE,390977,Commissioning & Investment,Children's & Education Services,103,Supplies and Services,504,Equipment,5023,Revenue,03.GROCERIES & PROVISIONS
28-Jun-2017,7003575,5.32,REDBRIDGE PRODUCE & FLOWERS LTD T/A TOTAL PRODUCE,390977,Commissioning & Investment,Children's & Education Services,103,Supplies and Services,504,Equipment,5023,Revenue,03.GROCERIES & PROVISIONS
28-Jun-2017,7003575,2.76,REDBRIDGE PRODUCE & FLOWERS LTD T/A TOTAL PRODUCE,390977,Commissioning & Investment,Children's & Education Services,103,Supplies and Services,504,Equipment,5023,Revenue,03.GROCERIES & PROVISIONS
28-Jun-2017,7003575,80.83,REDBRIDGE PRODUCE & FLOWERS LTD T/A TOTAL PRODUCE,390977,Commissioning & Investment,Children's & Education Services,103,Supplies and Services,504,Equipment,5023,Revenue,03.GROCERIES & PROVISIONS
28-Jun-2017,7003575,7.00,REDBRIDGE PRODUCE & FLOWERS LTD T/A TOTAL PRODUCE,390977,Commissioning & Investment,Children's & Education Services,103,Supplies and Services,504,Equipment,5023,Revenue,03.GROCERIES & PROVISIONS
28-Jun-2017,7003575,0.70,REDBRIDGE PRODUCE & FLOWERS LTD T/A TOTAL PRODUCE,390977,Commissioning & Investment,Children's & Education Services,103,Supplies and Services,504,Equipment,5023,Revenue,03.GROCERIES & PROVISIONS
28-Jun-2017,7003575,9.60,REDBRIDGE PRODUCE & FLOWERS LTD T/A TOTAL PRODUCE,390977,Commissioning & Investment,Children's & Education Services,103,Supplies and Services,504,Equipment,5023,Revenue,03.GROCERIES & PROVISIONS
28-Jun-2017,7003575,2.26,REDBRIDGE PRODUCE & FLOWERS LTD T/A TOTAL PRODUCE,390977,Commissioning & Investment,Children's & Education Services,103,Supplies and Services,504,Equipment,5023,Revenue,03.GROCERIES & PROVISIONS
28-Jun-2017,7003575,2.83,REDBRIDGE PRODUCE & FLOWERS LTD T/A TOTAL PRODUCE,390977,Commissioning & Investment,Children's & Education Services,103,Supplies and Services,504,Equipment,5023,Revenue,03.GROCERIES & PROVISIONS
28-Jun-2017,7003575,18.00,REDBRIDGE PRODUCE & FLOWERS LTD T/A TOTAL PRODUCE,390977,Commissioning & Investment,Children's & Education Services,103,Supplies and Services,504,Equipment,5023,Revenue,03.GROCERIES & PROVISIONS
28-Jun-2017,7003575,2.76,REDBRIDGE PRODUCE & FLOWERS LTD T/A TOTAL PRODUCE,390977,Commissioning & Investment,Children's & Education Services,103,Supplies and Services,504,Equipment,5023,Revenue,03.GROCERIES & PROVISIONS
28-Jun-2017,7003575,-20.00,REDBRIDGE PRODUCE & FLOWERS LTD T/A TOTAL PRODUCE,390977,Commissioning & Investment,Children's & Education Services,103,Supplies and Services,504,Equipment,5023,Revenue,03.GROCERIES & PROVISIONS
28-Jun-2017,7003575,78.51,REDBRIDGE PRODUCE & FLOWERS LTD T/A TOTAL PRODUCE,390977,Commissioning & Investment,Children's & Education Services,103,Supplies and Services,504,Equipment,5023,Revenue,03.GROCERIES & PROVISIONS
28-Jun-2017,7003575,61.56,REDBRIDGE PRODUCE & FLOWERS LTD T/A TOTAL PRODUCE,390977,Commissioning & Investment,Children's & Education Services,103,Supplies and Services,504,Equipment,5023,Revenue,03.GROCERIES & PROVISIONS
28-Jun-2017,7003575,7.20,REDBRIDGE PRODUCE & FLOWERS LTD T/A TOTAL PRODUCE,390977,Commissioning & Investment,Children's & Education Services,103,Supplies and Services,504,Equipment,5023,Revenue,03.GROCERIES & PROVISIONS
28-Jun-2017,7003575,30.03,REDBRIDGE PRODUCE & FLOWERS LTD T/A TOTAL PRODUCE,390977,Commissioning & Investment,Children's & Education Services,103,Supplies and Services,504,Equipment,5023,Revenue,03.GROCERIES & PROVISIONS
28-Jun-2017,7003575,29.15,REDBRIDGE PRODUCE & FLOWERS LTD T/A TOTAL PRODUCE,390977,Commissioning & Investment,Children's & Education Services,103,Supplies and Services,504,Equipment,5023,Revenue,03.GROCERIES & PROVISIONS
28-Jun-2017,7003575,91.79,REDBRIDGE PRODUCE & FLOWERS LTD T/A TOTAL PRODUCE,390977,Commissioning & Investment,Children's & Education Services,103,Supplies and Services,504,Equipment,5023,Revenue,03.GROCERIES & PROVISIONS
28-Jun-2017,7003575,92.17,REDBRIDGE PRODUCE & FLOWERS LTD T/A TOTAL PRODUCE,390977,"Environment, Housing & Leisure",Cultural & Related Services,104,Supplies and Services,504,Equipment,5023,Revenue,03.GROCERIES & PROVISIONS
28-Jun-2017,7003575,7.20,REDBRIDGE PRODUCE & FLOWERS LTD T/A TOTAL PRODUCE,390977,Commissioning & Investment,Children's & Education Services,103,Supplies and Services,504,Equipment,5023,Revenue,03.GROCERIES & PROVISIONS
28-Jun-2017,7003575,1.82,REDBRIDGE PRODUCE & FLOWERS LTD T/A TOTAL PRODUCE,390977,Commissioning & Investment,Children's & Education Services,103,Supplies and Services,504,Equipment,5023,Revenue,03.GROCERIES & PROVISIONS
28-Jun-2017,7003575,3.60,REDBRIDGE PRODUCE & FLOWERS LTD T/A TOTAL PRODUCE,390977,Commissioning & Investment,Children's & Education Services,103,Supplies and Services,504,Equipment,5023,Revenue,03.GROCERIES & PROVISIONS
28-Jun-2017,7003575,2.97,REDBRIDGE PRODUCE & FLOWERS LTD T/A TOTAL PRODUCE,390977,"Health, Education, Care and Safeguarding",Children's & Education Services,103,Supplies and Services,504,Equipment,5023,Revenue,03.GROCERIES & PROVISIONS
28-Jun-2017,7003575,3.12,REDBRIDGE PRODUCE & FLOWERS LTD T/A TOTAL PRODUCE,390977,"Health, Education, Care and Safeguarding",Children's & Education Services,103,Supplies and Services,504,Equipment,5023,Revenue,03.GROCERIES & PROVISIONS
28-Jun-2017,7003575,0.94,REDBRIDGE PRODUCE & FLOWERS LTD T/A TOTAL PRODUCE,390977,Commissioning & Investment,Children's & Education Services,103,Supplies and Services,504,Equipment,5023,Revenue,03.GROCERIES & PROVISIONS
28-Jun-2017,7003575,2.80,REDBRIDGE PRODUCE & FLOWERS LTD T/A TOTAL PRODUCE,390977,Commissioning & Investment,Children's & Education Services,103,Supplies and Services,504,Equipment,5023,Revenue,03.GROCERIES & PROVISIONS
28-Jun-2017,7003575,76.40,REDBRIDGE PRODUCE & FLOWERS LTD T/A TOTAL PRODUCE,390977,Commissioning & Investment,Children's & Education Services,103,Supplies and Services,504,Equipment,5023,Revenue,03.GROCERIES & PROVISIONS
28-Jun-2017,7003575,21.78,REDBRIDGE PRODUCE & FLOWERS LTD T/A TOTAL PRODUCE,390977,Commissioning & Investment,Children's & Education Services,103,Supplies and Services,504,Equipment,5023,Revenue,03.GROCERIES & PROVISIONS
28-Jun-2017,7003575,5.52,REDBRIDGE PRODUCE & FLOWERS LTD T/A TOTAL PRODUCE,390977,Commissioning & Investment,Children's & Education Services,103,Supplies and Services,504,Equipment,5023,Revenue,03.GROCERIES & PROVISIONS
28-Jun-2017,7003575,4.67,REDBRIDGE PRODUCE & FLOWERS LTD T/A TOTAL PRODUCE,390977,Commissioning & Investment,Children's & Education Services,103,Supplies and Services,504,Equipment,5023,Revenue,03.GROCERIES & PROVISIONS
28-Jun-2017,7003575,4.80,REDBRIDGE PRODUCE & FLOWERS LTD T/A TOTAL PRODUCE,390977,Commissioning & Investment,Children's & Education Services,103,Supplies and Services,504,Equipment,5023,Revenue,03.GROCERIES & PROVISIONS
28-Jun-2017,7003575,11.06,REDBRIDGE PRODUCE & FLOWERS LTD T/A TOTAL PRODUCE,390977,Commissioning & Investment,Children's & Education Services,103,Supplies and Services,504,Equipment,5023,Revenue,03.GROCERIES & PROVISIONS
28-Jun-2017,7003575,2.76,REDBRIDGE PRODUCE & FLOWERS LTD T/A TOTAL PRODUCE,390977,Commissioning & Investment,Children's & Education Services,103,Supplies and Services,504,Equipment,5023,Revenue,03.GROCERIES & PROVISIONS
28-Jun-2017,7003575,9.71,REDBRIDGE PRODUCE & FLOWERS LTD T/A TOTAL PRODUCE,390977,Commissioning & Investment,Children's & Education Services,103,Supplies and Services,504,Equipment,5023,Revenue,03.GROCERIES & PROVISIONS
28-Jun-2017,7003575,0.51,REDBRIDGE PRODUCE & FLOWERS LTD T/A TOTAL PRODUCE,390977,Commissioning & Investment,Children's & Education Services,103,Supplies and Services,504,Equipment,5023,Revenue,03.GROCERIES & PROVISIONS
28-Jun-2017,7003575,63.40,REDBRIDGE PRODUCE & FLOWERS LTD T/A TOTAL PRODUCE,390977,Commissioning & Investment,Children's & Education Services,103,Supplies and Services,504,Equipment,5023,Revenue,03.GROCERIES & PROVISIONS
28-Jun-2017,7003575,4.17,REDBRIDGE PRODUCE & FLOWERS LTD T/A TOTAL PRODUCE,390977,Commissioning & Investment,Children's & Education Services,103,Supplies and Services,504,Equipment,5023,Revenue,03.GROCERIES & PROVISIONS
28-Jun-2017,7003575,1.67,REDBRIDGE PRODUCE & FLOWERS LTD T/A TOTAL PRODUCE,390977,Commissioning & Investment,Children's & Education Services,103,Supplies and Services,504,Equipment,5023,Revenue,03.GROCERIES & PROVISIONS
28-Jun-2017,7003575,0.91,REDBRIDGE PRODUCE & FLOWERS LTD T/A TOTAL PRODUCE,390977,Commissioning & Investment,Children's & Education Services,103,Supplies and Services,504,Equipment,5023,Revenue,03.GROCERIES & PROVISIONS
28-Jun-2017,7003575,8.40,REDBRIDGE PRODUCE & FLOWERS LTD T/A TOTAL PRODUCE,390977,Commissioning & Investment,Children's & Education Services,103,Supplies and Services,504,Equipment,5023,Revenue,03.GROCERIES & PROVISIONS
28-Jun-2017,7003575,4.80,REDBRIDGE PRODUCE & FLOWERS LTD T/A TOTAL PRODUCE,390977,Commissioning & Investment,Children's & Education Services,103,Supplies and Services,504,Equipment,5023,Revenue,03.GROCERIES & PROVISIONS
28-Jun-2017,7003575,64.30,REDBRIDGE PRODUCE & FLOWERS LTD T/A TOTAL PRODUCE,390977,Commissioning & Investment,Children's & Education Services,103,Supplies and Services,504,Equipment,5023,Revenue,03.GROCERIES & PROVISIONS
28-Jun-2017,7003575,8.97,REDBRIDGE PRODUCE & FLOWERS LTD T/A TOTAL PRODUCE,390977,"Environment, Housing & Leisure",Cultural & Related Services,104,Supplies and Services,504,Equipment,5023,Revenue,03.GROCERIES & PROVISIONS
28-Jun-2017,7003575,111.05,REDBRIDGE PRODUCE & FLOWERS LTD T/A TOTAL PRODUCE,390977,"Environment, Housing & Leisure",Cultural & Related Services,104,Supplies and Services,504,Equipment,5023,Revenue,03.GROCERIES & PROVISIONS
28-Jun-2017,7003575,4.80,REDBRIDGE PRODUCE & FLOWERS LTD T/A TOTAL PRODUCE,390977,Commissioning & Investment,Children's & Education Services,103,Supplies and Services,504,Equipment,5023,Revenue,03.GROCERIES & PROVISIONS
28-Jun-2017,7003575,-4.62,REDBRIDGE PRODUCE & FLOWERS LTD T/A TOTAL PRODUCE,390977,Commissioning & Investment,Children's & Education Services,103,Supplies and Services,504,Equipment,5023,Revenue,03.GROCERIES & PROVISIONS
28-Jun-2017,7003575,31.33,REDBRIDGE PRODUCE & FLOWERS LTD T/A TOTAL PRODUCE,390977,Commissioning & Investment,Children's & Education Services,103,Supplies and Services,504,Equipment,5023,Revenue,03.GROCERIES & PROVISIONS
28-Jun-2017,7003575,176.27,REDBRIDGE PRODUCE & FLOWERS LTD T/A TOTAL PRODUCE,390977,Commissioning & Investment,Children's & Education Services,103,Supplies and Services,504,Equipment,5023,Revenue,03.GROCERIES & PROVISIONS
28-Jun-2017,7003575,15.06,REDBRIDGE PRODUCE & FLOWERS LTD T/A TOTAL PRODUCE,390977,Commissioning & Investment,Children's & Education Services,103,Supplies and Services,504,Equipment,5023,Revenue,03.GROCERIES & PROVISIONS
28-Jun-2017,7003575,74.17,REDBRIDGE PRODUCE & FLOWERS LTD T/A TOTAL PRODUCE,390977,Commissioning & Investment,Children's & Education Services,103,Supplies and Services,504,Equipment,5023,Revenue,03.GROCERIES & PROVISIONS
28-Jun-2017,7003575,165.26,REDBRIDGE PRODUCE & FLOWERS LTD T/A TOTAL PRODUCE,390977,Commissioning & Investment,Children's & Education Services,103,Supplies and Services,504,Equipment,5023,Revenue,03.GROCERIES & PROVISIONS
28-Jun-2017,7003575,13.46,REDBRIDGE PRODUCE & FLOWERS LTD T/A TOTAL PRODUCE,390977,"Environment, Housing & Leisure",Cultural & Related Services,104,Supplies and Services,504,Equipment,5023,Revenue,03.GROCERIES & PROVISIONS
28-Jun-2017,7003575,8.94,REDBRIDGE PRODUCE & FLOWERS LTD T/A TOTAL PRODUCE,390977,Commissioning & Investment,Children's & Education Services,103,Supplies and Services,504,Equipment,5023,Revenue,03.GROCERIES & PROVISIONS
28-Jun-2017,7003575,7.20,REDBRIDGE PRODUCE & FLOWERS LTD T/A TOTAL PRODUCE,390977,Commissioning & Investment,Children's & Education Services,103,Supplies and Services,504,Equipment,5023,Revenue,03.GROCERIES & PROVISIONS
28-Jun-2017,7003575,-5.56,REDBRIDGE PRODUCE & FLOWERS LTD T/A TOTAL PRODUCE,390977,Commissioning & Investment,Children's & Education Services,103,Supplies and Services,504,Equipment,5023,Revenue,03.GROCERIES & PROVISIONS
28-Jun-2017,7003575,3.34,REDBRIDGE PRODUCE & FLOWERS LTD T/A TOTAL PRODUCE,390977,Commissioning & Investment,Children's & Education Services,103,Supplies and Services,504,Equipment,5023,Revenue,03.GROCERIES & PROVISIONS
28-Jun-2017,7003575,-4.22,REDBRIDGE PRODUCE & FLOWERS LTD T/A TOTAL PRODUCE,390977,Commissioning & Investment,Children's & Education Services,103,Supplies and Services,504,Equipment,5023,Revenue,03.GROCERIES & PROVISIONS
28-Jun-2017,7003575,7.20,REDBRIDGE PRODUCE & FLOWERS LTD T/A TOTAL PRODUCE,390977,Commissioning & Investment,Children's & Education Services,103,Supplies and Services,504,Equipment,5023,Revenue,03.GROCERIES & PROVISIONS
28-Jun-2017,7003575,55.07,REDBRIDGE PRODUCE & FLOWERS LTD T/A TOTAL PRODUCE,390977,Commissioning & Investment,Children's & Education Services,103,Supplies and Services,504,Equipment,5023,Revenue,03.GROCERIES & PROVISIONS
28-Jun-2017,7003575,11.37,REDBRIDGE PRODUCE & FLOWERS LTD T/A TOTAL PRODUCE,390977,Commissioning & Investment,Children's & Education Services,103,Supplies and Services,504,Equipment,5023,Revenue,03.GROCERIES & PROVISIONS
28-Jun-2017,7003575,4.80,REDBRIDGE PRODUCE & FLOWERS LTD T/A TOTAL PRODUCE,390977,Commissioning & Investment,Children's & Education Services,103,Supplies and Services,504,Equipment,5023,Revenue,03.GROCERIES & PROVISIONS
28-Jun-2017,7003575,9.24,REDBRIDGE PRODUCE & FLOWERS LTD T/A TOTAL PRODUCE,390977,Commissioning & Investment,Children's & Education Services,103,Supplies and Services,504,Equipment,5023,Revenue,03.GROCERIES & PROVISIONS
28-Jun-2017,7003575,12.00,REDBRIDGE PRODUCE & FLOWERS LTD T/A TOTAL PRODUCE,390977,Commissioning & Investment,Children's & Education Services,103,Supplies and Services,504,Equipment,5023,Revenue,03.GROCERIES & PROVISIONS
28-Jun-2017,7003575,50.34,REDBRIDGE PRODUCE & FLOWERS LTD T/A TOTAL PRODUCE,390977,Commissioning & Investment,Children's & Education Services,103,Supplies and Services,504,Equipment,5023,Revenue,03.GROCERIES & PROVISIONS
28-Jun-2017,7003575,1.67,REDBRIDGE PRODUCE & FLOWERS LTD T/A TOTAL PRODUCE,390977,Commissioning & Investment,Children's & Education Services,103,Supplies and Services,504,Equipment,5023,Revenue,03.GROCERIES & PROVISIONS
28-Jun-2017,7003575,62.46,REDBRIDGE PRODUCE & FLOWERS LTD T/A TOTAL PRODUCE,390977,Commissioning & Investment,Children's & Education Services,103,Supplies and Services,504,Equipment,5023,Revenue,03.GROCERIES & PROVISIONS
28-Jun-2017,7003575,87.52,REDBRIDGE PRODUCE & FLOWERS LTD T/A TOTAL PRODUCE,390977,Commissioning & Investment,Children's & Education Services,103,Supplies and Services,504,Equipment,5023,Revenue,03.GROCERIES & PROVISIONS
28-Jun-2017,7003575,0.94,REDBRIDGE PRODUCE & FLOWERS LTD T/A TOTAL PRODUCE,390977,Commissioning & Investment,Children's & Education Services,103,Supplies and Services,504,Equipment,5023,Revenue,03.GROCERIES & PROVISIONS
28-Jun-2017,7003575,1.14,REDBRIDGE PRODUCE & FLOWERS LTD T/A TOTAL PRODUCE,390977,Commissioning & Investment,Children's & Education Services,103,Supplies and Services,504,Equipment,5023,Revenue,03.GROCERIES & PROVISIONS
28-Jun-2017,7003575,12.00,REDBRIDGE PRODUCE & FLOWERS LTD T/A TOTAL PRODUCE,390977,Commissioning & Investment,Children's & Education Services,103,Supplies and Services,504,Equipment,5023,Revenue,03.GROCERIES & PROVISIONS
28-Jun-2017,7003575,1.32,REDBRIDGE PRODUCE & FLOWERS LTD T/A TOTAL PRODUCE,390977,Commissioning & Investment,Children's & Education Services,103,Supplies and Services,504,Equipment,5023,Revenue,03.GROCERIES & PROVISIONS
28-Jun-2017,7003575,2.26,REDBRIDGE PRODUCE & FLOWERS LTD T/A TOTAL PRODUCE,390977,Commissioning & Investment,Children's & Education Services,103,Supplies and Services,504,Equipment,5023,Revenue,03.GROCERIES & PROVISIONS
28-Jun-2017,7003575,-20.07,REDBRIDGE PRODUCE & FLOWERS LTD T/A TOTAL PRODUCE,390977,Commissioning & Investment,Children's & Education Services,103,Supplies and Services,504,Equipment,5023,Revenue,03.GROCERIES & PROVISIONS
28-Jun-2017,7003575,8.74,REDBRIDGE PRODUCE & FLOWERS LTD T/A TOTAL PRODUCE,390977,"Environment, Housing & Leisure",Adult Social Care,101,Supplies and Services,504,Equipment,5023,Revenue,03.GROCERIES & PROVISIONS
28-Jun-2017,7003575,2.16,REDBRIDGE PRODUCE & FLOWERS LTD T/A TOTAL PRODUCE,390977,Commissioning & Investment,Children's & Education Services,103,Supplies and Services,504,Equipment,5023,Revenue,03.GROCERIES & PROVISIONS
28-Jun-2017,7003575,3.84,REDBRIDGE PRODUCE & FLOWERS LTD T/A TOTAL PRODUCE,390977,Commissioning & Investment,Children's & Education Services,103,Supplies and Services,504,Equipment,5023,Revenue,03.GROCERIES & PROVISIONS
28-Jun-2017,7003575,53.96,REDBRIDGE PRODUCE & FLOWERS LTD T/A TOTAL PRODUCE,390977,Commissioning & Investment,Children's & Education Services,103,Supplies and Services,504,Equipment,5023,Revenue,03.GROCERIES & PROVISIONS
28-Jun-2017,7003575,1.40,REDBRIDGE PRODUCE & FLOWERS LTD T/A TOTAL PRODUCE,390977,Commissioning & Investment,Children's & Education Services,103,Supplies and Services,504,Equipment,5023,Revenue,03.GROCERIES & PROVISIONS
28-Jun-2017,7003575,9.71,REDBRIDGE PRODUCE & FLOWERS LTD T/A TOTAL PRODUCE,390977,Commissioning & Investment,Children's & Education Services,103,Supplies and Services,504,Equipment,5023,Revenue,03.GROCERIES & PROVISIONS
28-Jun-2017,7003575,1.13,REDBRIDGE PRODUCE & FLOWERS LTD T/A TOTAL PRODUCE,390977,Commissioning & Investment,Children's & Education Services,103,Supplies and Services,504,Equipment,5023,Revenue,03.GROCERIES & PROVISIONS
28-Jun-2017,7003575,1.53,REDBRIDGE PRODUCE & FLOWERS LTD T/A TOTAL PRODUCE,390977,Commissioning & Investment,Children's & Education Services,103,Supplies and Services,504,Equipment,5023,Revenue,03.GROCERIES & PROVISIONS
28-Jun-2017,7003575,1.78,REDBRIDGE PRODUCE & FLOWERS LTD T/A TOTAL PRODUCE,390977,Commissioning & Investment,Children's & Education Services,103,Supplies and Services,504,Equipment,5023,Revenue,03.GROCERIES & PROVISIONS
28-Jun-2017,7003575,1.82,REDBRIDGE PRODUCE & FLOWERS LTD T/A TOTAL PRODUCE,390977,Commissioning & Investment,Children's & Education Services,103,Supplies and Services,504,Equipment,5023,Revenue,03.GROCERIES & PROVISIONS
28-Jun-2017,7003575,1.49,REDBRIDGE PRODUCE & FLOWERS LTD T/A TOTAL PRODUCE,390977,Commissioning & Investment,Children's & Education Services,103,Supplies and Services,504,Equipment,5023,Revenue,03.GROCERIES & PROVISIONS
28-Jun-2017,7003575,36.18,REDBRIDGE PRODUCE & FLOWERS LTD T/A TOTAL PRODUCE,390977,Commissioning & Investment,Children's & Education Services,103,Supplies and Services,504,Equipment,5023,Revenue,03.GROCERIES & PROVISIONS
28-Jun-2017,7003575,21.79,REDBRIDGE PRODUCE & FLOWERS LTD T/A TOTAL PRODUCE,390977,Commissioning & Investment,Children's & Education Services,103,Supplies and Services,504,Equipment,5023,Revenue,03.GROCERIES & PROVISIONS
28-Jun-2017,7003575,46.95,REDBRIDGE PRODUCE & FLOWERS LTD T/A TOTAL PRODUCE,390977,Commissioning & Investment,Children's & Education Services,103,Supplies and Services,504,Equipment,5023,Revenue,03.GROCERIES & PROVISIONS
28-Jun-2017,7003575,7.38,REDBRIDGE PRODUCE & FLOWERS LTD T/A TOTAL PRODUCE,390977,"Environment, Housing & Leisure",Cultural & Related Services,104,Supplies and Services,504,Equipment,5023,Revenue,03.GROCERIES & PROVISIONS
28-Jun-2017,7003575,18.00,REDBRIDGE PRODUCE & FLOWERS LTD T/A TOTAL PRODUCE,390977,Commissioning & Investment,Children's & Education Services,103,Supplies and Services,504,Equipment,5023,Revenue,03.GROCERIES & PROVISIONS
28-Jun-2017,7003575,5.52,REDBRIDGE PRODUCE & FLOWERS LTD T/A TOTAL PRODUCE,390977,Commissioning & Investment,Children's & Education Services,103,Supplies and Services,504,Equipment,5023,Revenue,03.GROCERIES & PROVISIONS
28-Jun-2017,7003575,27.71,REDBRIDGE PRODUCE & FLOWERS LTD T/A TOTAL PRODUCE,390977,Commissioning & Investment,Children's & Education Services,103,Supplies and Services,504,Equipment,5023,Revenue,03.GROCERIES & PROVISIONS
28-Jun-2017,7003575,-4.50,REDBRIDGE PRODUCE & FLOWERS LTD T/A TOTAL PRODUCE,390977,Commissioning & Investment,Children's & Education Services,103,Supplies and Services,504,Equipment,5023,Revenue,03.GROCERIES & PROVISIONS
28-Jun-2017,7003575,41.40,REDBRIDGE PRODUCE & FLOWERS LTD T/A TOTAL PRODUCE,390977,Commissioning & Investment,Children's & Education Services,103,Supplies and Services,504,Equipment,5023,Revenue,03.GROCERIES & PROVISIONS
28-Jun-2017,7003575,-1.36,REDBRIDGE PRODUCE & FLOWERS LTD T/A TOTAL PRODUCE,390977,Commissioning & Investment,Children's & Education Services,103,Supplies and Services,504,Equipment,5023,Revenue,03.GROCERIES & PROVISIONS
28-Jun-2017,7003575,1.43,REDBRIDGE PRODUCE & FLOWERS LTD T/A TOTAL PRODUCE,390977,Commissioning & Investment,Children's & Education Services,103,Supplies and Services,504,Equipment,5023,Revenue,03.GROCERIES & PROVISIONS
28-Jun-2017,7003575,4.80,REDBRIDGE PRODUCE & FLOWERS LTD T/A TOTAL PRODUCE,390977,Commissioning & Investment,Children's & Education Services,103,Supplies and Services,504,Equipment,5023,Revenue,03.GROCERIES & PROVISIONS
28-Jun-2017,7003575,65.34,REDBRIDGE PRODUCE & FLOWERS LTD T/A TOTAL PRODUCE,390977,Commissioning & Investment,Children's & Education Services,103,Supplies and Services,504,Equipment,5023,Revenue,03.GROCERIES & PROVISIONS
28-Jun-2017,7003575,0.88,REDBRIDGE PRODUCE & FLOWERS LTD T/A TOTAL PRODUCE,390977,Commissioning & Investment,Children's & Education Services,103,Supplies and Services,504,Equipment,5023,Revenue,03.GROCERIES & PROVISIONS
28-Jun-2017,7003575,14.40,REDBRIDGE PRODUCE & FLOWERS LTD T/A TOTAL PRODUCE,390977,Commissioning & Investment,Children's & Education Services,103,Supplies and Services,504,Equipment,5023,Revenue,03.GROCERIES & PROVISIONS
28-Jun-2017,7003575,3.06,REDBRIDGE PRODUCE & FLOWERS LTD T/A TOTAL PRODUCE,390977,Commissioning & Investment,Children's & Education Services,103,Supplies and Services,504,Equipment,5023,Revenue,03.GROCERIES & PROVISIONS
28-Jun-2017,7003575,7.20,REDBRIDGE PRODUCE & FLOWERS LTD T/A TOTAL PRODUCE,390977,Commissioning & Investment,Children's & Education Services,103,Supplies and Services,504,Equipment,5023,Revenue,03.GROCERIES & PROVISIONS
28-Jun-2017,7003575,0.94,REDBRIDGE PRODUCE & FLOWERS LTD T/A TOTAL PRODUCE,390977,Commissioning & Investment,Children's & Education Services,103,Supplies and Services,504,Equipment,5023,Revenue,03.GROCERIES & PROVISIONS
28-Jun-2017,7003575,1.13,REDBRIDGE PRODUCE & FLOWERS LTD T/A TOTAL PRODUCE,390977,Commissioning & Investment,Children's & Education Services,103,Supplies and Services,504,Equipment,5023,Revenue,03.GROCERIES & PROVISIONS
28-Jun-2017,7003575,7.38,REDBRIDGE PRODUCE & FLOWERS LTD T/A TOTAL PRODUCE,390977,Commissioning & Investment,Children's & Education Services,103,Supplies and Services,504,Equipment,5023,Revenue,03.GROCERIES & PROVISIONS
28-Jun-2017,7003575,12.71,REDBRIDGE PRODUCE & FLOWERS LTD T/A TOTAL PRODUCE,390977,Commissioning & Investment,Children's & Education Services,103,Supplies and Services,504,Equipment,5023,Revenue,03.GROCERIES & PROVISIONS
28-Jun-2017,7003575,22.78,REDBRIDGE PRODUCE & FLOWERS LTD T/A TOTAL PRODUCE,390977,Commissioning & Investment,Children's & Education Services,103,Supplies and Services,504,Equipment,5023,Revenue,03.GROCERIES & PROVISIONS
28-Jun-2017,7003575,38.37,REDBRIDGE PRODUCE & FLOWERS LTD T/A TOTAL PRODUCE,390977,Commissioning & Investment,Children's & Education Services,103,Supplies and Services,504,Equipment,5023,Revenue,03.GROCERIES & PROVISIONS
28-Jun-2017,7003575,1.08,REDBRIDGE PRODUCE & FLOWERS LTD T/A TOTAL PRODUCE,390977,"Environment, Housing & Leisure",Adult Social Care,101,Supplies and Services,504,Equipment,5023,Revenue,03.GROCERIES & PROVISIONS
28-Jun-2017,7003575,33.36,REDBRIDGE PRODUCE & FLOWERS LTD T/A TOTAL PRODUCE,390977,Commissioning & Investment,Children's & Education Services,103,Supplies and Services,504,Equipment,5023,Revenue,03.GROCERIES & PROVISIONS
28-Jun-2017,7003575,113.34,REDBRIDGE PRODUCE & FLOWERS LTD T/A TOTAL PRODUCE,390977,Commissioning & Investment,Children's & Education Services,103,Supplies and Services,504,Equipment,5023,Revenue,03.GROCERIES & PROVISIONS
28-Jun-2017,7003575,3.64,REDBRIDGE PRODUCE & FLOWERS LTD T/A TOTAL PRODUCE,390977,Commissioning & Investment,Children's & Education Services,103,Supplies and Services,504,Equipment,5023,Revenue,03.GROCERIES & PROVISIONS
28-Jun-2017,7003575,3.60,REDBRIDGE PRODUCE & FLOWERS LTD T/A TOTAL PRODUCE,390977,Commissioning & Investment,Children's & Education Services,103,Supplies and Services,504,Equipment,5023,Revenue,03.GROCERIES & PROVISIONS
28-Jun-2017,7003575,2.46,REDBRIDGE PRODUCE & FLOWERS LTD T/A TOTAL PRODUCE,390977,Commissioning & Investment,Children's & Education Services,103,Supplies and Services,504,Equipment,5023,Revenue,03.GROCERIES & PROVISIONS
28-Jun-2017,7003575,3.15,REDBRIDGE PRODUCE & FLOWERS LTD T/A TOTAL PRODUCE,390977,Commissioning & Investment,Children's & Education Services,103,Supplies and Services,504,Equipment,5023,Revenue,03.GROCERIES & PROVISIONS
28-Jun-2017,7003575,78.65,REDBRIDGE PRODUCE & FLOWERS LTD T/A TOTAL PRODUCE,390977,Commissioning & Investment,Children's & Education Services,103,Supplies and Services,504,Equipment,5023,Revenue,03.GROCERIES & PROVISIONS
28-Jun-2017,7003575,7.20,REDBRIDGE PRODUCE & FLOWERS LTD T/A TOTAL PRODUCE,390977,Commissioning & Investment,Children's & Education Services,103,Supplies and Services,504,Equipment,5023,Revenue,03.GROCERIES & PROVISIONS
28-Jun-2017,7003575,12.00,REDBRIDGE PRODUCE & FLOWERS LTD T/A TOTAL PRODUCE,390977,Commissioning & Investment,Children's & Education Services,103,Supplies and Services,504,Equipment,5023,Revenue,03.GROCERIES & PROVISIONS
28-Jun-2017,7003575,364.37,REDBRIDGE PRODUCE & FLOWERS LTD T/A TOTAL PRODUCE,390977,Commissioning & Investment,Children's & Education Services,103,Supplies and Services,504,Equipment,5023,Revenue,03.GROCERIES & PROVISIONS
28-Jun-2017,7003575,6.29,REDBRIDGE PRODUCE & FLOWERS LTD T/A TOTAL PRODUCE,390977,Commissioning & Investment,Children's & Education Services,103,Supplies and Services,504,Equipment,5023,Revenue,03.GROCERIES & PROVISIONS
28-Jun-2017,7003575,1.36,REDBRIDGE PRODUCE & FLOWERS LTD T/A TOTAL PRODUCE,390977,Commissioning & Investment,Children's & Education Services,103,Supplies and Services,504,Equipment,5023,Revenue,03.GROCERIES & PROVISIONS
28-Jun-2017,7003575,14.40,REDBRIDGE PRODUCE & FLOWERS LTD T/A TOTAL PRODUCE,390977,Commissioning & Investment,Children's & Education Services,103,Supplies and Services,504,Equipment,5023,Revenue,03.GROCERIES & PROVISIONS
28-Jun-2017,7003575,6.00,REDBRIDGE PRODUCE & FLOWERS LTD T/A TOTAL PRODUCE,390977,Commissioning & Investment,Children's & Education Services,103,Supplies and Services,504,Equipment,5023,Revenue,03.GROCERIES & PROVISIONS
28-Jun-2017,7003575,10.09,REDBRIDGE PRODUCE & FLOWERS LTD T/A TOTAL PRODUCE,390977,Commissioning & Investment,Children's & Education Services,103,Supplies and Services,504,Equipment,5023,Revenue,03.GROCERIES & PROVISIONS
28-Jun-2017,7003575,0.91,REDBRIDGE PRODUCE & FLOWERS LTD T/A TOTAL PRODUCE,390977,Commissioning & Investment,Children's & Education Services,103,Supplies and Services,504,Equipment,5023,Revenue,03.GROCERIES & PROVISIONS
28-Jun-2017,7003575,1.20,REDBRIDGE PRODUCE & FLOWERS LTD T/A TOTAL PRODUCE,390977,Commissioning & Investment,Children's & Education Services,103,Supplies and Services,504,Equipment,5023,Revenue,03.GROCERIES & PROVISIONS
28-Jun-2017,7003575,83.56,REDBRIDGE PRODUCE & FLOWERS LTD T/A TOTAL PRODUCE,390977,Commissioning & Investment,Children's & Education Services,103,Supplies and Services,504,Equipment,5023,Revenue,03.GROCERIES & PROVISIONS
28-Jun-2017,7003575,19.05,REDBRIDGE PRODUCE & FLOWERS LTD T/A TOTAL PRODUCE,390977,Commissioning & Investment,Children's & Education Services,103,Supplies and Services,504,Equipment,5023,Revenue,03.GROCERIES & PROVISIONS
28-Jun-2017,7003575,40.88,REDBRIDGE PRODUCE & FLOWERS LTD T/A TOTAL PRODUCE,390977,Commissioning & Investment,Children's & Education Services,103,Supplies and Services,504,Equipment,5023,Revenue,03.GROCERIES & PROVISIONS
28-Jun-2017,7003575,2.44,REDBRIDGE PRODUCE & FLOWERS LTD T/A TOTAL PRODUCE,390977,Commissioning & Investment,Children's & Education Services,103,Supplies and Services,504,Equipment,5023,Revenue,03.GROCERIES & PROVISIONS
28-Jun-2017,7003575,1.22,REDBRIDGE PRODUCE & FLOWERS LTD T/A TOTAL PRODUCE,390977,Commissioning & Investment,Children's & Education Services,103,Supplies and Services,504,Equipment,5023,Revenue,03.GROCERIES & PROVISIONS
28-Jun-2017,7003575,102.76,REDBRIDGE PRODUCE & FLOWERS LTD T/A TOTAL PRODUCE,390977,Commissioning & Investment,Children's & Education Services,103,Supplies and Services,504,Equipment,5023,Revenue,03.GROCERIES & PROVISIONS
28-Jun-2017,7003575,19.44,REDBRIDGE PRODUCE & FLOWERS LTD T/A TOTAL PRODUCE,390977,Commissioning & Investment,Children's & Education Services,103,Supplies and Services,504,Equipment,5023,Revenue,03.GROCERIES & PROVISIONS
28-Jun-2017,7003575,10.80,REDBRIDGE PRODUCE & FLOWERS LTD T/A TOTAL PRODUCE,390977,Commissioning & Investment,Children's & Education Services,103,Supplies and Services,504,Equipment,5023,Revenue,03.GROCERIES & PROVISIONS
28-Jun-2017,7003575,2.40,REDBRIDGE PRODUCE & FLOWERS LTD T/A TOTAL PRODUCE,390977,Commissioning & Investment,Children's & Education Services,103,Supplies and Services,504,Equipment,5023,Revenue,03.GROCERIES & PROVISIONS
28-Jun-2017,7003575,3.56,REDBRIDGE PRODUCE & FLOWERS LTD T/A TOTAL PRODUCE,390977,Commissioning & Investment,Children's & Education Services,103,Supplies and Services,504,Equipment,5023,Revenue,03.GROCERIES & PROVISIONS
28-Jun-2017,7003575,56.29,REDBRIDGE PRODUCE & FLOWERS LTD T/A TOTAL PRODUCE,390977,Commissioning & Investment,Children's & Education Services,103,Supplies and Services,504,Equipment,5023,Revenue,03.GROCERIES & PROVISIONS
28-Jun-2017,7003575,6.00,REDBRIDGE PRODUCE & FLOWERS LTD T/A TOTAL PRODUCE,390977,Commissioning & Investment,Children's & Education Services,103,Supplies and Services,504,Equipment,5023,Revenue,03.GROCERIES & PROVISIONS
28-Jun-2017,7003575,2.40,REDBRIDGE PRODUCE & FLOWERS LTD T/A TOTAL PRODUCE,390977,Commissioning & Investment,Children's & Education Services,103,Supplies and Services,504,Equipment,5023,Revenue,03.GROCERIES & PROVISIONS
28-Jun-2017,7003575,-6.00,REDBRIDGE PRODUCE & FLOWERS LTD T/A TOTAL PRODUCE,390977,Commissioning & Investment,Children's & Education Services,103,Supplies and Services,504,Equipment,5023,Revenue,03.GROCERIES & PROVISIONS
28-Jun-2017,7003575,6.00,REDBRIDGE PRODUCE & FLOWERS LTD T/A TOTAL PRODUCE,390977,Commissioning & Investment,Children's & Education Services,103,Supplies and Services,504,Equipment,5023,Revenue,03.GROCERIES & PROVISIONS
28-Jun-2017,7003575,332.67,REDBRIDGE PRODUCE & FLOWERS LTD T/A TOTAL PRODUCE,390977,Commissioning & Investment,Children's & Education Services,103,Supplies and Services,504,Equipment,5023,Revenue,03.GROCERIES & PROVISIONS
28-Jun-2017,7003575,66.11,REDBRIDGE PRODUCE & FLOWERS LTD T/A TOTAL PRODUCE,390977,Commissioning & Investment,Children's & Education Services,103,Supplies and Services,504,Equipment,5023,Revenue,03.GROCERIES & PROVISIONS
28-Jun-2017,7003575,1.88,REDBRIDGE PRODUCE & FLOWERS LTD T/A TOTAL PRODUCE,390977,Commissioning & Investment,Children's & Education Services,103,Supplies and Services,504,Equipment,5023,Revenue,03.GROCERIES & PROVISIONS
28-Jun-2017,7003575,9.60,REDBRIDGE PRODUCE & FLOWERS LTD T/A TOTAL PRODUCE,390977,Commissioning & Investment,Children's & Education Services,103,Supplies and Services,504,Equipment,5023,Revenue,03.GROCERIES & PROVISIONS
28-Jun-2017,7003575,2.40,REDBRIDGE PRODUCE & FLOWERS LTD T/A TOTAL PRODUCE,390977,Commissioning & Investment,Children's & Education Services,103,Supplies and Services,504,Equipment,5023,Revenue,03.GROCERIES & PROVISIONS
28-Jun-2017,7003575,51.92,REDBRIDGE PRODUCE & FLOWERS LTD T/A TOTAL PRODUCE,390977,Commissioning & Investment,Children's & Education Services,103,Supplies and Services,504,Equipment,5023,Revenue,03.GROCERIES & PROVISIONS
28-Jun-2017,7003575,24.74,REDBRIDGE PRODUCE & FLOWERS LTD T/A TOTAL PRODUCE,390977,"Environment, Housing & Leisure",Cultural & Related Services,104,Supplies and Services,504,Equipment,5023,Revenue,03.GROCERIES & PROVISIONS
28-Jun-2017,7003575,16.80,REDBRIDGE PRODUCE & FLOWERS LTD T/A TOTAL PRODUCE,390977,Commissioning & Investment,Children's & Education Services,103,Supplies and Services,504,Equipment,5023,Revenue,03.GROCERIES & PROVISIONS
28-Jun-2017,7003575,4.67,REDBRIDGE PRODUCE & FLOWERS LTD T/A TOTAL PRODUCE,390977,Commissioning & Investment,Children's & Education Services,103,Supplies and Services,504,Equipment,5023,Revenue,03.GROCERIES & PROVISIONS
28-Jun-2017,7003575,0.88,REDBRIDGE PRODUCE & FLOWERS LTD T/A TOTAL PRODUCE,390977,Commissioning & Investment,Children's & Education Services,103,Supplies and Services,504,Equipment,5023,Revenue,03.GROCERIES & PROVISIONS
28-Jun-2017,7003575,4.52,REDBRIDGE PRODUCE & FLOWERS LTD T/A TOTAL PRODUCE,390977,Commissioning & Investment,Children's & Education Services,103,Supplies and Services,504,Equipment,5023,Revenue,03.GROCERIES & PROVISIONS
28-Jun-2017,7003575,2.46,REDBRIDGE PRODUCE & FLOWERS LTD T/A TOTAL PRODUCE,390977,Commissioning & Investment,Children's & Education Services,103,Supplies and Services,504,Equipment,5023,Revenue,03.GROCERIES & PROVISIONS
28-Jun-2017,7003575,1.36,REDBRIDGE PRODUCE & FLOWERS LTD T/A TOTAL PRODUCE,390977,Commissioning & Investment,Children's & Education Services,103,Supplies and Services,504,Equipment,5023,Revenue,03.GROCERIES & PROVISIONS
28-Jun-2017,7003575,1.13,REDBRIDGE PRODUCE & FLOWERS LTD T/A TOTAL PRODUCE,390977,Commissioning & Investment,Children's & Education Services,103,Supplies and Services,504,Equipment,5023,Revenue,03.GROCERIES & PROVISIONS
28-Jun-2017,7003575,-0.89,REDBRIDGE PRODUCE & FLOWERS LTD T/A TOTAL PRODUCE,390977,Commissioning & Investment,Children's & Education Services,103,Supplies and Services,504,Equipment,5023,Revenue,03.GROCERIES & PROVISIONS
28-Jun-2017,7003575,7.20,REDBRIDGE PRODUCE & FLOWERS LTD T/A TOTAL PRODUCE,390977,Commissioning & Investment,Children's & Education Services,103,Supplies and Services,504,Equipment,5023,Revenue,03.GROCERIES & PROVISIONS
28-Jun-2017,7003575,4.60,REDBRIDGE PRODUCE & FLOWERS LTD T/A TOTAL PRODUCE,390977,Commissioning & Investment,Children's & Education Services,103,Supplies and Services,504,Equipment,5023,Revenue,03.GROCERIES & PROVISIONS
28-Jun-2017,7003575,5.36,REDBRIDGE PRODUCE & FLOWERS LTD T/A TOTAL PRODUCE,390977,Commissioning & Investment,Children's & Education Services,103,Supplies and Services,504,Equipment,5023,Revenue,03.GROCERIES & PROVISIONS
28-Jun-2017,7003575,4.80,REDBRIDGE PRODUCE & FLOWERS LTD T/A TOTAL PRODUCE,390977,"Health, Education, Care and Safeguarding",Children's & Education Services,103,Supplies and Services,504,Equipment,5023,Revenue,03.GROCERIES & PROVISIONS
28-Jun-2017,7003575,4.52,REDBRIDGE PRODUCE & FLOWERS LTD T/A TOTAL PRODUCE,390977,Commissioning & Investment,Children's & Education Services,103,Supplies and Services,504,Equipment,5023,Revenue,03.GROCERIES & PROVISIONS
28-Jun-2017,7003575,-3.56,REDBRIDGE PRODUCE & FLOWERS LTD T/A TOTAL PRODUCE,390977,Commissioning & Investment,Children's & Education Services,103,Supplies and Services,504,Equipment,5023,Revenue,03.GROCERIES & PROVISIONS
28-Jun-2017,7003575,9.20,REDBRIDGE PRODUCE & FLOWERS LTD T/A TOTAL PRODUCE,390977,Commissioning & Investment,Children's & Education Services,103,Supplies and Services,504,Equipment,5023,Revenue,03.GROCERIES & PROVISIONS
28-Jun-2017,7003575,1.20,REDBRIDGE PRODUCE & FLOWERS LTD T/A TOTAL PRODUCE,390977,Commissioning & Investment,Children's & Education Services,103,Supplies and Services,504,Equipment,5023,Revenue,03.GROCERIES & PROVISIONS
28-Jun-2017,7003575,2.02,REDBRIDGE PRODUCE & FLOWERS LTD T/A TOTAL PRODUCE,390977,Commissioning & Investment,Children's & Education Services,103,Supplies and Services,504,Equipment,5023,Revenue,03.GROCERIES & PROVISIONS
28-Jun-2017,7003575,29.47,REDBRIDGE PRODUCE & FLOWERS LTD T/A TOTAL PRODUCE,390977,Commissioning & Investment,Children's & Education Services,103,Supplies and Services,504,Equipment,5023,Revenue,03.GROCERIES & PROVISIONS
28-Jun-2017,7003575,9.60,REDBRIDGE PRODUCE & FLOWERS LTD T/A TOTAL PRODUCE,390977,Commissioning & Investment,Children's & Education Services,103,Supplies and Services,504,Equipment,5023,Revenue,03.GROCERIES & PROVISIONS
28-Jun-2017,7003575,22.98,REDBRIDGE PRODUCE & FLOWERS LTD T/A TOTAL PRODUCE,390977,Commissioning & Investment,Children's & Education Services,103,Supplies and Services,504,Equipment,5023,Revenue,03.GROCERIES & PROVISIONS
28-Jun-2017,7003575,2.83,REDBRIDGE PRODUCE & FLOWERS LTD T/A TOTAL PRODUCE,390977,Commissioning & Investment,Children's & Education Services,103,Supplies and Services,504,Equipment,5023,Revenue,03.GROCERIES & PROVISIONS
28-Jun-2017,7003575,51.11,REDBRIDGE PRODUCE & FLOWERS LTD T/A TOTAL PRODUCE,390977,Commissioning & Investment,Children's & Education Services,103,Supplies and Services,504,Equipment,5023,Revenue,03.GROCERIES & PROVISIONS
28-Jun-2017,7003575,14.35,REDBRIDGE PRODUCE & FLOWERS LTD T/A TOTAL PRODUCE,390977,Commissioning & Investment,Children's & Education Services,103,Supplies and Services,504,Equipment,5023,Revenue,03.GROCERIES & PROVISIONS
28-Jun-2017,7003575,1.27,REDBRIDGE PRODUCE & FLOWERS LTD T/A TOTAL PRODUCE,390977,Commissioning & Investment,Children's & Education Services,103,Supplies and Services,504,Equipment,5023,Revenue,03.GROCERIES & PROVISIONS
28-Jun-2017,7003575,33.65,REDBRIDGE PRODUCE & FLOWERS LTD T/A TOTAL PRODUCE,390977,Commissioning & Investment,Children's & Education Services,103,Supplies and Services,504,Equipment,5023,Revenue,03.GROCERIES & PROVISIONS
28-Jun-2017,7003575,2.80,REDBRIDGE PRODUCE & FLOWERS LTD T/A TOTAL PRODUCE,390977,Commissioning & Investment,Children's & Education Services,103,Supplies and Services,504,Equipment,5023,Revenue,03.GROCERIES & PROVISIONS
28-Jun-2017,7003575,1.13,REDBRIDGE PRODUCE & FLOWERS LTD T/A TOTAL PRODUCE,390977,Commissioning & Investment,Children's & Education Services,103,Supplies and Services,504,Equipment,5023,Revenue,03.GROCERIES & PROVISIONS
28-Jun-2017,7003575,-6.65,REDBRIDGE PRODUCE & FLOWERS LTD T/A TOTAL PRODUCE,390977,Commissioning & Investment,Children's & Education Services,103,Supplies and Services,504,Equipment,5023,Revenue,03.GROCERIES & PROVISIONS
28-Jun-2017,7003575,-3.54,REDBRIDGE PRODUCE & FLOWERS LTD T/A TOTAL PRODUCE,390977,Commissioning & Investment,Children's & Education Services,103,Supplies and Services,504,Equipment,5023,Revenue,03.GROCERIES & PROVISIONS
28-Jun-2017,7003575,7.20,REDBRIDGE PRODUCE & FLOWERS LTD T/A TOTAL PRODUCE,390977,Commissioning & Investment,Children's & Education Services,103,Supplies and Services,504,Equipment,5023,Revenue,03.GROCERIES & PROVISIONS
28-Jun-2017,7003575,18.36,REDBRIDGE PRODUCE & FLOWERS LTD T/A TOTAL PRODUCE,390977,Commissioning & Investment,Children's & Education Services,103,Supplies and Services,504,Equipment,5023,Revenue,03.GROCERIES & PROVISIONS
28-Jun-2017,7003575,2.08,REDBRIDGE PRODUCE & FLOWERS LTD T/A TOTAL PRODUCE,390977,Commissioning & Investment,Children's & Education Services,103,Supplies and Services,504,Equipment,5023,Revenue,03.GROCERIES & PROVISIONS
28-Jun-2017,7003575,4.80,REDBRIDGE PRODUCE & FLOWERS LTD T/A TOTAL PRODUCE,390977,Commissioning & Investment,Children's & Education Services,103,Supplies and Services,504,Equipment,5023,Revenue,03.GROCERIES & PROVISIONS
28-Jun-2017,7003575,173.63,REDBRIDGE PRODUCE & FLOWERS LTD T/A TOTAL PRODUCE,390977,"Environment, Housing & Leisure",Adult Social Care,101,Supplies and Services,504,Equipment,5023,Revenue,03.GROCERIES & PROVISIONS
28-Jun-2017,7003575,41.41,REDBRIDGE PRODUCE & FLOWERS LTD T/A TOTAL PRODUCE,390977,Commissioning & Investment,Children's & Education Services,103,Supplies and Services,504,Equipment,5023,Revenue,03.GROCERIES & PROVISIONS
28-Jun-2017,7003575,88.45,REDBRIDGE PRODUCE & FLOWERS LTD T/A TOTAL PRODUCE,390977,Commissioning & Investment,Children's & Education Services,103,Supplies and Services,504,Equipment,5023,Revenue,03.GROCERIES & PROVISIONS
28-Jun-2017,7003575,4.80,REDBRIDGE PRODUCE & FLOWERS LTD T/A TOTAL PRODUCE,390977,Commissioning & Investment,Children's & Education Services,103,Supplies and Services,504,Equipment,5023,Revenue,03.GROCERIES & PROVISIONS
28-Jun-2017,7003575,2.67,REDBRIDGE PRODUCE & FLOWERS LTD T/A TOTAL PRODUCE,390977,Commissioning & Investment,Children's & Education Services,103,Supplies and Services,504,Equipment,5023,Revenue,03.GROCERIES & PROVISIONS
28-Jun-2017,7003575,1.92,REDBRIDGE PRODUCE & FLOWERS LTD T/A TOTAL PRODUCE,390977,Commissioning & Investment,Children's & Education Services,103,Supplies and Services,504,Equipment,5023,Revenue,03.GROCERIES & PROVISIONS
28-Jun-2017,7003575,0.96,REDBRIDGE PRODUCE & FLOWERS LTD T/A TOTAL PRODUCE,390977,Commissioning & Investment,Children's & Education Services,103,Supplies and Services,504,Equipment,5023,Revenue,03.GROCERIES & PROVISIONS
28-Jun-2017,7003575,1.92,REDBRIDGE PRODUCE & FLOWERS LTD T/A TOTAL PRODUCE,390977,Commissioning & Investment,Children's & Education Services,103,Supplies and Services,504,Equipment,5023,Revenue,03.GROCERIES & PROVISIONS
28-Jun-2017,7003575,1.86,REDBRIDGE PRODUCE & FLOWERS LTD T/A TOTAL PRODUCE,390977,"Environment, Housing & Leisure",Cultural & Related Services,104,Supplies and Services,504,Equipment,5023,Revenue,03.GROCERIES & PROVISIONS
28-Jun-2017,7003575,0.94,REDBRIDGE PRODUCE & FLOWERS LTD T/A TOTAL PRODUCE,390977,Commissioning & Investment,Children's & Education Services,103,Supplies and Services,504,Equipment,5023,Revenue,03.GROCERIES & PROVISIONS
28-Jun-2017,7003575,45.34,REDBRIDGE PRODUCE & FLOWERS LTD T/A TOTAL PRODUCE,390977,Commissioning & Investment,Children's & Education Services,103,Supplies and Services,504,Equipment,5023,Revenue,03.GROCERIES & PROVISIONS
28-Jun-2017,7003575,3.87,REDBRIDGE PRODUCE & FLOWERS LTD T/A TOTAL PRODUCE,390977,Commissioning & Investment,Children's & Education Services,103,Supplies and Services,504,Equipment,5023,Revenue,03.GROCERIES & PROVISIONS
28-Jun-2017,7003575,0.47,REDBRIDGE PRODUCE & FLOWERS LTD T/A TOTAL PRODUCE,390977,Commissioning & Investment,Children's & Education Services,103,Supplies and Services,504,Equipment,5023,Revenue,03.GROCERIES & PROVISIONS
28-Jun-2017,7003575,1.40,REDBRIDGE PRODUCE & FLOWERS LTD T/A TOTAL PRODUCE,390977,Commissioning & Investment,Children's & Education Services,103,Supplies and Services,504,Equipment,5023,Revenue,03.GROCERIES & PROVISIONS
28-Jun-2017,7003575,1.45,REDBRIDGE PRODUCE & FLOWERS LTD T/A TOTAL PRODUCE,390977,Commissioning & Investment,Children's & Education Services,103,Supplies and Services,504,Equipment,5023,Revenue,03.GROCERIES & PROVISIONS
28-Jun-2017,7003575,1.14,REDBRIDGE PRODUCE & FLOWERS LTD T/A TOTAL PRODUCE,390977,Commissioning & Investment,Children's & Education Services,103,Supplies and Services,504,Equipment,5023,Revenue,03.GROCERIES & PROVISIONS
28-Jun-2017,7003575,72.25,REDBRIDGE PRODUCE & FLOWERS LTD T/A TOTAL PRODUCE,390977,Commissioning & Investment,Children's & Education Services,103,Supplies and Services,504,Equipment,5023,Revenue,03.GROCERIES & PROVISIONS
28-Jun-2017,7003575,8.08,REDBRIDGE PRODUCE & FLOWERS LTD T/A TOTAL PRODUCE,390977,Commissioning & Investment,Children's & Education Services,103,Supplies and Services,504,Equipment,5023,Revenue,03.GROCERIES & PROVISIONS
28-Jun-2017,7003575,-1.20,REDBRIDGE PRODUCE & FLOWERS LTD T/A TOTAL PRODUCE,390977,Commissioning & Investment,Children's & Education Services,103,Supplies and Services,504,Equipment,5023,Revenue,03.GROCERIES & PROVISIONS
28-Jun-2017,7003575,17.90,REDBRIDGE PRODUCE & FLOWERS LTD T/A TOTAL PRODUCE,390977,Commissioning & Investment,Children's & Education Services,103,Supplies and Services,504,Equipment,5023,Revenue,03.GROCERIES & PROVISIONS
28-Jun-2017,7003575,4.60,REDBRIDGE PRODUCE & FLOWERS LTD T/A TOTAL PRODUCE,390977,Commissioning & Investment,Children's & Education Services,103,Supplies and Services,504,Equipment,5023,Revenue,03.GROCERIES & PROVISIONS
28-Jun-2017,7003575,47.02,REDBRIDGE PRODUCE & FLOWERS LTD T/A TOTAL PRODUCE,390977,Commissioning & Investment,Children's & Education Services,103,Supplies and Services,504,Equipment,5023,Revenue,03.GROCERIES & PROVISIONS
